{"text_format":"1","workbook":"xlsx","n_sheets":26,"sheets":["Form 120P","Summary","Multiple Sites","Option to Assign Payment","Optional Demographic Questions","Insulation","HVAC & Water Heating Equipment","Grocery Equipment","Lodging & Foodservice Equipment","Computer Equipment","Service Shop & Warehouse","Admin Tools","Lookups","Showerhead-wand Lookup","Bathroom Aerator Lookup","Kitchen Aerator Lookup","Laundry Lookup","Vent Hood Lookup","Dish Under Counter Lookup","Dish Single Upright Lookup","Dish Single Conveyor Lookup","Dish Multi Conveyor Lookup","Dish Pot Pan Lookup","Add Doors Lookup","New Doors Lookup","Eligible Spaces"],"not_rendered":{"charts":0,"images":15,"macros":1,"external_links":1,"defined_names":74,"comments":0,"pivot_tables":0},"unopened":[],"bounds":{"document_bytes":16777216,"sheet_cells":100000,"rows_first":2000,"rows_last":500,"rows_between":2000,"halvings":0,"cell_chars":16384,"cell_head_chars":4096},"cells_cut":0,"cells_raw":0,"read":"whole","date_system":"1900"}

{"sheet":"Form 120P","index":0,"n_rows":136,"n_cols":43,"rows_kept":136,"cut":false,"hidden":false,"merged":[[24,34,24,35],[68,7,68,9],[38,21,38,38],[45,34,45,38],[47,24,47,38],[58,15,59,16],[24,30,24,33],[24,21,24,29],[24,37,24,38],[60,11,60,15],[60,16,60,19],[60,6,60,9],[57,1,57,10],[57,11,57,15],[66,1,66,6],[66,7,66,9],[60,30,60,38],[68,1,68,6],[27,21,27,28],[27,30,27,38],[60,1,60,5],[31,21,31,33],[31,35,31,38],[32,35,32,38],[32,21,32,33],[70,1,70,6],[70,7,70,9],[64,1,64,39],[50,32,50,38],[61,1,62,9],[61,11,62,19],[55,1,55,19],[57,30,57,38],[57,18,57,19],[58,18,59,19],[58,11,59,14],[52,24,52,31],[52,32,52,35],[52,36,52,38],[70,33,70,38],[58,1,59,8],[116,1,117,21],[117,23,117,38],[143,23,146,38],[147,23,149,38],[85,1,98,21],[85,23,95,38],[96,23,101,38],[99,1,107,21],[102,23,105,38],[106,23,109,38],[108,1,111,21],[110,23,113,38],[112,1,115,21],[114,23,116,38],[79,1,79,30],[81,1,81,27],[81,28,81,38],[78,1,78,38],[72,1,72,38],[75,2,75,15],[75,17,75,32],[75,34,75,37],[73,2,73,38],[15,21,15,38],[11,34,11,38],[11,25,11,31],[21,21,21,29],[21,31,21,38],[18,21,18,38]]}
[]
[null,"Standard Incentives"]
[null,"Existing Buildings | Incentive Application | Form 120P"]
[]
[null,"To be completed by Participant"]
[]
[null,"TRC is a Program Management Contractor for Energy Trust of Oregon."]
[]
[]
[]
[null,null,null,null,null,null,null,null,null,null,null,null,null,null,null,null,null,null,null,null,null,"Program Use Only",null,null,null,null,null,null,null,null,null,null,null,null,null,null,null,null,{"$f":"Version","v":"v2025.2"}]
[null,null,null,null,null,null,null,null,null,null,null,null,null,null,null,null,null,null,null,null,null,"Reference ID",null,null,null,null,null,null,null,null,null,null,"PT ID"]
[]
[null,null,null,null,null,null,null,null,null,null,null,null,null,null,null,null,null,null,null,null,null,"Participant Information"]
[]
[]
[null,null,null,null,null,null,null,null,null,null,null,null,null,null,null,null,null,null,null,null,null,"Legal Business Name (must match Participant's submitted W-9)"]
[]
[]
[null,null,null,null,null,null,null,null,null,null,null,null,null,null,null,null,null,null,null,null,null,"Assumed Business Name or DBA"]
[]
[]
[null,null,null,null,null,null,null,null,null,null,null,null,null,null,null,null,null,null,null,null,null,"Contact Name",null,null,null,null,null,null,null,null,null,"Title"]
[]
[]
[null,null,null,null,null,null,null,null,null,null,null,null,null,null,null,null,null,null,null,null,null,"Participant Mailing Address",null,null,null,null,null,null,null,null,"City",null,null,null,null,"State",null,"Zip"]
[]
[]
[null,null,null,null,null,null,null,null,null,null,null,null,null,null,null,null,null,null,null,null,null,"Primary Phone",null,null,null,null,null,null,null,null,"Email Address"]
[]
[null,null,null,null,null,null,null,null,null,null,null,null,null,null,null,null,null,null,null,null,null,"Business Type:"]
[null,null,null,null,null,null,null,null,null,null,null,null,null,null,null,null,null,null,null,null,null,"How many locations does your business have?"]
[null,null,null,null,null,null,null,null,null,null,null,null,null,null,null,null,null,null,null,null,null,"How many employees does your business have?"]
[null,null,null,null,null,null,null,null,null,null,null,null,null,null,null,null,null,null,null,null,null,"Participant Role:"]
[null,null,null,null,null,null,null,null,null,null,null,null,null,null,null,null,null,null,null,null,null,"Is your firm/organization a Community Service Provider?"]
[null,null,null,null,null,null,null,null,null,null,null,null,null,null,null,null,null,null,null,null,null,"Project Type:"]
[]
[]
[]
[null,null,null,null,null,null,null,null,null,null,null,null,null,null,null,null,null,null,null,null,null,"Business/Project Name"]
[null,null,null,null,null,null,null,null,null,null,null,null,null,null,null,null,null,null,null,null,null,null,null,null,null,null,null,null,null,null,null,null,null,null,null,null,null,null,null,null,null,0]
[null,null,null,null,null,null,null,null,null,null,null,null,null,null,null,null,null,null,null,null,null,"Utility Information ",null,null,null,null,null,null,null,null,null,null,null,null,null,null,null,null,null,null,null,0]
[null,null,null,null,null,null,null,null,null,null,null,null,null,null,null,null,null,null,null,null,null,null,null,null,null,null,null,null,null,null,null,null,null,null,null,null,null,null,null,null,null,0]
[null,null,null,null,null,null,null,null,null,null,null,null,null,null,null,null,null,null,null,null,null,null,null,null,null,null,null,null,null,null,null,null,null,null,null,null,null,null,null,null,null,0]
[null,null,null,null,null,null,null,null,null,null,null,null,null,null,null,null,null,null,null,null,null,null,null,null,null,null,null,null,null,null,null,null,null,null,null,null,null,null,null,null,null,0]
[null,null,null,null,null,null,null,null,null,null,null,null,null,null,null,null,null,null,null,null,null,"Electric Utility:",null,null,null,null,null,null,null,null,null,null,null,null,null,null,null,null,null,null,null,0,{"$f":"VLOOKUP(AP46,Lookups!A33:B36,2)","v":"(select)"}]
[null,null,null,null,null,null,null,null,null,null,null,null,null,null,null,null,null,null,null,null,null,null,null,null,null,null,null,null,null,null,null,null,null,null,null,null,null,null,null,null,null,0]
[null,null,null,null,null,null,null,null,null,null,null,null,null,null,null,null,null,null,null,null,null,"Account #:",null,null,null,null,null,null,null,null,null,null,null,null,null,null,null,null,null,null,null,0]
[]
[null,null,null,null,null,null,null,null,null,null,null,null,null,null,null,null,null,null,null,null,null,"Gas Utility:",null,null,null,null,null,null,null,null,null,null,null,null,null,null,null,null,null,null,null,0,{"$f":"VLOOKUP(AP50,Lookups!A39:B43,2)","v":"(select)"}]
[]
[]
[null,null,null,null,null,null,null,null,null,null,null,null,null,null,null,null,null,null,null,null,null,"Account #:",null,null,null,null,null,null,null,null,null,null,"Rate Schedule:",null,null,null,null,null,null,null,null,0]
[null,null,null,null,null,null,null,null,null,null,null,null,null,null,null,null,null,null,null,null,null,null,null,null,null,null,null,null,null,null,null,null,null,null,null,null,null,null,null,null,null,0]
[null,null,null,null,null,null,null,null,null,null,null,null,null,null,null,null,null,null,null,null,null,null,null,null,null,null,null,null,null,null,null,null,null,null,null,null,null,null,null,null,null,0]
[null,"Project and Site Information",null,null,null,null,null,null,null,null,null,null,null,null,null,null,null,null,null,null,null,"Primary Space Heating Fuel Source",null,null,null,null,null,null,null,null,null,null,null,null,null,null,null,null,null,null,null,0]
[null,null,null,null,null,null,null,null,null,null,null,null,null,null,null,null,null,null,null,null,null,null,null,null,null,null,null,null,null,null,null,null,null,null,null,null,null,null,null,null,null,0]
[null,null,null,null,null,null,null,null,null,null,null,null,null,null,null,null,null,null,null,null,null,null,null,null,null,null,null,null,null,null,null,null,null,null,null,null,null,null,null,null,null,0,{"$f":"VLOOKUP($AP58,Lookups!$A$2:$B$5,2)","v":"None"}]
[null,"Site Address*",null,null,null,null,null,null,null,null,null,"City",null,null,null,"State",null,null,"Zip"]
[null,null,null,null,null,null,null,null,null,null,null,null,null,null,null,null,null,null,null,null,null,"Water Heating Fuel Source"]
[null,null,null,null,null,null,null,null,null,null,null,null,null,null,null,null,null,null,null,null,null,null,null,null,null,null,null,null,null,null,null,null,null,null,null,null,null,null,null,null,null,0,{"$f":"VLOOKUP($AP61,Lookups!$A$2:$B$5,2)","v":"None"}]
[null,"Contact name for Site Visit",null,null,null,null,null,null,null,null,null,"Phone number for Site Visit"]
[]
[]
[null,"*If requesting incentives for multiple locations, use the Multiple Sites section to list each location's site address, utility information and heating fuel sources"]
[]
[null,"Total sq. ft. of Business",null,null,null,null,null,null,null,null,null,"Building Use Type:"]
[]
[null,"Year Built"]
[]
[]
[]
[null,"Participant Signature Please sign below either manually (ex. handwritten) or electronically (ex. typing your name, drawing your signature on a touchpad or touchscreen, inserting a digital signature, or, if available, by clicking the box)."]
[]
[]
[null,null,null,null,null,null,null,null,null,null,null,null,null,null,null,null,null,{"$f":"IF(ContactName=\"\",\"\",ContactName)","v":""}]
[null,null,"Authorized Representative Signature",null,null,null,null,null,null,null,null,null,null,null,null,null,null,"Name (printed)",null,null,null,null,null,null,null,null,null,null,null,null,null,null,null,null,"Date"]
[]
[null,"Grant Funding"]
[null,"Did you receive any other external funding, such as grants, that reduced your final out-of-pocket purchase/installation costs for any energy saving equipment listed in this application (See Project Cost Documentation for more information)?"]
[]
[null,"If yes, what is the total amount of external funding, Include additional information with submitted invoices."]
[]
[]
[null,"TERMS AND CONDITIONS"]
[]
[]
[]
[]
[]
[]
[]
[]
[]
[]
[]
[]
[]
[]
[]
[]
[]
[]
[]
[]
[]
[]
[]
[]
[]
[]
[]
[]
[]
[]
[]
[]
[]
[]
[]
[]
[]
[]
[]
[]
[]
[]
[]
[]
[]
[]
[]
[]
[]
[]
[null,"TERMS AND CONDITIONS CONTINUED"]

{"sheet":"Summary","index":1,"n_rows":35,"n_cols":7,"rows_kept":35,"cut":false,"hidden":false,"merged":[[35,2,35,6],[36,2,36,6],[37,1,38,6],[11,1,11,4],[14,1,14,4],[15,1,15,4],[26,1,26,4],[26,5,26,6],[27,1,27,4],[27,5,27,6],[33,1,33,4],[33,5,33,6],[34,1,34,4],[34,5,34,6],[32,2,32,6],[29,1,29,4],[10,1,10,6],[19,1,20,4],[28,2,28,6],[16,1,16,4],[25,5,25,6],[25,1,25,4],[18,1,18,6],[12,1,12,4],[13,1,13,4],[29,5,29,6],[30,1,30,4],[30,5,30,6],[31,1,31,4],[31,5,31,6]]}
[]
[null,"Standard Incentives Summary"]
[null,"Existing Buildings | Incentive Application | Form 120P"]
[]
[]
[null,"TRC is a Program Management Contractor for Energy Trust of Oregon."]
[]
[null,null,null,"Program Use Only",null,null,{"$f":"Version","v":"v2025.2"}]
[null,null,null,"Reference ID",{"$f":"IF(ReferenceID=\"\",\"\",ReferenceID)","v":""},"PTID",{"$f":"IF(PTID=\"\",\"\",PTID)","v":""}]
[]
[null,"INCENTIVES"]
[null,"EQUIPMENT",null,null,null,"REQUESTED\nINCENTIVES","INSTALLED\nCOST"]
[null,"Insulation",null,null,null,{"$f":"TOTAL_INSULATION_INCENTIVES","v":0},{"$f":"TOTAL_INSULATION_INSTALLED_COST","v":0}]
[null,"HVAC and Water Heating",null,null,null,{"$f":"TOTAL_HVAC_INCENTIVES","v":0},{"$f":"TOTAL_HVAC_INSTALLED_COST","v":0}]
[null,"Grocery",null,null,null,{"$f":"TOTAL_GROCERY_INCENTIVES","v":0},{"$f":"TOTAL_GROCERY_INSTALLED_COST","v":0}]
[null,"Lodging and Foodservice",null,null,null,{"$f":"TOTAL_LODGING_INCENTIVES","v":0},{"$f":"TOTAL_LODGING_INSTALLED_COST","v":0}]
[null,"Service Shops and Warehouses",null,null,null,{"$f":"TOTAL_SERVICE_INCENTIVES","v":0},{"$f":"TOTAL_SERVICE_INSTALLED_COST","v":0}]
[]
[]
[null,"COMBINED TOTAL REQUESTED INCENTIVES",null,null,null,"TOTAL REQUESTED \nINCENTIVES","TOTAL\nINSTALLED COST"]
[null,null,null,null,null,{"$f":"SUM(F13:F17)","v":0},{"$f":"SUM(G13:G17)","v":0}]
[]
[null," "]
[]
[]
[null,"SITES SERVED BY A PARTICIPATING ELECTRIC UTILITY",null,null,null,"INCENTIVE LIMIT"]
[null,"Site served by Portland General Electric",null,null,null,12000]
[null,"Site served by Pacific Power",null,null,null,6000]
[]
[null,"SITES SERVED BY A GAS UTILITY",null,null,null,"INCENTIVE LIMIT"]
[null,"Site served by NW Natural",null,null,null,12000]
[null,"Site served by Avista (and not Pacific Power)",null,null,null,12000]
[]
[null,"For Program Use Only",null,null,null,"TOTAL INCENTIVES"]
[null,"Combined Total Incentive Approved"]

{"sheet":"Multiple Sites","index":2,"n_rows":98,"n_cols":14,"rows_kept":98,"cut":false,"hidden":false,"merged":[[96,11,96,12],[97,11,97,12],[90,11,90,12],[91,11,91,12],[92,11,92,12],[93,11,93,12],[94,11,94,12],[95,11,95,12],[84,11,84,12],[85,11,85,12],[86,11,86,12],[87,11,87,12],[88,11,88,12],[89,11,89,12],[79,11,79,12],[80,11,80,12],[81,11,81,12],[82,11,82,12],[83,11,83,12],[72,11,72,12],[73,11,73,12],[74,11,74,12],[75,11,75,12],[76,11,76,12],[77,11,77,12],[70,11,70,12],[71,11,71,12],[60,11,60,12],[61,11,61,12],[62,11,62,12],[63,11,63,12],[64,11,64,12],[65,11,65,12],[78,11,78,12],[49,11,49,12],[50,11,50,12],[51,11,51,12],[52,11,52,12],[53,11,53,12],[66,11,66,12],[67,11,67,12],[68,11,68,12],[69,11,69,12],[24,11,24,12],[25,11,25,12],[26,11,26,12],[27,11,27,12],[28,11,28,12],[29,11,29,12],[42,11,42,12],[43,11,43,12],[44,11,44,12],[36,11,36,12],[37,11,37,12],[38,11,38,12],[39,11,39,12],[40,11,40,12],[41,11,41,12],[65,7,65,8],[66,7,66,8],[67,7,67,8],[68,7,68,8],[69,7,69,8],[70,7,70,8],[59,7,59,8],[60,7,60,8],[30,11,30,12],[31,11,31,12],[32,11,32,12],[33,11,33,12],[34,11,34,12],[35,11,35,12],[45,11,45,12],[46,11,46,12],[47,11,47,12],[54,11,54,12],[55,11,55,12],[56,11,56,12],[57,11,57,12],[58,11,58,12],[59,11,59,12],[48,11,48,12],[95,7,95,8],[96,7,96,8],[97,7,97,8],[91,7,91,8],[92,7,92,8],[93,7,93,8],[94,7,94,8],[74,7,74,8],[75,7,75,8],[76,7,76,8],[17,11,17,12],[89,7,89,8],[90,7,90,8],[83,7,83,8],[84,7,84,8],[85,7,85,8],[86,7,86,8],[87,7,87,8],[88,7,88,8],[77,7,77,8],[78,7,78,8],[79,7,79,8],[80,7,80,8],[81,7,81,8],[82,7,82,8],[71,7,71,8],[72,7,72,8],[73,7,73,8],[18,11,18,12],[19,11,19,12],[20,11,20,12],[21,11,21,12],[22,11,22,12],[23,11,23,12],[61,7,61,8],[62,7,62,8],[63,7,63,8],[64,7,64,8],[53,7,53,8],[54,7,54,8],[55,7,55,8],[56,7,56,8],[57,7,57,8],[58,7,58,8],[47,7,47,8],[48,7,48,8],[49,7,49,8],[50,7,50,8],[51,7,51,8],[52,7,52,8],[41,7,41,8],[42,7,42,8],[43,7,43,8],[44,7,44,8],[45,7,45,8],[46,7,46,8],[35,7,35,8],[36,7,36,8],[37,7,37,8],[38,7,38,8],[39,7,39,8],[40,7,40,8],[29,7,29,8],[30,7,30,8],[31,7,31,8],[32,7,32,8],[33,7,33,8],[34,7,34,8],[23,7,23,8],[24,7,24,8],[25,7,25,8],[26,7,26,8],[27,7,27,8],[28,7,28,8],[17,7,17,8],[18,7,18,8],[19,7,19,8],[20,7,20,8],[21,7,21,8],[22,7,22,8],[11,7,11,8],[12,7,12,8],[13,7,13,8],[14,7,14,8],[15,7,15,8],[16,7,16,8],[7,12,7,13],[7,9,7,10],[10,7,10,8],[10,11,10,12],[9,11,9,12],[9,7,9,8],[11,11,11,12],[12,11,12,12],[13,11,13,12],[14,11,14,12],[15,11,15,12],[16,11,16,12]]}
[]
["Standard Incentives"]
["Existing Buildings | Incentive Application | Form 120P"]
[]
[]
[]
[null,null,null,null,null,null,null,null,"Program Use Only",null,null,null,null,{"$f":"Version","v":"v2025.2"}]
[null,null,null,null,null,null,null,null,"Reference ID",{"$f":"IF(ReferenceID=\"\",\"\",ReferenceID)","v":""},null,"PT ID",{"$f":"IF(PTID=\"\",\"\",PTID)","v":""}]
["Multiple Sites"]
["Location\n(Bldg Name / Store #)","Site Address","City","State","Zip","Electric \nUtility","Electric \nAccount Number","Gas \nUtility",null,"Gas Account Number","Gas Rate Schedule","Primary Heating \nFuel Source",null,"Water Heating \nFuel Source"]
[]
[]
[]
[]
[]
[]
[]
[]
[]
[]
[null,null,null,null,null,"(select)",null,"(select)",null,null,null,"(select)",null,"(select)"]
[null,null,null,null,null,"(select)",null,"(select)",null,null,null,"(select)",null,"(select)"]
[null,null,null,null,null,"(select)",null,"(select)",null,null,null,"(select)",null,"(select)"]
[null,null,null,null,null,"(select)",null,"(select)",null,null,null,"(select)",null,"(select)"]
[null,null,null,null,null,"(select)",null,"(select)",null,null,null,"(select)",null,"(select)"]
[null,null,null,null,null,"(select)",null,"(select)",null,null,null,"(select)",null,"(select)"]
[null,null,null,null,null,"(select)",null,"(select)",null,null,null,"(select)",null,"(select)"]
[null,null,null,null,null,"(select)",null,"(select)",null,null,null,"(select)",null,"(select)"]
[null,null,null,null,null,"(select)",null,"(select)",null,null,null,"(select)",null,"(select)"]
[null,null,null,null,null,"(select)",null,"(select)",null,null,null,"(select)",null,"(select)"]
[null,null,null,null,null,"(select)",null,"(select)",null,null,null,"(select)",null,"(select)"]
[null,null,null,null,null,"(select)",null,"(select)",null,null,null,"(select)",null,"(select)"]
[null,null,null,null,null,"(select)",null,"(select)",null,null,null,"(select)",null,"(select)"]
[null,null,null,null,null,"(select)",null,"(select)",null,null,null,"(select)",null,"(select)"]
[null,null,null,null,null,"(select)",null,"(select)",null,null,null,"(select)",null,"(select)"]
[null,null,null,null,null,"(select)",null,"(select)",null,null,null,"(select)",null,"(select)"]
[null,null,null,null,null,"(select)",null,"(select)",null,null,null,"(select)",null,"(select)"]
[null,null,null,null,null,"(select)",null,"(select)",null,null,null,"(select)",null,"(select)"]
[null,null,null,null,null,"(select)",null,"(select)",null,null,null,"(select)",null,"(select)"]
[null,null,null,null,null,"(select)",null,"(select)",null,null,null,"(select)",null,"(select)"]
[null,null,null,null,null,"(select)",null,"(select)",null,null,null,"(select)",null,"(select)"]
[null,null,null,null,null,"(select)",null,"(select)",null,null,null,"(select)",null,"(select)"]
[null,null,null,null,null,"(select)",null,"(select)",null,null,null,"(select)",null,"(select)"]
[null,null,null,null,null,"(select)",null,"(select)",null,null,null,"(select)",null,"(select)"]
[null,null,null,null,null,"(select)",null,"(select)",null,null,null,"(select)",null,"(select)"]
[null,null,null,null,null,"(select)",null,"(select)",null,null,null,"(select)",null,"(select)"]
[null,null,null,null,null,"(select)",null,"(select)",null,null,null,"(select)",null,"(select)"]
[null,null,null,null,null,"(select)",null,"(select)",null,null,null,"(select)",null,"(select)"]
[null,null,null,null,null,"(select)",null,"(select)",null,null,null,"(select)",null,"(select)"]
[null,null,null,null,null,"(select)",null,"(select)",null,null,null,"(select)",null,"(select)"]
[null,null,null,null,null,"(select)",null,"(select)",null,null,null,"(select)",null,"(select)"]
[null,null,null,null,null,"(select)",null,"(select)",null,null,null,"(select)",null,"(select)"]
[null,null,null,null,null,"(select)",null,"(select)",null,null,null,"(select)",null,"(select)"]
[null,null,null,null,null,"(select)",null,"(select)",null,null,null,"(select)",null,"(select)"]
[null,null,null,null,null,"(select)",null,"(select)",null,null,null,"(select)",null,"(select)"]
[null,null,null,null,null,"(select)",null,"(select)",null,null,null,"(select)",null,"(select)"]
[null,null,null,null,null,"(select)",null,"(select)",null,null,null,"(select)",null,"(select)"]
[null,null,null,null,null,"(select)",null,"(select)",null,null,null,"(select)",null,"(select)"]
[null,null,null,null,null,"(select)",null,"(select)",null,null,null,"(select)",null,"(select)"]
[null,null,null,null,null,"(select)",null,"(select)",null,null,null,"(select)",null,"(select)"]
[null,null,null,null,null,"(select)",null,"(select)",null,null,null,"(select)",null,"(select)"]
[null,null,null,null,null,"(select)",null,"(select)",null,null,null,"(select)",null,"(select)"]
[null,null,null,null,null,"(select)",null,"(select)",null,null,null,"(select)",null,"(select)"]
[null,null,null,null,null,"(select)",null,"(select)",null,null,null,"(select)",null,"(select)"]
[null,null,null,null,null,"(select)",null,"(select)",null,null,null,"(select)",null,"(select)"]
[null,null,null,null,null,"(select)",null,"(select)",null,null,null,"(select)",null,"(select)"]
[null,null,null,null,null,"(select)",null,"(select)",null,null,null,"(select)",null,"(select)"]
[null,null,null,null,null,"(select)",null,"(select)",null,null,null,"(select)",null,"(select)"]
[null,null,null,null,null,"(select)",null,"(select)",null,null,null,"(select)",null,"(select)"]
[null,null,null,null,null,"(select)",null,"(select)",null,null,null,"(select)",null,"(select)"]
[null,null,null,null,null,"(select)",null,"(select)",null,null,null,"(select)",null,"(select)"]
[null,null,null,null,null,"(select)",null,"(select)",null,null,null,"(select)",null,"(select)"]
[null,null,null,null,null,"(select)",null,"(select)",null,null,null,"(select)",null,"(select)"]
[null,null,null,null,null,"(select)",null,"(select)",null,null,null,"(select)",null,"(select)"]
[null,null,null,null,null,"(select)",null,"(select)",null,null,null,"(select)",null,"(select)"]
[null,null,null,null,null,"(select)",null,"(select)",null,null,null,"(select)",null,"(select)"]
[null,null,null,null,null,"(select)",null,"(select)",null,null,null,"(select)",null,"(select)"]
[null,null,null,null,null,"(select)",null,"(select)",null,null,null,"(select)",null,"(select)"]
[null,null,null,null,null,"(select)",null,"(select)",null,null,null,"(select)",null,"(select)"]
[null,null,null,null,null,"(select)",null,"(select)",null,null,null,"(select)",null,"(select)"]
[null,null,null,null,null,"(select)",null,"(select)",null,null,null,"(select)",null,"(select)"]
[null,null,null,null,null,"(select)",null,"(select)",null,null,null,"(select)",null,"(select)"]
[null,null,null,null,null,"(select)",null,"(select)",null,null,null,"(select)",null,"(select)"]
[null,null,null,null,null,"(select)",null,"(select)",null,null,null,"(select)",null,"(select)"]
[null,null,null,null,null,"(select)",null,"(select)",null,null,null,"(select)",null,"(select)"]
[null,null,null,null,null,"(select)",null,"(select)",null,null,null,"(select)",null,"(select)"]
[null,null,null,null,null,"(select)",null,"(select)",null,null,null,"(select)",null,"(select)"]
[null,null,null,null,null,"(select)",null,"(select)",null,null,null,"(select)",null,"(select)"]
[null,null,null,null,null,"(select)",null,"(select)",null,null,null,"(select)",null,"(select)"]
[null,null,null,null,null,"(select)",null,"(select)",null,null,null,"(select)",null,"(select)"]
[null,null,null,null,null,"(select)",null,"(select)",null,null,null,"(select)",null,"(select)"]
[null,null,null,null,null,"(select)",null,"(select)",null,null,null,"(select)",null,"(select)"]
[null,null,null,null,null,"(select)",null,"(select)",null,null,null,"(select)",null,"(select)"]
[null,null,null,null,null,"(select)",null,"(select)",null,null,null,"(select)",null,"(select)"]
[null,null,null,null,null,"(select)",null,"(select)",null,null,null,"(select)",null,"(select)"]
[null,null,null,null,null,"(select)",null,"(select)",null,null,null,"(select)",null,"(select)"]
[null,null,null,null,null,"(select)",null,"(select)",null,null,null,"(select)",null,"(select)"]
[null,null,null,null,null,"(select)",null,"(select)",null,null,null,"(select)",null,"(select)"]

{"sheet":"Option to Assign Payment","index":3,"n_rows":30,"n_cols":33,"rows_kept":30,"cut":false,"hidden":false,"merged":[[20,8,20,31],[25,8,25,31],[26,8,26,32],[25,1,26,7],[27,19,27,25],[27,6,27,18],[23,1,24,7],[23,8,23,16],[23,18,23,27],[23,29,23,31],[24,8,24,16],[24,18,24,27],[24,29,24,31],[21,8,21,32],[20,1,21,7],[27,29,27,31],[17,1,17,32],[18,1,19,7],[18,8,18,16],[18,18,18,27],[18,29,18,31],[19,8,19,16],[19,18,19,27],[19,29,19,31],[15,1,16,32],[9,15,9,17],[9,18,9,23],[9,24,9,26],[9,27,9,32],[11,1,12,32],[27,26,27,27],[29,22,30,31],[28,6,28,12],[29,1,30,3],[29,4,30,9],[29,20,30,21],[27,1,28,5]]}
[]
[null,"Standard Incentives"]
[null,"Existing Buildings | Option to Assign Payment | Form 120P"]
[]
[null,"To be completed by Participant"]
[]
[]
[]
[null,null,null,null,null,null,null,null,null,null,null,null,null,null,null,"Program Use Only",null,null,null,null,null,null,null,null,null,null,null,null,null,null,null,null,{"$f":"Version","v":"v2025.2"}]
[null,null,null,null,null,null,null,null,null,null,null,null,null,null,null,"Reference ID",null,null,{"$f":"IF(ReferenceID=\"\",\"\",ReferenceID)","v":""},null,null,null,null,null,"PT ID",null,null,{"$f":"IF(PTID=\"\",\"\",PTID)","v":""}]
[]
[null,"Option to Assign Incentive Payment\nPLEASE NOTE: The Energy Trust incentive payment will be made to Participant unless Participant and its designated Payee complete the section below to assign the payment to Payee. A complete, accurate and verifiable IRS Form W-9 (Request for Taxpayer Identification Number and Certification) for the Payee named below must be attached if this option is selected."]
[]
[]
[null,"PARTICIPANT AND PAYEE"]
[null,"Both Participant and Payee understand and agree that if this Option to Assign Incentive Payment is selected the incentive check will be issued to the Payee named below at the address listed below and Energy Trust is not responsible for any tax liabilities that may be associated with the incentive payment. In addition, Participant understands that, notwithstanding this assignment, responsibility for complying with the terms and conditions of this incentive agreement shall continue to be the obligation of Participant, and Energy Trust's sole responsibility under this incentive agreement shall be to Participant. Accordingly, Payee understands that it shall have no rights against Energy Trust or the PMC with respect to such assignment or the payment of the incentive, and in the event that Energy Trust does not pay the incentive as a result of Participant's failure to comply with this agreement, Payee's sole recourse shall be against Participant. Participant directs Energy Trust to pay any incentive to which it is entitled to the Payee named below and waives all rights to directly receive the Energy Trust incentives for the identified energy-efficiency project. "]
[]
[null,"SIGNATURES: By my signature below, I represent to Energy Trust that I have read this agreement and am duly authorized to sign this Option to Assign Incentive Payment on behalf of the party for whom I am signing."]
[null,"On behalf of Participant\n(Authorized Representative)",null,null,null,null,null,null,{"$f":"IF(ContactName=\"\",\"\",ContactName)","v":""}]
[null,null,null,null,null,null,null,null,"(printed)",null,null,null,null,null,null,null,null,null,"Signature",null,null,null,null,null,null,null,null,null,null,"Date"]
[null,"Participant ",null,null,null,null,null,null,{"$f":"IF(BusinessName=\"\",\"\",BusinessName)","v":""}]
[null,null,null,null,null,null,null,null,"(Legal business name as shown on W-9)"]
[]
[null,"On behalf of Payee\n(Authorized Representative)"]
[null,null,null,null,null,null,null,null,"(printed)",null,null,null,null,null,null,null,null,null,"Signature",null,null,null,null,null,null,null,null,null,null,"Date"]
[null,"Payee Name"]
[null,null,null,null,null,null,null,null,"\n(must match submitted IRS Form W-9)"]
[null,"Mailing Address                                        (for check)"]
[null,null,null,null,null,null,"Street",null,null,null,null,null,null,null,null,null,null,null,null,"City",null,null,null,null,null,null,null,"State",null,"Zip"]
[null,"Phone",null,null,null,null,null,null,null,null,null,null,null,null,null,null,null,null,null,null,"Email"]

{"sheet":"Optional Demographic Questions","index":4,"n_rows":42,"n_cols":20,"rows_kept":42,"cut":false,"hidden":false,"merged":[[3,0,4,16],[1,0,1,31],[19,0,20,14],[12,0,12,15],[17,17,18,31],[10,24,10,31],[3,17,4,31],[9,5,9,14],[16,8,16,14],[34,7,34,14],[14,25,14,31],[24,21,24,28],[40,21,40,28],[29,17,29,32]]}
[]
["Optional Commercial Participant Demographic Information (If completed, choose all that apply)"]
[]
["1. Which of the following best describes your position at the business?",null,null,null,null,null,null,null,null,null,null,null,null,null,null,null,null,"4. Which of the following racial and ethnic backgrounds best describe you? (select all that apply)"]
[]
[null,null,"Owner",null,null,null,null,null,null,null,null,null,null,null,null,null,null,null,null,"Asian/Asian American"]
[null,null,"Executive or decision-maker",null,null,null,null,null,null,null,null,null,null,null,null,null,null,null,null,"Black/African American"]
[null,null,"Manager",null,null,null,null,null,null,null,null,null,null,null,null,null,null,null,null,"Hispanic or Latino/a/x"]
[null,null,"Employee",null,null,null,null,null,null,null,null,null,null,null,null,null,null,null,null,"Middle Eastern or North African"]
[null,null,"Other Role:",null,null,null,null,null,null,null,null,null,null,null,null,null,null,null,null,"Native American/First Nations/Alaskan Native"]
[null,null,"Prefer not to answer",null,null,null,null,null,null,null,null,null,null,null,null,null,null,null,null,"Tribal Affiliation:"]
[null,null,null,null,null,null,null,null,null,null,null,null,null,null,null,null,null,null,null,"Native Hawaiian/Pacific Islander"]
["2. What best describes your gender?",null,null,null,null,null,null,null,null,null,null,null,null,null,null,null,null,null,null,"White"]
[null,null,"Female ",null,null,null,null,null,null,null,null,null,null,null,null,null,null,null,null,"Biracial/Multi-racial"]
[null,null,"Male ",null,null,null,null,null,null,null,null,null,null,null,null,null,null,null,null,"Prefer to self-describe:"]
[null,null,"Non-binary/third gender ",null,null,null,null,null,null,null,null,null,null,null,null,null,null,null,null,"Prefer not to answer"]
[null,null,"Prefer to self-describe:      "]
[null,null,"Prefer not to answer",null,null,null,null,null,null,null,null,null,null,null,null,null,null,"5. Which of the following describe your firm or organization? (select all that apply)  "]
[]
["3. What is the primary language(s) used at your business in Oregon? (select all that apply)",null,null,null,null,null,null,null,null,null,null,null,null,null,null,null,null,null,null,"Minority Owned (MBE)"]
[null,null,null,null,null,null,null,null,null,null,null,null,null,null,null,null,null,null,null,"Women Owned (WBE)"]
[null,null,"Arabic",null,null,null,null,null,null,null,null,null,null,null,null,null,null,null,null,"Small Business"]
[null,null,"Cantonese",null,null,null,null,null,null,null,null,null,null,null,null,null,null,null,null,"Service Disabled/Veteran Owned (SDVO)"]
[null,null,"English",null,null,null,null,null,null,null,null,null,null,null,null,null,null,null,null,"Disadvantaged Business Enterprise (DBE)"]
[null,null,"French",null,null,null,null,null,null,null,null,null,null,null,null,null,null,null,null,"Other:"]
[null,null,"German",null,null,null,null,null,null,null,null,null,null,null,null,null,null,null,null,"None of the above"]
[null,null,"Japanese",null,null,null,null,null,null,null,null,null,null,null,null,null,null,null,null,"Don’t know"]
[null,null,"Korean",null,null,null,null,null,null,null,null,null,null,null,null,null,null,null,null,"Prefer not to answer"]
[null,null,"Mandarin"]
[null,null,"Marshallese",null,null,null,null,null,null,null,null,null,null,null,null,null,null,"6. Please tell us how you heard about Energy Trust incentives"]
[null,null,"Russian",null,null,null,null,null,null,null,null,null,null,null,null,null,null,null,null,"Energy Trust team member"]
[null,null,"Spanish",null,null,null,null,null,null,null,null,null,null,null,null,null,null,null,null,"Contractor/Trade Ally"]
[null,null,"Tagalog",null,null,null,null,null,null,null,null,null,null,null,null,null,null,null,null,"Energy Trust website"]
[null,null,"Vietnamese ",null,null,null,null,null,null,null,null,null,null,null,null,null,null,null,null,"Email"]
[null,null,"Another language:",null,null,null,null,null,null,null,null,null,null,null,null,null,null,null,null,"Direct Mail"]
[null,null,"Prefer not to answer",null,null,null,null,null,null,null,null,null,null,null,null,null,null,null,null,"Trade Association/Conference"]
[null,null,null,null,null,null,null,null,null,null,null,null,null,null,null,null,null,null,null,"Community event /Community organization  "]
[null,null,null,null,null,null,null,null,null,null,null,null,null,null,null,null,null,null,null,"Online (advertisement, social media or search engine)"]
[null,null,null,null,null,null,null,null,null,null,null,null,null,null,null,null,null,null,null,"Newspaper/Magazine"]
[null,null,null,null,null,null,null,null,null,null,null,null,null,null,null,null,null,null,null,"Recommended by a friend or colleague "]
[null,null,null,null,null,null,null,null,null,null,null,null,null,null,null,null,null,null,null,"Other:"]
[null,null,null,null,null,null,null,null,null,null,null,null,null,null,null,null,null,null,null,"Prefer not to answer"]

{"sheet":"Insulation","index":5,"n_rows":69,"n_cols":10,"rows_kept":69,"cut":false,"hidden":false,"merged":[[33,1,38,1],[33,2,33,4],[33,6,38,6],[33,7,38,7],[33,8,38,8],[34,2,35,2],[34,3,34,4],[35,3,35,4],[11,7,16,7],[11,6,16,6],[39,7,44,7],[39,8,44,8],[24,8,29,8],[24,7,29,7],[17,8,22,8],[17,7,22,7],[39,6,44,6],[50,4,50,5],[49,2,51,3],[52,7,53,7],[45,2,45,5],[10,2,10,4],[32,2,32,4],[24,2,24,4],[24,6,29,6],[18,3,18,4],[19,3,19,4],[17,6,22,6],[20,2,20,5],[12,2,13,2],[18,2,19,2],[25,2,26,2],[39,2,39,5],[51,4,51,5],[40,2,41,2],[58,1,59,6],[52,2,53,4],[39,1,44,1],[40,3,40,4],[41,3,41,4],[54,4,54,5],[55,4,55,5],[54,2,55,3],[45,1,55,1],[57,1,57,9],[52,8,53,8],[52,6,53,6],[49,4,49,5],[39,9,44,9],[24,9,29,9],[17,9,22,9],[11,9,16,9],[33,9,38,9],[17,1,22,1],[11,1,16,1],[24,1,29,1],[25,3,25,4],[26,3,26,4],[12,3,12,4],[13,3,13,4],[11,2,11,5],[14,2,14,5],[27,2,27,5],[17,2,17,5],[11,8,16,8]]}
[]
[null,"Standard Incentives"]
[null,"Existing Buildings | Incentive Application | Form 120P"]
[]
[]
[null,"TRC is a Program Management Contractor for Energy Trust of Oregon."]
[null,null,null,null,null,null,"Program Use Only",null,null,{"$f":"Version","v":"v2025.2"}]
[null,null,null,null,null,null,"Reference ID",{"$f":"IF(ReferenceID=\"\",\"\",ReferenceID)","v":""},"PTID",{"$f":"IF(PTID=\"\",\"\",PTID)","v":""}]
[]
[null,"INSULATION"]
[null,"EQUIPMENT","REQUIREMENTS",null,null,null,"INCENTIVE \nPER UNIT","QUANTITY","INCENTIVE\nTOTAL","INSTALLED\nCOST"]
[null," Attic Insulation or\n Below Deck Roof\n Insulation,\n R-9 or less\n to at least R-25",null,null,null,null,0.9,null,{"$f":"G12*H12","v":0}]
[null,null,"Building\nheating fuel:"]
[" "]
[]
[null,null,"Existing R-Value:",null,"New R-Value: "]
[]
[null," Above Deck \n Roof Insulation,\n R-0 to at least R-15",null,null,null,null,2.85,null,{"$f":"G18*H18","v":0}]
[null,null,"Building\nheating fuel:"]
[" "]
[]
[null,null,"Existing R-Value:",null,"New R-Value: "]
[]
[]
[null," Above Deck \n Roof Insulation,\n R-0 to at least R-30",null,null,null,null,2.85,null,{"$f":"G25*H25","v":0}]
[null,null,"Building\nheating fuel:"]
[" "]
[]
[null,null,"Existing R-Value:",null,"New R-Value: "]
[]
[]
[null,"INSULATION continued"]
[null,"EQUIPMENT","REQUIREMENTS",null,null,null,"INCENTIVE \nPER UNIT","QUANTITY","INCENTIVE\nTOTAL","INSTALLED\nCOST"]
[null," Above Deck \n Roof Insulation,\n R-5 or less\n to at least R-30",null,null,null,null,1,null,{"$f":"G34*H34","v":0}]
[null,null,"Building\nheating fuel:"]
[" "]
[]
[null,null,"Existing R-Value:",null,"New R-Value: "]
[]
[null," Wall Insulation,\n R-6 or less\n to at least R-20",null,null,null,null,1.3,null,{"$f":"G40*H40","v":0}]
[null,null,"Building\nheating fuel:"]
[" "]
[]
[null,null,"Existing R-Value:",null,"New R-Value: "]
[]
[null," Pipe Insulation  "]
[null,null,"Pipe Diameter:"]
[]
[]
[null,null,"Gas Heating     ",null,"Piping serves domestic hot water",null,18,null,{"$f":"G50*H50","v":0}]
[null,null,null,null,"Piping serves low or\nmedium pressure steam \n(at most 200 psig)",null,25,null,{"$f":"G51*H51","v":0}]
[null,null,null,null,"Piping serves heating hot water",null,25,null,{"$f":"G52*H52","v":0}]
[null,null,null,null,null,null,"Bonus Incentive:",null,{"$f":"G54*H53","v":0}]
[null,null,null,null,null,null,7]
[null,null,"Electric Resistance Heating",null,"Piping serves domestic hot water",null,30,null,{"$f":"H55*G55","v":0}]
[null,null,null,null,"Piping serves heating hot water",null,30,null,{"$f":"H56*G56","v":0}]
[]
[null,"Requested incentives are subject to per-site, per-year incentive limits. See Terms & Conditions for details."]
[null,"TOTALS FOR INSULATION",null,null,null,null,null,null,"TOTAL REQUESTED\nINCENTIVES","TOTAL\nINSTALLED COST"]
[null,null,null,null,null,null,null,null,{"$f":"SUM(I12:I30,I34,I40,I50:I56)","v":0},{"$f":"SUM(J12:J30,J34,J40,J50:J56)","v":0}]
[]
[]
[null,null,null,null,null,null,null,"PAC heat subtotal",{"$f":"IF(ELE=\"Pacific Power\",MIN(6000,SUM(#REF!,#REF!,I30:I30,#REF!,I45:I45)),0)","v":0}]
[null,null,null,null,null,null,null,"PGE heat subtotal",{"$f":"IF(ELE=\"PGE\",MIN(10000,SUM(#REF!,#REF!,I30:I30,#REF!,I45:I45)),0)","v":0}]
[null,null,null,null,null,null,null,"Other heat subtotal",{"$f":"IF(ELE=\"Other\",0,0)","v":0}]
[null,null,null,null,null,null,null,"GAS heat PAC subtotal",{"$f":"IF(ELE=\"Pacific Power\",MIN(10000,SUM(#REF!,#REF!,#REF!,#REF!,#REF!)),0)","v":0}]
[null,null,null,null,null,null,null,"GAS heat PGE subtotal",{"$f":"IF(ELE=\"PGE\",MIN(30000,SUM(#REF!,#REF!,#REF!,#REF!,#REF!)),0)","v":0}]
[null,null,null,null,null,null,null,"GAS heat Other subtotal",{"$f":"IF(ELE=\"Other\",0,0)","v":0}]
[null,null,null,null,null,null,null,"no cap subtotal",{"$f":"SUM(#REF!,#REF!,#REF!,#REF!,#REF!,I50:I52)","v":{"$error":"#REF!"}}]

{"sheet":"HVAC & Water Heating Equipment","index":6,"n_rows":177,"n_cols":20,"rows_kept":177,"cut":false,"hidden":false,"merged":[[105,6,105,11],[106,6,106,11],[140,12,143,15],[103,2,107,5],[108,2,108,5],[113,2,119,5],[26,1,34,1],[33,14,34,14],[33,15,34,15],[27,6,27,10],[43,2,43,11],[29,6,30,8],[29,9,29,11],[31,6,32,8],[35,1,35,15],[95,1,98,1],[95,2,95,11],[95,12,95,15],[112,1,126,1],[63,14,66,14],[50,4,50,5],[73,2,73,11],[69,1,71,1],[72,2,72,11],[44,1,46,1],[45,2,45,11],[46,2,46,11],[44,12,44,15],[67,1,67,15],[74,5,74,7],[93,1,93,15],[140,2,140,11],[126,6,126,11],[107,6,107,11],[120,6,120,11],[121,6,121,11],[113,6,113,11],[124,6,124,11],[119,6,119,11],[125,6,125,11],[140,1,149,1],[143,2,143,4],[144,2,144,4],[146,8,146,11],[147,8,147,11],[145,2,145,4],[146,2,146,4],[99,12,100,15],[11,2,11,11],[22,2,22,3],[22,7,22,8],[130,12,133,15],[130,1,139,1],[131,5,131,9],[135,2,135,6],[48,2,49,11],[131,2,131,4],[134,2,134,6],[134,7,135,11],[138,2,138,6],[133,2,133,6],[133,7,133,11],[136,2,136,6],[136,7,137,11],[47,1,55,1],[69,12,71,12],[69,15,71,15],[56,15,57,15],[112,2,112,11],[33,12,34,12],[63,12,66,12],[63,13,66,13],[171,2,171,11],[172,2,172,11],[167,1,172,1],[20,1,25,1],[21,2,21,5],[10,1,10,15],[24,2,24,11],[25,2,25,11],[143,8,143,11],[144,8,145,11],[148,8,148,11],[149,8,149,11],[148,5,149,7],[130,2,130,11],[137,2,137,6],[143,5,143,7],[144,5,145,7],[146,5,147,7],[138,7,139,11],[139,2,139,6],[128,1,128,15],[112,12,112,15],[120,2,126,5],[116,6,116,11],[154,1,166,1],[154,2,154,11],[166,2,166,11],[153,2,153,11],[152,1,152,15],[144,13,145,15],[167,2,167,11],[168,2,168,11],[169,4,169,5],[158,13,166,13],[158,14,166,14],[158,15,166,15],[155,2,164,11],[154,15,157,15],[169,2,170,3],[169,6,170,7],[169,8,169,9],[167,12,170,15],[169,10,170,11],[154,13,157,13],[154,14,157,14],[147,2,147,4],[148,2,148,4],[149,2,149,4],[175,1,176,13],[69,2,69,11],[79,1,81,1],[79,2,79,11],[79,12,79,15],[80,2,80,11],[81,2,81,11],[174,1,174,15],[99,1,111,1],[99,2,99,11],[123,6,123,11],[108,6,108,11],[118,6,118,11],[117,6,117,11],[109,2,111,5],[102,6,102,11],[110,6,110,11],[111,6,111,11],[70,2,70,11],[173,1,173,15],[129,2,129,11],[165,2,165,11],[158,12,166,12],[154,12,157,12],[141,2,141,4],[141,5,141,9],[32,9,32,11],[33,6,34,8],[33,2,34,5],[33,9,34,11],[78,2,78,11],[103,6,103,11],[109,6,109,11],[122,6,122,11],[115,6,115,11],[114,6,114,11],[101,6,101,11],[104,6,104,11],[63,2,64,11],[52,2,52,11],[54,2,54,11],[50,7,50,8],[65,4,65,5],[37,1,37,15],[38,2,38,11],[56,14,57,14],[39,2,39,11],[41,1,43,1],[101,2,102,5],[100,2,100,5],[69,13,71,13],[47,2,47,11],[76,2,76,11],[53,2,53,11],[55,2,55,11],[12,1,15,1],[16,1,18,1],[21,6,21,7],[22,4,22,5],[22,9,22,10],[41,12,41,15],[26,12,28,15],[26,2,26,11],[27,2,28,5],[96,2,96,11],[77,2,77,11],[33,13,34,13],[20,12,23,15],[20,2,20,11],[29,2,32,5],[30,9,30,11],[31,9,31,11],[47,17,55,17],[47,16,55,16],[12,15,15,15],[12,12,15,12],[12,13,15,13],[12,14,15,14],[14,2,14,7],[19,2,19,11],[16,14,18,14],[16,12,18,12],[16,13,18,13],[16,15,18,15],[41,2,41,11],[42,2,42,11],[17,2,17,4],[17,6,17,8],[17,9,17,10],[13,5,13,9],[13,2,13,4],[13,10,15,11],[97,0,98,0],[97,2,97,11],[97,16,98,16],[97,17,98,17],[98,2,98,11],[95,0,96,0],[72,13,76,13],[72,12,76,12],[56,13,57,13],[69,14,71,14],[72,15,76,15],[72,14,76,14],[94,2,94,11],[72,0,74,0],[63,1,66,1],[95,16,96,16],[95,17,96,17],[72,16,74,16],[72,17,74,17],[74,8,74,9],[68,2,68,11],[63,15,66,15],[65,8,65,9],[74,2,75,3],[87,2,87,11],[82,2,82,11],[82,12,83,15],[83,2,83,11],[82,1,87,1],[84,2,84,11],[85,2,85,11],[86,2,86,11],[47,0,55,0],[72,1,76,1],[56,2,57,11],[71,2,71,3]]}
[]
[null,"Standard Incentives"]
[null,"Existing Buildings | Incentive Application | Form 120P"]
[]
[]
[null,"TRC is a Program Management Contractor for Energy Trust of Oregon."]
[]
[null,null,null,null,null,null,null,null,null,null,null,null,"Program Use Only",null,null,{"$f":"Version","v":"v2025.2"}]
[null,null,null,null,null,null,null,null,null,null,null,null,"Reference ID",{"$f":"IF(ReferenceID=\"\",\"\",ReferenceID)","v":""},"PTID",{"$f":"IF(PTID=\"\",\"\",PTID)","v":""}]
[]
[null,"HVAC EQUIPMENT"]
[null,"EQUIPMENT","REQUIREMENTS",null,null,null,null,null,null,null,null,null,"INCENTIVE \nPER UNIT","QUANTITY","INCENTIVE\nTOTAL","INSTALLED\nCOST"]
[null," Ductless Heat\n Pump (DHP) -\n Lodging only ",null,null,null,null,null,null,null,null,null,null,500,null,{"$f":"N13*M13","v":0}]
[null,null,"Total lodging rooms on site:"]
[null,null,"Is baseboard heating present at this site?"]
[]
[null," Packaged Terminal\n Heat Pump\n (PTHP) - \n Lodging Only",null,null,null,null,null,null,null,null,null,null,800,null,{"$f":"M17*N17","v":0}]
[null,null,"Total lodging rooms on site:",null,null,null,"PTAC Model Number\n(If applicable)"]
[]
[null," Commercial\n Ductless Heat\n Pump - New or\n Replacement",null,null,null,null,null,null,null,null,null,null,300,null,{"$f":"N20*M20","v":0}]
[null," Server/Telecom\n Room - \n Mini-Split Air\n Conditioning"]
[null,null,"Server closet design load (kW)"]
[null,null,"SEER rating",null,null,null,"OR","SEER2 rating"]
[]
[null,null,"Server Closet Mini-split Air Conditioner ",null,null,null,null,null,null,null,null,null,250,null,{"$f":"M25*N25","v":0}]
[null,null,"Server Closet Mini-split Heat Pump",null,null,null,null,null,null,null,null,null,250,null,0]
[null," Forced \n Circulation\n Generator Block\n Heater\n"]
[null,null,"   Heater size in Kilowatts (kW):"]
[]
[null,null,"Retrofit     \n(upgrading existing, \nfunctional  equipment)     ",null,null,null,"Electric Resistance Type Generator Block Heater",null,null,"1.6 to 3.0 kW",null,null,320,null,{"$f":"M30*N30","v":0}]
[null,null,null,null,null,null,null,null,null,"3.1 to 9.0 kW",null,null,1400,null,{"$f":"M31*N31","v":0}]
[null,null,null,null,null,null,"Heat Pump Type\n Generator Block Heater",null,null,"4.0 to 5.9 kW",null,null,12000,null,{"$f":"M32*N32","v":0}]
[null,null,null,null,null,null,null,null,null,"6.0 to 8.9 kW",null,null,22000,null,{"$f":"M33*N33","v":0}]
[null,null,"End-of-life Replacement or \nNew applications ",null,null,null,"Electric Resistance Type Generator Block Heater",null,null,"1.1 to 2.5 kW       ",null,null,320,null,{"$f":"M34*N34","v":0}]
[]
[]
[]
[null,"HVAC EQUIPMENT continued"]
[null,"EQUIPMENT","REQUIREMENTS",null,null,null,null,null,null,null,null,null,"INCENTIVE \nPER UNIT","QUANTITY","INCENTIVE\nTOTAL","INSTALLED\nCOST"]
[null," Gas-fired\n High-Efficiency\n Condensing\n HVAC Boiler",null,null,null,null,null,null,null,null,null,null,6.5,null,{"$f":"M40*N40","v":0}]
[null," Modulating\n Boiler Burner",null,null,null,null,null,null,null,null,null,null,10,null,0]
[null," Commercial\n Condensing Gas\n Furnace"]
[null,null,"Gas heating with gas and electricity provided by participating utilities",null,null,null,null,null,null,null,null,null,8.25,null,{"$f":"M43*N43","v":0}]
[null,null,"Gas heating with only gas provided by a participating utility ",null,null,null,null,null,null,null,null,null,8.25,null,{"$f":"M44*N44","v":0}]
[null," Infrared Radiant\n Heater"]
[null,null,"Non-Modulating",null,null,null,null,null,null,null,null,null,4,null,{"$f":"M46*N46","v":0}]
[null,null,"Modulating",null,null,null,null,null,null,null,null,null,5,null,{"$f":"M47*N47","v":0}]
[null," Steam Trap "]
[]
[]
[null,null," Psig:",null,"Trap size:",null,null,"Occupied 24/7:"]
[]
[null,null,"How does the site use the steam?"]
[null,null,"Replaced steam trap (psig below 200)",null,null,null,null,null,null,null,null,null,500,null,{"$f":"M54*N54","v":0}]
[null,null,"Repaired steam trap (50 psig or less)",null,null,null,null,null,null,null,null,null,400,null,{"$f":"M55*N55","v":0}]
[null,null,"Repaired steam trap (psig more than 50 and less than 200)",null,null,null,null,null,null,null,null,null,500,null,{"$f":"M56*N56","v":0}]
[null,null,null,null,null,null,null,null,null,null,null,null,"Bonus Incentive:",null,{"$f":"N57*M58","v":0}]
[null,null,null,null,null,null,null,null,null,null,null,null,3.75]
[null,null,null,null,null,null,null,null,null,null,null,null,"Bonus Incentive:",null,{"$f":"M60*N59","v":0}]
[null,null,null,null,null,null,null,null,null,null,null,null,5]
[]
[]
[]
[null,"Steam Trap - Dry Cleaners",null,null,null,null,null,null,null,null,null,null,350,null,{"$f":"M64*N64","v":0}]
[]
[null,null," Psig:",null,"Trap size:"]
[]
[null,"WATER HEATING EQUIPMENT"]
[null,"EQUIPMENT","REQUIREMENTS",null,null,null,null,null,null,null,null,null,"INCENTIVE \nPER UNIT","QUANTITY","INCENTIVE\nTOTAL","INSTALLED\nCOST"]
[null,"Commercial \nDucted or Ductless Heat Pump - Retrofit  ",null,null,null,null,null,null,null,null,null,null,500,null,{"$f":"N70*M70","v":0},null,null,null,"Removed retrofit measure"]
[null,null,"   \u009f Did the space served have existing cooling capabilities?"]
[]
[null," Commercial\n Condensing\n Tankless\n Water Heater\n under 200 kBtu/h\n input ",null,null,null,null,null,null,null,null,null,null,140,null,{"$f":"M73*N73","v":0},null,null,1]
[null,null,"   Is there an existing water storage tank attached?"]
[null,null,null,null,null,"If yes, what is the capacity?"]
[]
[null,null,"Installed at any qualfying site, on or after September 1, 2023, UEF at least 0.94"]
[null," Commercial\n Condensing\n Tankless Water\n Heater/Boiler\n at least 200 kBtu/h\n input ",null,null,null,null,null,null,null,null,null,null,1.4,null,{"$f":"M78*N78","v":0}]
[null," Commercial\n Condensing Tank \n Water Heater",null,null,null,null,null,null,null,null,null,null,3.5,null,{"$f":"M79*N79","v":0}]
[null," Commercial Heat\n Pump Water\n Heater (HPWH) "]
[null,null,"Ducted HPWH",null,null,null,null,null,null,null,null,null,800,null,{"$f":"M81*N81","v":0}]
[null,null,"Non-ducted HPWH",null,null,null,null,null,null,null,null,null,800,null,{"$f":"M82*N82","v":0}]
[null,"Domestic Hot Water (DHW) Recirculation Pump Controls"]
[null,null,"Control type: "]
[null,null,"1/4 horsepower (hp) and below",null,null,null,null,null,null,null,null,null,180,null,{"$f":"M85*N85","v":0}]
[null,null,"More than 1/4 hp up to 1.25 hp",null,null,null,null,null,null,null,null,null,300,null,{"$f":"M86*N86","v":0}]
[null,null,"More than 1.25 hp up to 2.5 hp",null,null,null,null,null,null,null,null,null,600,null,{"$f":"M87*N87","v":0}]
[null,null,"More than 2.5 up to 5 hp",null,null,null,null,null,null,null,null,null,1400,null,{"$f":"M88*N88","v":0}]
[]
[]
[]
[]
[]
[null,"PUMPS"]
[null,"EQUIPMENT","REQUIREMENTS",null,null,null,null,null,null,null,null,null,"INCENTIVE \nPER UNIT","QUANTITY","INCENTIVE\nTOTAL","INSTALLED\nCOST"]
[null," Hydronic Heating\n Circulator Pumps"]
[null,null,"Variable Speed ECM: more than 1/6 HP - 3/4 HP or less",null,null,null,null,null,null,null,null,null,250,null,{"$f":"M97*N97","v":0}]
[null,null,"Variable Speed ECM: more than 3/4 HP - 2.5 HP or less",null,null,null,null,null,null,null,null,null,350,null,0]
[null,null,"Variable Speed ECM: more than 2.5 HP - 5 HP or less",null,null,null,null,null,null,null,null,null,750,null,0]
[null," Commercial \n Pump  Variable\n Frequency\n Drive (VFD) -\n New Pump"]
[null,null,"   Pump application:"]
[null,null,"Cooling and Heating applications only",null,null,null,"0.50 to 0.75 hp",null,null,null,null,null,200,null,{"$f":"M102*N102","v":0}]
[null,null,null,null,null,null,"0.76 to 1.25 hp",null,null,null,null,null,250,null,0]
[null,null,"All qualifying pump applications",null,null,null,"1.26 to 1.75 hp",null,null,null,null,null,300,null,0]
[null,null,null,null,null,null,"1.76 to 2.5 hp",null,null,null,null,null,350,null,0]
[null,null,null,null,null,null,"2.51 to 3.5 hp",null,null,null,null,null,400,null,0]
[null,null,null,null,null,null,"3.51 to 4.5 hp",null,null,null,null,null,500,null,0]
[null,null,null,null,null,null,"4.51 to 6.0 hp",null,null,null,null,null,550,null,0]
[null,null,"Heating, Pressure Boost and Cooling Tower applications only",null,null,null,"6.01 to 8.0 hp",null,null,null,null,null,700,null,0]
[null,null,"Pressure Boost or Cooling Tower applications only",null,null,null,"8.01 to 12.5 hp",null,null,null,null,null,800,null,{"$f":"M110*N110","v":0}]
[null,null,null,null,null,null,"12.51 to 17.5 hp",null,null,null,null,null,950,null,{"$f":"M111*N111","v":0}]
[null,null,null,null,null,null,"17.51 to 22.5 hp",null,null,null,null,null,1100,null,{"$f":"M112*N112","v":0}]
[null," Irrigation Pump\n Variable\n Frequency\n Drive (VFD)"]
[null,null,"Retrofit Pump VFD\n(upgrading existing, functional equipment)",null,null,null,"2.0 to 4.9 hp",null,null,null,null,null,1000,null,{"$f":"M114*N114","v":0}]
[null,null,null,null,null,null,"5.0 to 7.49 hp",null,null,null,null,null,2000,null,{"$f":"M115*N115","v":0}]
[null,null,null,null,null,null,"7.5 to 9.9 hp",null,null,null,null,null,3000,null,{"$f":"M116*N116","v":0}]
[null,null,null,null,null,null,"10.0 to 14.9 hp",null,null,null,null,null,3500,null,0]
[null,null,null,null,null,null,"15.0 to 19.9 hp",null,null,null,null,null,4500,null,0]
[null,null,null,null,null,null,"20.0 to 24.9 hp",null,null,null,null,null,5000,null,0]
[null,null,null,null,null,null,"25.0 hp",null,null,null,null,null,6000,null,0]
[null,null,"New Construction Pump VFD",null,null,null,"2.0 to 4.9 hp",null,null,null,null,null,750,null,0]
[null,null,null,null,null,null,"5.0 to 7.49 hp",null,null,null,null,null,1250,null,0]
[null,null,null,null,null,null,"7.5 to 9.9 hp",null,null,null,null,null,1750,null,0]
[null,null,null,null,null,null,"10.0 to 14.9 hp",null,null,null,null,null,2250,null,0]
[null,null,null,null,null,null,"15.0 to 19.9 hp",null,null,null,null,null,2750,null,0]
[null,null,null,null,null,null,"20.0 to 24.9 hp",null,null,null,null,null,3250,null,{"$f":"M126*N126","v":0}]
[null,null,null,null,null,null,"25.0 hp",null,null,null,null,null,3750,null,0]
[]
[null,"HVAC CONTROLS"]
[null,"EQUIPMENT","REQUIREMENTS",null,null,null,null,null,null,null,null,null,"INCENTIVE \nPER UNIT","QUANTITY","INCENTIVE\nTOTAL","INSTALLED\nCOST"]
[null," Advanced Rooftop\n Controls (ARC)\n - Full Retrofit "]
[null,null,"Annual operating hours:"]
[]
[null,null,"Rooftop Unit Heating Fuel",null,null,null,null,"Participating Utilities"]
[null,null,"Electric Heat",null,null,null,null,"Gas Only",null,null,null,null,"Does not qualify"]
[null,null,"Gas Heat",null,null,null,null,null,null,null,null,null,300,null,{"$f":"M136*N136","v":0}]
[null,null,"Electric Heat ",null,null,null,null,"Electric Only",null,null,null,null,300,null,{"$f":"M137*N137","v":0}]
[null,null,"Gas Heat",null,null,null,null,null,null,null,null,null,300,null,0]
[null,null,"Electric Heat",null,null,null,null,"Gas and Electric",null,null,null,null,300,null,0]
[null,null,"Gas Heat",null,null,null,null,null,null,null,null,null,300,null,0]
[null," Advanced Rooftop \n Controls (ARC) - \n Lite Retrofit "]
[null,null,"Annual operating hours:"]
[]
[null,null,"Rooftop Unit Heating Fuel",null,null,"Participating Utilities",null,null,"Required Minimum Annual Operating Hours:"]
[null,null,"Electric Heat",null,null,"Gas Only",null,null,null,null,null,null,"Does not qualify"]
[null,null,"Gas Heat",null,null,null,null,null,null,null,null,null,"Does not qualify"]
[null,null,"Electric Heat ",null,null,"Electric Only",null,null,"2,500 hrs",null,null,null,200,null,{"$f":"M147*N147","v":0}]
[null,null,"Gas Heat",null,null,null,null,null,"2,500 hrs",null,null,null,200,null,{"$f":"M148*N148","v":0}]
[null,null,"Electric Heat",null,null,"Gas and Electric",null,null,"2,500 hrs",null,null,null,200,null,{"$f":"M149*N149","v":0}]
[null,null,"Gas Heat",null,null,null,null,null,"3,500 hrs",null,null,null,200,null,{"$f":"M150*N150","v":0}]
[]
[]
[null,"HVAC CONTROLS continued"]
[null,"EQUIPMENT","REQUIREMENTS",null,null,null,null,null,null,null,null,null,"INCENTIVE \nPER UNIT","QUANTITY","INCENTIVE\nTOTAL","INSTALLED\nCOST"]
[null," Commercial\n Smart Thermostat",null,null,null,null,null,null,null,null,null,null,400,null,{"$f":"M155*N155","v":0}]
[]
[]
[]
[null,null,null,null,null,null,null,null,null,null,null,null,500,null,{"$f":"N159*M159","v":0}]
[]
[]
[]
[]
[]
[]
[null,null,"How is your site heated?"]
[null,null,"Is there cooling onsite?"]
[null," Destratification\n Fan"]
[null,null,"How is your site heated?",null,null,null,null,null,null,null,null,null,null,null,null,null,null,null,null,"Draft MAD added in"]
[null,null,"Ceiling Height:",null,null,null,"Fan Diameter:"]
[]
[null,null,"Gas Heat",null,null,null,null,null,null,null,null,null,2000,null,{"$f":"N172*M172","v":0}]
[null,null,"Electric Heat  ",null,null,null,null,null,null,null,null,null,6000,null,{"$f":"N173*M173","v":0}]
[]
[null,"Requested incentives are subject to per-site, per-year incentive limits. See Terms & Conditions for details."]
[null,"TOTALS FOR HVAC AND WATER HEATING",null,null,null,null,null,null,null,null,null,null,null,null,"TOTAL REQUESTED \nINCENTIVES","TOTAL\nINSTALLED COST"]
[null,null,null,null,null,null,null,null,null,null,null,null,null,null,{"$f":"SUM(O13:O20,O25:O26,O30:O35,O40:O41,O43:O44,O46:O47,O54:O67,O73:O79,O81:O82,O85:O88,O97:O99,O102:O112,O114:O127,O136:O140,O147:O150,O155:O167)","v":0},{"$f":"SUM(P13:P20,P25:P26,P30:P35,P40:P41,P43:P44,P46:P47,P54:P67,P73:P79,P81:P82,P85:P88,P97:P99,P102:P112,P114:P127,P136:P140,P147:P150,P155:P167)","v":0}]

{"sheet":"Grocery Equipment","index":7,"n_rows":113,"n_cols":20,"rows_kept":113,"cut":false,"hidden":false,"merged":[[85,1,100,1],[85,2,85,10],[86,6,86,8],[93,7,93,8],[46,1,54,1],[93,2,93,6],[95,2,95,6],[97,2,97,6],[88,2,88,10],[86,2,86,5],[86,9,86,10],[90,2,90,9],[92,2,92,5],[53,2,53,10],[54,2,54,10],[59,2,59,10],[64,2,64,10],[63,2,63,10],[62,2,62,10],[47,6,47,10],[48,6,48,10],[56,1,56,14],[58,2,58,10],[67,2,67,10],[106,1,106,14],[103,1,104,12],[102,1,102,14],[84,2,84,10],[81,11,81,14],[36,1,36,14],[78,1,80,1],[78,2,78,10],[78,11,78,14],[69,1,71,1],[69,2,69,10],[69,11,69,14],[72,1,74,1],[37,2,37,10],[79,2,79,10],[80,2,80,10],[72,2,72,10],[72,11,72,14],[41,2,41,4],[85,11,98,14],[91,2,91,10],[99,2,99,10],[100,2,100,10],[73,2,73,10],[17,14,18,14],[14,14,15,14],[17,13,18,13],[14,13,15,13],[41,5,41,7],[43,5,43,7],[46,2,46,10],[42,8,42,10],[40,2,40,10],[39,2,39,3],[46,11,50,14],[17,12,18,12],[19,11,22,14],[14,12,15,12],[27,11,27,14],[24,2,24,10],[57,2,57,10],[25,2,25,10],[29,2,29,10],[66,2,66,10],[44,2,44,4],[28,2,28,10],[27,1,29,1],[27,2,27,10],[49,2,49,10],[31,2,31,4],[38,1,45,1],[42,2,42,4],[43,8,43,10],[81,16,83,16],[81,15,83,15],[72,16,74,16],[78,15,80,15],[78,16,80,16],[76,1,76,14],[77,2,77,10],[75,1,75,14],[61,2,61,8],[61,9,61,10],[67,11,68,11],[67,12,68,12],[67,13,68,13],[67,14,68,14],[72,15,74,15],[69,15,71,15],[69,16,71,16],[66,1,68,1],[74,2,74,10],[58,11,61,14],[58,1,65,1],[65,2,65,10],[81,0,83,0],[81,2,81,10],[83,2,83,10],[82,2,82,10],[81,1,83,1],[78,0,80,0],[31,5,31,7],[31,8,31,10],[71,2,71,10],[69,0,71,0],[70,2,70,10],[72,0,74,0],[30,1,34,1],[43,2,43,4],[45,8,45,10],[45,5,45,7],[44,5,44,7],[51,2,51,10],[41,8,41,10],[42,5,42,7],[45,2,45,4],[44,8,44,10],[39,5,39,7],[52,2,52,10],[10,1,10,14],[16,2,16,10],[26,2,26,10],[12,11,12,14],[23,2,23,10],[19,1,26,1],[38,11,41,14],[11,2,11,10],[19,2,19,10],[13,2,13,10],[38,2,38,10],[20,2,20,5],[20,6,20,9],[21,2,21,8],[17,2,18,10],[14,2,15,10],[12,2,12,10],[21,9,21,10],[30,2,30,10],[34,2,34,10],[33,2,33,10],[32,2,32,10],[12,1,18,1],[30,11,31,14]]}
[]
[null,"Standard Incentives"]
[null,"Existing Buildings | Incentive Application | Form 120P"]
[]
[]
[null,"TRC is a Program Management Contractor for Energy Trust of Oregon."]
[]
[null,null,null,null,null,null,null,null,null,null,null,"Program Use Only",null,null,{"$f":"Version","v":"v2025.2"}]
[null,null,null,null,null,null,null,null,null,null,null,"Reference ID",{"$f":"IF(ReferenceID=\"\",\"\",ReferenceID)","v":""},"PTID",{"$f":"IF(PTID=\"\",\"\",PTID)","v":""}]
[]
[null,"GROCERY EQUIPMENT - Refrigeration"]
[null,"EQUIPMENT","REQUIREMENTS",null,null,null,null,null,null,null,null,"INCENTIVE PER UNIT","QUANTITY","INCENTIVE\nTOTAL","INSTALLED\nCOST"]
[null," Anti-Sweat Heater\n Controls (ASH) "]
[null,null," Low temperature case (below 0°F)",null,null,null,null,null,null,null,null,80,null,{"$f":"M14*L14","v":0}]
[null,null,null,null,null,null,null,null,null,null,null,"Bonus Incentive: ",null,{"$f":"L16*M15","v":0}]
[null,null,null,null,null,null,null,null,null,null,null,30]
[null,null," Medium temperature case (between 1°F and 35°F)",null,null,null,null,null,null,null,null,60,null,{"$f":"M17*L17","v":0}]
[null,null,null,null,null,null,null,null,null,null,null,"Bonus Incentive: ",null,{"$f":"L19*M18","v":0}]
[null,null,null,null,null,null,null,null,null,null,null,20]
[null," Evaporator Fan \n Motors "]
[null,null,"  Case Temperature:"]
[null,null,"ECM or PMSM Horsepower (if applicable):"]
[]
[null,null,"Walk-in case, from a SP",null,null,null,null,null,null,null,null,180,null,{"$f":"M24*L24","v":0}]
[null,null," Walk-in case, from a PSC",null,null,null,null,null,null,null,null,180,null,{"$f":"M25*L25","v":0}]
[null,null," Reach-in case, from a SP",null,null,null,null,null,null,null,null,150,null,{"$f":"M26*L26","v":0}]
[null,null," Reach-in case, from a PSC",null,null,null,null,null,null,null,null,150,null,{"$f":"M27*L27","v":0}]
[null," Strip Curtains "]
[null,null,"Walk-in cooler for grocery stores and warehouses",null,null,null,null,null,null,null,null,12,null,{"$f":"M29*L29","v":0}]
[null,null," Walk-in freezer for grocery stores and restaurants",null,null,null,null,null,null,null,null,12,null,{"$f":"M30*L30","v":0}]
[null," New Cooler Cases\n with Doors"]
[null,null," Building \nHeating Fuel ",null,null," Participating\n Electric Utility",null,null," Participating\n Gas Utility"]
[null,null,"Vertical cases (remote-condensing) - Coolers only",null,null,null,null,null,null,null,null,150,null,{"$f":"M33*L33","v":0}]
[null,null,"Horizontal cases (remote-condensing) - Coolers or Freezers",null,null,null,null,null,null,null,null,150,null,{"$f":"M34*L34","v":0}]
[null,null,"Self-Contained Unit - Horizontal Freezer \nat site with gas heat, with no participating gas provider",null,null,null,null,null,null,null,null,150,null,{"$f":"M35*L35","v":0}]
[]
[null,"GROCERY EQUIPMENT - Refrigeration continued"]
[null,"EQUIPMENT","REQUIREMENTS",null,null,null,null,null,null,null,null,"INCENTIVE PER UNIT","QUANTITY","INCENTIVE\nTOTAL","INSTALLED\nCOST"]
[null," Doors on Open\n Freezers or Open\n Refrigerated Cases"]
[null,null,"Heat type: "]
[null,null,"            Horizontal hinge OR           Vertical hinge"]
[null,null,"Building Heat Type ",null,null,"Participating Electric Service",null,null,"Case Temperature"]
[null,null,"Vertical",null,null,"Electric or Gas",null,null,"Medium",null,null,200,null,{"$f":"M43*L43","v":0},null,null,null,null,null,"Remove electric only"]
[null,null,"Gas",null,null,"Yes",null,null,"Medium or Low",null,null,400,null,{"$f":"M44*L44","v":0}]
[null,null,"Electric or \nNon-participating Gas",null,null,"Yes",null,null,"Medium or Low",null,null,350,null,{"$f":"M45*L45","v":0}]
[null,null,"Gas",null,null,"No",null,null,"Medium or Low",null,null,160,null,{"$f":"M46*L46","v":0}]
[null," High-Speed Doors\n on Walk-in Coolers\n or Freezers"]
[null,null,"Size of walk-in:"]
[null,null,"Size of walk-in doorway:"]
[null,null,"How is your site heated?"]
[]
[null,null,"Walk-In Cooler - Retrofit/ Upgrade     ",null,null,null,null,null,null,null,null,14000,null,{"$f":"M52*L52","v":0}]
[null,null,"Walk-In Freezer - Retrofit/ Upgrade  ",null,null,null,null,null,null,null,null,17000,null,{"$f":"M53*L53","v":0}]
[null,null,"Walk-In Cooler - New Install or Replacement",null,null,null,null,null,null,null,null,11000,null,{"$f":"M54*L54","v":0}]
[null,null,"Walk-In Freezer - New Install or Replacement",null,null,null,null,null,null,null,null,14000,null,{"$f":"M55*L55","v":0}]
[]
[null,"GROCERY EQUIPMENT - Refrigeration continued"]
[null,"EQUIPMENT","REQUIREMENTS",null,null,null,null,null,null,null,null,"INCENTIVE PER UNIT","QUANTITY","INCENTIVE\nTOTAL","INSTALLED\nCOST"]
[null," ENERGY STAR®\n Vertical Reach-in\n Freezer"]
[null,null,"How is your site heated?"]
[]
[null,null,"Total Case Volume (cubic feet/ ft3):"]
[null,null,"Less than 15 cubic feet",null,null,null,null,null,null,null,null,40,null,{"$f":"M63*L63","v":0}]
[null,null,"15 - 29.9 cubic feet",null,null,null,null,null,null,null,null,80,null,{"$f":"M64*L64","v":0}]
[null,null,"30 - 49.9 cubic feet",null,null,null,null,null,null,null,null,190,null,{"$f":"M65*L65","v":0}]
[null,null,"At least 50 cubic feet",null,null,null,null,null,null,null,null,325,null,0]
[null," ENERGY STAR\n Vertical Reach-in\n Refrigerator"]
[null,null,"How is your site heated?",null,null,null,null,null,null,null,null,20,null,{"$f":"M68*L68","v":0}]
[]
[null," Condenser Fan\n Variable Frequency\n Drive (VFD),\n Compressor Rack ",null,null,null,null,null,null,null,null,null,null,null,null,null,null,0]
[null,null,"Air Cooled Condenser",null,null,null,null,null,null,null,null,850,null,{"$f":"M71*L71","v":0}]
[null,null,"Evaporatively Cooled Condenser",null,null,null,null,null,null,null,null,850,null,{"$f":"M72*L72","v":0}]
[null," Floating Head\n Pressure Control\n (FHPC),\n Compressor Rack ",null,null,null,null,null,null,null,null,null,null,null,null,null,null,0]
[null,null,"Air Cooled Condenser",null,null,null,null,null,null,null,null,60,null,{"$f":"M74*L74","v":0}]
[null,null,"Evaporatively Cooled Condenser",null,null,null,null,null,null,null,null,60,null,{"$f":"M75*L75","v":0}]
[]
[null,"GROCERY EQUIPMENT - Refrigeration continued"]
[null,"EQUIPMENT","REQUIREMENTS",null,null,null,null,null,null,null,null,"INCENTIVE PER UNIT","QUANTITY","INCENTIVE\nTOTAL","INSTALLED\nCOST"]
[null," Floating Suction\n Pressure Controls\n (FSPC),\n Compressor Rack ",null,null,null,null,null,null,null,null,null,null,null,null,null,null,0]
[null,null,"Air Cooled Condenser",null,null,null,null,null,null,null,null,60,null,{"$f":"M80*L80","v":0}]
[null,null,"Evaporatively Cooled Condenser",null,null,null,null,null,null,null,null,60,null,{"$f":"M81*L81","v":0}]
[null," FHPC and FSPC,\n Compressor Rack ",null,null,null,null,null,null,null,null,null,null,null,null,null,null,0]
[null,null,"Air Cooled Condenser",null,null,null,null,null,null,null,null,130,null,{"$f":"M83*L83","v":0}]
[null,null,"Evaporatively Cooled Condenser",null,null,null,null,null,null,null,null,130,null,{"$f":"M84*L84","v":0}]
[null," On-Demand\n Overwrapper ",null,null,null,null,null,null,null,null,null,350,null,{"$f":"M85*L85","v":0}]
[null," Advanced Controls\n on Walk-in Coolers\n or Freezers"]
[null,null,"Size of walk-in:",null,null,null,null,null,null,"square feet"]
[]
[null,null,"How is your site heated?"]
[]
[null,null,"If installing in a walk-in freezer, was the freezer manufactured before October 1, 2019?"]
[null,null,"If control device is installed on a display walk-in: "]
[null,null,"Display Walk-in type:         ",null,null,null,null,null,"or"]
[null,null,"Compressor horsepower:",null,null,null,null,null,null,"hp"]
[]
[null,null,"Number of evaporator fans:",null,null,null,null,null,"and",null,"hp"]
[]
[null,null,"Number of condensor fans:",null,null,null,null,null,"and",null,"hp"]
[]
[null,null,"Retrofit (upgrading existing, functional equipment)  ",null,null,null,null,null,null,null,null,1200,null,{"$f":"M100*L100","v":0}]
[null,null,"New or Replacement (factory-installed)",null,null,null,null,null,null,null,null,500,null,{"$f":"M101*L101","v":0}]
[]
[null,"Requested incentives are subject to per-site, per-year incentive limits. See Terms & Conditions for details."]
[null,"TOTALS FOR GROCERY",null,null,null,null,null,null,null,null,null,null,null,"TOTAL REQUESTED \nINCENTIVES","TOTAL\nINSTALLED COST"]
[null,null,null,null,null,null,null,null,null,null,null,null,null,{"$f":"SUM(N14:N17,N24:N27,N29:N30,N33:N35,N44:N46,N52:N55,N63:N66,N68,N71:N72,N74:N75,N80:N81,N83:N85,N100:N101)","v":0},{"$f":"SUM(O14:O17,O24:O27,O29:O30,O33:O35,O44:O46,O52:O55,O63:O66,O68,O71:O72,O74:O75,O80:O81,O83:O85,O100:O101)","v":0}]
[]
[]
[]
[]
[]
[]
[]
[null,null,null,null,null,null,null," "]

{"sheet":"Lodging & Foodservice Equipment","index":8,"n_rows":144,"n_cols":18,"rows_kept":144,"cut":false,"hidden":false,"merged":[[132,2,132,13],[109,1,111,1],[109,2,109,13],[99,2,99,13],[98,2,98,13],[97,14,97,17],[100,2,100,13],[103,2,103,13],[97,1,103,1],[101,9,101,13],[101,2,102,8],[102,9,102,13],[104,1,104,17],[105,1,105,17],[64,17,74,17],[64,16,74,16],[64,15,74,15],[64,14,74,14],[64,1,74,1],[81,2,82,13],[83,2,83,13],[84,2,84,4],[84,5,84,8],[84,9,84,13],[80,1,93,1],[80,14,89,17],[87,9,87,13],[88,2,88,4],[88,5,88,8],[88,9,88,13],[89,2,89,4],[89,5,89,8],[89,9,89,13],[90,2,90,13],[91,2,91,13],[85,2,85,4],[85,5,85,8],[73,9,73,13],[138,2,138,13],[137,2,137,13],[136,2,136,13],[135,2,135,13],[133,2,133,13],[107,1,107,17],[108,2,108,13],[118,14,120,17],[119,2,119,13],[120,2,120,6],[120,7,120,13],[121,2,121,6],[121,7,121,13],[122,2,122,6],[122,7,122,13],[123,2,123,6],[133,1,138,1],[118,1,124,1],[118,2,118,13],[124,2,124,6],[124,7,124,13],[123,7,123,13],[117,2,117,13],[131,1,131,17],[145,1,145,17],[94,2,94,13],[58,1,63,1],[34,7,34,9],[80,2,80,13],[51,1,51,17],[37,2,37,13],[38,2,38,13],[142,1,143,15],[141,1,141,17],[54,2,54,13],[48,2,48,13],[125,2,125,13],[79,2,79,13],[34,10,34,12],[47,2,47,13],[110,2,110,13],[111,2,111,13],[112,1,114,1],[133,14,133,17],[134,2,134,13],[44,2,44,13],[44,14,44,17],[45,2,45,13],[10,1,10,17],[36,2,36,13],[39,2,39,13],[11,2,11,13],[26,10,26,12],[29,3,30,4],[33,3,34,4],[33,5,34,6],[33,7,33,9],[12,2,12,13],[33,10,33,12],[12,1,19,1],[24,2,24,8],[26,3,26,4],[12,14,19,14],[12,15,19,15],[12,16,19,16],[20,2,21,13],[29,5,30,6],[12,17,19,17],[26,5,26,6],[26,7,26,9],[16,2,17,4],[18,2,18,4],[20,14,20,17],[22,2,22,4],[29,10,29,12],[30,10,30,12],[23,2,23,4],[24,9,24,11],[27,7,27,9],[27,10,27,12],[30,7,30,9],[27,3,28,4],[27,5,28,6],[29,7,29,9],[28,7,28,9],[28,10,28,12],[31,5,32,6],[58,14,58,17],[78,1,78,17],[64,2,64,13],[31,10,32,12],[31,7,32,9],[31,3,32,4],[40,1,43,1],[40,2,40,13],[40,14,40,17],[41,2,41,13],[42,2,42,13],[43,2,43,13],[55,2,55,13],[53,1,55,1],[53,14,53,17],[52,2,52,13],[56,2,56,13],[57,2,57,13],[20,1,39,1],[59,2,59,13],[63,2,63,13],[68,2,68,13],[44,1,47,1],[46,2,46,13],[115,2,115,13],[116,2,116,13],[58,2,58,13],[65,2,66,13],[53,2,53,13],[112,2,112,13],[113,2,113,13],[114,2,114,13],[62,2,62,13],[61,2,61,13],[60,2,60,13],[97,2,97,13],[95,2,95,13],[96,2,96,13],[67,2,67,13],[93,2,93,13],[85,9,85,13],[86,2,86,4],[86,5,86,8],[86,9,86,13],[87,2,87,4],[87,5,87,8],[74,9,74,13],[72,9,72,13],[71,9,71,13],[70,9,70,13],[69,9,69,13],[94,1,96,1],[74,2,74,4],[73,2,73,4],[72,2,72,4],[71,2,71,4],[70,2,70,4],[69,2,69,4],[74,5,74,8],[73,5,73,8],[72,5,72,8],[71,5,71,8],[70,5,70,8],[69,5,69,8],[92,2,92,13]]}
[]
[null,"Standard Incentives"]
[null,"Existing Buildings | Incentive Application | Form 120P"]
[]
[]
[null,"TRC is a Program Management Contractor for Energy Trust of Oregon."]
[]
[null,null,null,null,null,null,null,null,null,null,null,null,null,null,"Program Use Only",null,null,{"$f":"Version","v":"v2025.2"}]
[null,null,null,null,null,null,null,null,null,null,null,null,null,null,"Reference ID",{"$f":"IF(ReferenceID=\"\",\"\",ReferenceID)","v":""},"PTID",{"$f":"IF(PTID=\"\",\"\",PTID)","v":""}]
[]
[null,"LODGING AND FOODSERVICE"]
[null,"EQUIPMENT","REQUIREMENTS",null,null,null,null,null,null,null,null,null,null,null,"INCENTIVE PER UNIT","QUANTITY","INCENTIVE\nTOTAL","INSTALLED\nCOST"]
[null," Commercial Pool\n Cover ",null,null,null,null,null,null,null,null,null,null,null,null,6,null,{"$f":"O13*P13","v":0}]
[]
[]
[]
[null,null,"  Pool Location: "]
[]
[null,null,"  Pool Heater Type:"]
[]
[null," Commercial\n Swimming Pool\n Heater ",null,null,null,null,null,null,null,null,null,null,null,null,"Minimum Pool Area Requirements:"]
[]
[null,null,"    Pool Location:"]
[null,null,"    Pool Cover:"]
[null,null,"Number of heaters serving the pool:"]
[]
[null,null,null,"Covered Pool",null,"Heater Type",null,"Pool Location",null,null,"Minimum Required Pool sq. ft."]
[null,null,null,"No",null,"Condensing",null,"Indoor",null,null,1275]
[null,null,null,null,null,null,null,"Outdoor",null,null,700]
[null,null,null,"Yes",null,"Condensing",null,"Indoor",null,null,2150]
[null,null,null,null,null,null,null,"Outdoor",null,null,1050]
[null,null,null,"No",null,"Non-condensing",null,"Indoor or Outdoor",null,null,500]
[]
[null,null,null,"Yes",null,"Non-condensing",null,"Indoor",null,null,850]
[null,null,null,null,null,null,null,"Outdoor",null,null,500]
[]
[null,null,"Non-condensing Heater, Covered",null,null,null,null,null,null,null,null,null,null,null,0.9,null,{"$f":"P37*O37","v":0}]
[null,null,"Non-condensing Heater, Not covered",null,null,null,null,null,null,null,null,null,null,null,1,null,{"$f":"P38*O38","v":0}]
[null,null,"Condensing Heater, Covered",null,null,null,null,null,null,null,null,null,null,null,3,null,{"$f":"P39*O39","v":0}]
[null,null,"Condensing Heater, Not covered",null,null,null,null,null,null,null,null,null,null,null,5,null,{"$f":"P40*O40","v":0}]
[null," Automatic\n Conveyor Broiler "]
[null,null," Total conveyor belt width less than 20”",null,null,null,null,null,null,null,null,null,null,null,2500,null,{"$f":"P42*O42","v":0}]
[null,null," Total conveyor belt width 20” to 26”",null,null,null,null,null,null,null,null,null,null,null,3000,null,0]
[null,null," Total conveyor belt width greater than 26”",null,null,null,null,null,null,null,null,null,null,null,3500,null,0]
[null," Electric\n Combination Oven -\n 5-40 Pan Capacity"]
[null,null,"5-14 pan capacity",null,null,null,null,null,null,null,null,null,null,null,1000,null,{"$f":"P46*O46","v":0}]
[null,null,"15-28 pan capacity",null,null,null,null,null,null,null,null,null,null,null,600,null,{"$f":"P47*O47","v":0}]
[null,null,"29-40 pan capacity",null,null,null,null,null,null,null,null,null,null,null,3000,null,{"$f":"P48*O48","v":0}]
[null," Gas\n Combination Oven -\n 5-40 Pan Capacity",null,null,null,null,null,null,null,null,null,null,null,null,500,null,{"$f":"P49*O49","v":0}]
[]
[]
[null,"LODGING AND FOODSERVICE continued"]
[null,"EQUIPMENT","REQUIREMENTS",null,null,null,null,null,null,null,null,null,null,null,"INCENTIVE PER UNIT","QUANTITY","INCENTIVE\nTOTAL","INSTALLED\nCOST"]
[null," Double Rack\n Gas Oven"]
[null,null,"Installed at sites with gas service from a participating utility",null,null,null,null,null,null,null,null,null,null,null,900,null,{"$f":"P55*O55","v":0}]
[null,null,"Installed at sites where only electricity is provided by a\n participating utility (propane or other gas)",null,null,null,null,null,null,null,null,null,null,null,600,null,{"$f":"P56*O56","v":0}]
[null," Electric\n Convection Oven-\n Full-size",null,null,null,null,null,null,null,null,null,null,null,null,1000,null,{"$f":"P57*O57","v":0}]
[null," Gas Convection\n Oven - Full-size",null,null,null,null,null,null,null,null,null,null,null,null,500,null,{"$f":"P58*O58","v":0}]
[null," Commercial Ice\n Maker "]
[null,null,"Batch Self-contained Unit (SCU) - 200-4,000 lbs. per day",null,null,null,null,null,null,null,null,null,null,null,180,null,{"$f":"P60*O60","v":0}]
[null,null,"Batch Remote Condensing Unit (RCU) - 988-4,000 lbs. per day",null,null,null,null,null,null,null,null,null,null,null,400,null,0]
[null,null,"Continuous RCU - 800-4,000 lbs. per day",null,null,null,null,null,null,null,null,null,null,null,400,null,0]
[null,null,"Batch Ice-Making Head (IMH) - 1,500-4,000 lbs. per day",null,null,null,null,null,null,null,null,null,null,null,400,null,{"$f":"P63*O63","v":0}]
[null,null,"Continuous Ice-Making Head (IMH) - 820-4,000 lbs. per day",null,null,null,null,null,null,null,null,null,null,null,400,null,0]
[null," Gas Steam\n Cooker",null,null,null,null,null,null,null,null,null,null,null,null,1000,null,{"$f":"P65*O65","v":0}]
[]
[]
[null,null,"Steam cooker type:",null,null,null,null,null,"What is the type of steam cooker? "]
[null,null,"Gas Steam Cooker Requirements"]
[null,null,"Number of Pans",null,null,"Cooking Energy Efficiency",null,null,null,"Idle Energy Rate"]
[null,null,3,null,null,"39% or higher",null,null,null,"2,440 Btu/h or lower"]
[null,null,4,null,null,"49% or higher",null,null,null,"5,850 Btu/h or lower"]
[null,null,5,null,null,"49% or higher",null,null,null,"7,027 Btu/h or lower"]
[null,null,6,null,null,"43% or higher",null,null,null,"2,770 Btu/h or lower"]
[null,null,"More than 6",null,null,"48% or higher",null,null,null,"11,287 Btu/h or lower"]
[]
[]
[]
[null,"LODGING AND FOODSERVICE continued"]
[null,"EQUIPMENT","REQUIREMENTS",null,null,null,null,null,null,null,null,null,null,null,"INCENTIVE PER UNIT","QUANTITY","INCENTIVE\nTOTAL","INSTALLED\nCOST"]
[null," Electric Steam\n Cooker"]
[]
[]
[null,null,"Electric Steam Cooker Requirements"]
[null,null,"Number of Pans",null,null,"Cooking Energy Efficiency",null,null,null,"Idle Energy Rate"]
[null,null,3,null,null,"55% or higher",null,null,null,"235 Watts or lower"]
[null,null,4,null,null,"55% or higher",null,null,null,"325 Watts or lower"]
[null,null,5,null,null,"69% or higher",null,null,null,"280 Watts or lower"]
[null,null,6,null,null,"61% or higher",null,null,null,"300 Watts or lower"]
[null,null,"More than 6",null,null,"67% or higher",null,null,null,"330 Watts or lower"]
[null,null,"Boilerless (3-4 Pans)",null,null,null,null,null,null,null,null,null,null,null,400,null,{"$f":"P91*O91","v":0}]
[null,null,"Boilerless (5 or more Pans)",null,null,null,null,null,null,null,null,null,null,null,600,null,{"$f":"P92*O92","v":0}]
[null,null,"Steam Generator (3 or more Pans) - installed in schools",null,null,null,null,null,null,null,null,null,null,null,600,null,0]
[null,null,"Steam Generator (3 or more Pans) - installed in non-school sites",null,null,null,null,null,null,null,null,null,null,null,2000,0,0]
[null," Commercial Vent\n Hood with Demand\n Controlled\n Ventilation "]
[null,null,"Gas heat or electric heat",null,null,null,null,null,null,null,null,null,null,null,1500,null,{"$f":"P96*O96","v":0}]
[null,null,"Gas or non-electric heat in electric only territory",null,null,null,null,null,null,null,null,null,null,null,900,null,{"$f":"P97*O97","v":0}]
[null," Commercial\n Stationary and \n Conveyor \n Dishwasher"]
[null,null,"Single-Tank Conveyor (High or Dual Temp)",null,null,null,null,null,null,null,null,null,null,null,900,null,{"$f":"P99*O99","v":0}]
[null,null," Multi-Tank Conveyor (High or Dual Temp)",null,null,null,null,null,null,null,null,null,null,null,900,null,{"$f":"P100*O100","v":0}]
[null,null," Single Tank, Door Type (High or Dual Temp)",null,null,null,null,null,null,null,null,null,null,null,900,null,0]
[null,null," Undercounter Type",null,null,null,null,null,null,"Low Temp",null,null,null,null,750,null,0]
[null,null,null,null,null,null,null,null,null,"High or Dual Temp",null,null,null,null,750,null,0]
[null,null," Pot, Pan and Utensil Type - PPU (High or Dual Temp)",null,null,null,null,null,null,null,null,null,null,null,1200,null,0]
[]
[]
[]
[null,"LODGING AND FOODSERVICE continued"]
[null,"EQUIPMENT","REQUIREMENTS",null,null,null,null,null,null,null,null,null,null,null,"INCENTIVE PER UNIT","QUANTITY","INCENTIVE\nTOTAL","INSTALLED\nCOST"]
[null," High Efficiency \n Gas Fryer"]
[null,null,"Standard Vat",null,null,null,null,null,null,null,null,null,null,null,1500,null,{"$f":"P111*O111","v":0}]
[null,null,"Large Vat",null,null,null,null,null,null,null,null,null,null,null,2000,null,{"$f":"P112*O112","v":0}]
[null," High Efficiency\n Electric Fryer"]
[null,null,"Standard or Split Vat",null,null,null,null,null,null,null,null,null,null,null,800,null,{"$f":"P114*O114","v":0}]
[null,null,"Large Vat",null,null,null,null,null,null,null,null,null,null,null,1000,null,{"$f":"P115*O115","v":0}]
[null," Electric Griddle - \n Single-sided",null,null,null,null,null,null,null,null,null,null,null,null,1000,null,{"$f":"P116*O116","v":0}]
[null," Gas Griddle -\n Single-sided",null,null,null,null,null,null,null,null,null,null,null,null,1000,null,0]
[null," Electric Hot Food\n Cabinet - Half-size",null,null,null,null,null,null,null,null,null,null,null,null,150,null,{"$f":"P118*O118","v":0}]
[null," Commercial\n Laundry Washer,\n Common Areas"]
[null,null,"Water Heating Fuel Source: "]
[null,null,"Dryer Type",null,null,null,null,"Participating Utility"]
[null,null,"Electric",null,null,null,null,"Gas and Electric",null,null,null,null,null,null,400,null,{"$f":"P122*O122","v":0}]
[null,null,"Gas",null,null,null,null,"Gas and Electric",null,null,null,null,null,null,350,null,{"$f":"P123*O123","v":0}]
[null,null,"Electric/ Gas",null,null,null,null,"Electric Only",null,null,null,null,null,null,150,null,{"$f":"P124*O124","v":0}]
[null,null,"Electric/ Gas",null,null,null,null,"Gas Only",null,null,null,null,null,null,100,null,{"$f":"P125*O125","v":0}]
[null," Two-stage Gas\n Valve on Clothes\n Dryers",null,null,null,null,null,null,null,null,null,null,null,null,700,null,{"$f":"P126*O126","v":0}]
[]
[]
[]
[]
[]
[null,"LODGING AND FOODSERVICE continued"]
[null,"EQUIPMENT","REQUIREMENTS",null,null,null,null,null,null,null,null,null,null,null,"INCENTIVE PER UNIT","QUANTITY","INCENTIVE\nTOTAL","INSTALLED\nCOST"]
[null," Ozone Laundry\n Systems"]
[null,null,"Total laundry capacity is less than 75 lbs:",null,null,null,null,null,null,null,null,null,null,null,5000,null,{"$f":"P135*O135","v":0}]
[null,null,"Total laundry capacity is between 75 and 125 lbs:",null,null,null,null,null,null,null,null,null,null,null,7500,null,{"$f":"P136*O136","v":0}]
[null,null,"Total laundry capacity is between 126 and 400 lbs:",null,null,null,null,null,null,null,null,null,null,null,15000,null,{"$f":"P137*O137","v":0}]
[null,null,"Total laundry capacity is between 401 and 600 lbs:",null,null,null,null,null,null,null,null,null,null,null,25000,null,{"$f":"P138*O138","v":0}]
[null,null,"Total laundry capacity is greater than 600 lbs:",null,null,null,null,null,null,null,null,null,null,null,30000,null,{"$f":"P139*O139","v":0}]
[]
[]
[null,"Requested incentives are subject to per-site, per-year incentive limits. See Terms & Conditions for details."]
[null,"TOTALS FOR LODGING AND FOODSERVICE",null,null,null,null,null,null,null,null,null,null,null,null,null,null,"TOTAL REQUESTED \nINCENTIVES","TOTAL\nINSTALLED COST"]
[null,null,null,null,null,null,null,null,null,null,null,null,null,null,null,null,{"$f":"SUM(Q13:Q20,Q37:Q40,Q42:Q44,Q46:Q49,Q55:Q58,Q60:Q75,Q91:Q94,Q111:Q112,Q114:Q115,Q122:Q126,Q135:Q139,Q96:Q97,Q99:Q104:Q104,Q116:Q117:Q118)","v":0},{"$f":"SUM(R13:R20,R37:R40,R42:R44,R46:R49,R55:R58,R60:R75,R91:R94,R96:R97,R99:R104,R111:R112,R114:R115,R116:R118,R122:R126,R135:R139)","v":0}]

{"sheet":"Computer Equipment","index":9,"n_rows":26,"n_cols":12,"rows_kept":26,"cut":false,"hidden":true,"merged":[[35,1,36,11],[28,2,28,11],[29,2,29,11],[30,2,30,11],[31,2,31,11],[32,2,32,11],[10,1,10,11],[33,2,33,11],[34,2,34,11],[21,1,21,11],[12,1,18,1],[12,2,12,7],[17,2,17,7],[18,2,18,7],[12,8,16,11],[13,2,13,3],[22,1,23,9],[13,4,13,5],[11,2,11,7]]}
[]
[null,"Standard Incentives"]
[null,"Existing Buildings | Incentive Application | Form 120P"]
[]
[]
[null,"TRC is a Program Management Contractor for Energy Trust of Oregon."]
[]
[null,null,null,null,null,null,null,null,"Program Use Only",null,null,{"$f":"Version","v":"v2025.2"}]
[null,null,null,null,null,null,null,null,"Reference ID",{"$f":"IF(ReferenceID=\"\",\"\",ReferenceID)","v":""},"PTID",{"$f":"IF(PTID=\"\",\"\",PTID)","v":""}]
[]
[null,"COMPUTER"]
[null,"EQUIPMENT","REQUIREMENTS",null,null,null,null,null,"INCENTIVE \nPER UNIT","QUANTITY","INCENTIVE\nTOTAL","INSTALLED\nCOST"]
[null," Server/Telecom\n Room - \n Mini-Split Air\n Conditioning"]
[null,null,"Server closet design load (kW)"]
[]
[null,null,"SEER rating",null,"OR","SEER2 rating"]
[]
[null,null,"Server Closet Mini-split Air Conditioner ",null,null,null,null,null,250,null,{"$f":"I18*J18","v":0}]
[null,null,"Server Closet Mini-split Heat Pump",null,null,null,null,null,250,null,{"$f":"I19*J19","v":0}]
[]
[]
[null,"Requested incentives are subject to per-site, per-year incentive limits. See Terms & Conditions for details."]
[null,"TOTALS FOR COMPUTER",null,null,null,null,null,null,null,null,"TOTAL REQUESTED \nINCENTIVES","TOTAL\nINSTALLED COST"]
[null,null,null,null,null,null,null,null,null,null,{"$f":"SUM(K18:K19)","v":0},{"$f":"SUM(L18:L19)","v":0}]
[]
[null," "]

{"sheet":"Service Shop & Warehouse","index":10,"n_rows":22,"n_cols":11,"rows_kept":22,"cut":false,"hidden":false,"merged":[[25,2,25,10],[17,1,17,10],[28,2,28,10],[10,1,10,10],[18,1,19,8],[24,2,24,10],[12,2,12,6],[15,2,15,6],[12,1,14,1],[12,7,14,7],[12,8,14,8],[12,9,14,9],[12,10,14,10],[13,2,13,3],[13,4,13,5],[29,2,29,10],[30,2,30,10],[31,1,32,10],[26,2,26,10],[27,2,27,10]]}
[]
[null,"Standard Incentives"]
[null,"Existing Buildings | Incentive Application | Form 120P"]
[]
[]
[null,"TRC is a Program Management Contractor for Energy Trust of Oregon."]
[]
[null,null,null,null,null,null,null,"Program Use Only",null,null,{"$f":"Version","v":"v2025.2"}]
[null,null,null,null,null,null,null,"Reference ID",{"$f":"IF(ReferenceID=\"\",\"\",ReferenceID)","v":""},"PTID",{"$f":"IF(PTID=\"\",\"\",PTID)","v":""}]
[]
[null,"SERVICE SHOPS AND WAREHOUSES"]
[null,"EQUIPMENT","REQUIREMENTS",null,null,null,null,"INCENTIVE PER UNIT","QUANTITY","INCENTIVE\nTOTAL","INSTALLED\nCOST"]
[null," Inverter-Driven\n Welder ",null,null,null,null,null,2400,null,{"$f":"H13*I13","v":0}]
[null,null,"      Welder Amp Rating: "]
[]
[null," Forklift Battery\n Charger ",null,null,null,null,null,2000,null,{"$f":"H16*I16","v":0}]
[]
[null,"Requested incentives are subject to per-site, per-year incentive limits. See Terms & Conditions for details."]
[null,"TOTALS FOR SERVICE SHOPS AND WAREHOUSES",null,null,null,null,null,null,null,"TOTAL REQUESTED\nINCENTIVES","TOTAL\nINSTALLED COST"]
[null,null,null,null,null,null,null,null,null,{"$f":"SUM(J13:J16)","v":0},{"$f":"SUM(K13:K16)","v":0}]
[]
[null," "]

{"sheet":"Admin Tools","index":11,"n_rows":0,"n_cols":0,"rows_kept":0,"cut":false,"hidden":false,"merged":[]}

{"sheet":"Lookups","index":12,"n_rows":54,"n_cols":5,"rows_kept":54,"cut":false,"hidden":true,"merged":[]}
["Heat"]
[0,"None"]
[1,"Electric"]
[2,"Gas"]
[3,"Other"]
[]
[]
["Building Use Type"]
["(select)"]
["Assembly"]
["Athletic Club"]
["Auto Services"]
["College/University"]
["Data Center"]
["Grocery"]
["Hospital"]
["Laundry / Dry Cleaners"]
["Lodging / Hotel / Motel"]
["Manufacturing"]
["Multifamily / Residential"]
["Office"]
["Other"]
["Parking Structure"]
["Religious / Spiritual"]
["Restaurant"]
["Retail"]
["Retirement Home"]
["Schools K-12"]
["Warehouse",null,null,null,{"$f":"B29&\", \"&C29&\", \"&D29","v":", , "}]
[]
[]
["Electric Utility"]
[0,"(select)"]
[1,"PGE"]
[2,"Pacific Power"]
[3,"Other"]
[]
["Gas Utility"]
[0,"(select)"]
[1,"NW Natural"]
[2,"Avista"]
[3,"Cascade Natural Gas"]
[4,"Other"]
[]
["Fuel Source"]
[0,"(select)"]
[1,"Electric"]
[2,"Gas"]
[3,"Other"]
[]
["Heat Pump"]
["(Select Heat Type)"]
[{"$f":"IF(HEAT_NUM=1,\"Heat Pump\",IF(HEAT_NUM=2,\"Gas Heat\",\"Other Heat\"))","v":"Other Heat"}]
[{"$f":"IF(HEAT_NUM=1,\"Other Electric Heat\",\"Other Heat\")","v":"Other Heat"}]

{"sheet":"Showerhead-wand Lookup","index":13,"n_rows":40,"n_cols":6,"rows_kept":40,"cut":false,"hidden":true,"merged":[[0,0,0,5]]}
["Showerhead/Showerwand"]
["Combined","Electric Utility","Gas Utility","Water Heating","Combined","Incentive"]
[{"$f":"CONCATENATE(B3,C3,D3)","v":"000"},{"$f":"IF(OR(ELE_NUM=1,ELE_NUM=2),1,IF(ELE_NUM=0,0,2))","v":0},{"$f":"IF(OR(GAS_NUM=1,GAS_NUM=2,GAS_NUM=3),1,(IF(GAS_NUM=0,0,2)))","v":0},{"$f":"WATERHEAT_NUM","v":0},{"$f":"VLOOKUP(A3,A5:F40,5)","v":"No Electric Selection, No Gas Selection, No Water Heating Selection"},7]
["Combined","Electric Utility","Gas Utility","Water Heating","Combined","Incentive"]
["000","No Electric Selection","No Gas Selection","No Water Heating Selection",{"$f":"B5&\", \"&C5&\", \"&D5","v":"No Electric Selection, No Gas Selection, No Water Heating Selection"}]
["001","No Electric Selection","No Gas Selection","Electric Water Heating",{"$f":"B6&\", \"&C6&\", \"&D6","v":"No Electric Selection, No Gas Selection, Electric Water Heating"}]
["002","No Electric Selection","No Gas Selection","Gas Water Heating","No Electric Selection, No Gas Selection, Gas Water Heating"]
["003","No Electric Selection","No Gas Selection","Other Water Heating",{"$f":"B8&\", \"&C8&\", \"&D8","v":"No Electric Selection, No Gas Selection, Other Water Heating"},"Does Not Qualify - Site's water heating fuel is not electric or gas"]
["010","No Electric Selection","Qualifying Gas","No Water Heating Selection","No Electric Selection, Qualifying Gas, No Water Heating Selection"]
["011","No Electric Selection","Qualifying Gas","Electric Water Heating","No Electric Selection, Qualifying Gas, Electric Water Heating"]
["012","No Electric Selection","Qualifying Gas","Gas Water Heating","No Electric Selection, Qualifying Gas, Gas Water Heating"]
["013","No Electric Selection","Qualifying Gas","Other Water Heating","No Electric Selection, Qualifying Gas, Other Water Heating","Does Not Qualify - Site's water heating fuel is not electric or gas"]
["020","No Electric Selection","Other Gas","No Water Heating Selection","No Electric Selection, Other Gas, No Water Heating Selection"]
["021","No Electric Selection","Other Gas","Electric Water Heating","No Electric Selection, Other Gas, Electric Water Heating"]
["022","No Electric Selection","Other Gas","Gas Water Heating","No Electric Selection, Other Gas, Gas Water Heating","Does Not Qualify - Site's water heating fuel is not provided by a participating utility"]
["023","No Electric Selection","Other Gas","Other Water Heating","No Electric Selection, Other Gas, Other Water Heating","Does Not Qualify - Site's water heating fuel is not electric or gas"]
["100","Qualifying Electric","No Gas Selection","No Water Heating Selection","Qualifying Electric, No Gas Selection, No Water Heating Selection"]
["101","Qualifying Electric","No Gas Selection","Electric Water Heating","Qualifying Electric, No Gas Selection, Electric Water Heating",7]
["102","Qualifying Electric","No Gas Selection","Gas Water Heating","Qualifying Electric, No Gas Selection, Gas Water Heating"]
["103","Qualifying Electric","No Gas Selection","Other Water Heating","Qualifying Electric, No Gas Selection, Other Water Heating","Does Not Qualify - Site's water heating fuel is not electric or gas"]
["110","Qualifying Electric","Qualifying Gas","No Water Heating Selection","Qualifying Electric, Qualifying Gas, No Water Heating Selection"]
["111","Qualifying Electric","Qualifying Gas","Electric Water Heating","Qualifying Electric, Qualifying Gas, Electric Water Heating",7]
["112","Qualifying Electric","Qualifying Gas","Gas Water Heating","Qualifying Electric, Qualifying Gas, Gas Water Heating",7]
["113","Qualifying Electric","Qualifying Gas","Other Water Heating","Qualifying Electric, Qualifying Gas, Other Water Heating","Does Not Qualify - Site's water heating fuel is not electric or gas"]
["120","Qualifying Electric","Other Gas","No Water Heating Selection","Qualifying Electric, Other Gas, No Water Heating Selection"]
["121","Qualifying Electric","Other Gas","Electric Water Heating","Qualifying Electric, Other Gas, Electric Water Heating",7]
["122","Qualifying Electric","Other Gas","Gas Water Heating","Qualifying Electric, Other Gas, Gas Water Heating","Does Not Qualify - Site's water heating fuel is not provided by a participating utility"]
["123","Qualifying Electric","Other Gas","Other Water Heating","Qualifying Electric, Other Gas, Other Water Heating","Does Not Qualify - Site's water heating fuel is not electric or gas"]
["200","Other Electric","No Gas Selection","No Water Heating Selection",{"$f":"B29&\", \"&C29&\", \"&D29","v":"Other Electric, No Gas Selection, No Water Heating Selection"}]
["201","Other Electric","No Gas Selection","Electric Water Heating","Other Electric, No Gas Selection, Electric Water Heating","Does Not Qualify - Site's water heating fuel is not provided by a participating utility"]
["202","Other Electric","No Gas Selection","Gas Water Heating","Other Electric, No Gas Selection, Gas Water Heating"]
["203","Other Electric","No Gas Selection","Other Water Heating","Other Electric, No Gas Selection, Other Water Heating","Does Not Qualify - Site's water heating fuel is not electric or gas"]
["210","Other Electric","Qualifying Gas","No Water Heating Selection","Other Electric, Qualifying Gas, No Water Heating Selection"]
["211","Other Electric","Qualifying Gas","Electric Water Heating","Other Electric, Qualifying Gas, Electric Water Heating","Does Not Qualify - Site's water heating fuel is not provided by a participating utility"]
["212","Other Electric","Qualifying Gas","Gas Water Heating","Other Electric, Qualifying Gas, Gas Water Heating",7]
["213","Other Electric","Qualifying Gas","Other Water Heating","Other Electric, Qualifying Gas, Other Water Heating","Does Not Qualify - Site's water heating fuel is not electric or gas"]
["220","Other Electric","Other Gas","No Water Heating Selection","Other Electric, Other Gas, No Water Heating Selection","Does Not Qualify - Site's utility providers are not participating utilities"]
["221","Other Electric","Other Gas","Electric Water Heating","Other Electric, Other Gas, Electric Water Heating","Does Not Qualify - Site's utility providers are not participating utilities"]
["222","Other Electric","Other Gas","Gas Water Heating","Other Electric, Other Gas, Gas Water Heating","Does Not Qualify - Site's utility providers are not participating utilities"]
["223","Other Electric","Other Gas","Other Water Heating","Other Electric, Other Gas, Other Water Heating","Does Not Qualify - Site's utility providers are not participating utilities"]

{"sheet":"Bathroom Aerator Lookup","index":14,"n_rows":40,"n_cols":6,"rows_kept":40,"cut":false,"hidden":true,"merged":[[0,0,0,5]]}
["Bathroom Faucet Aerator"]
["Combined","Electric Utility","Gas Utility","Water Heating","Combined","Incentive"]
[{"$f":"CONCATENATE(B3,C3,D3)","v":"000"},{"$f":"IF(OR(ELE_NUM=1,ELE_NUM=2),1,IF(ELE_NUM=0,0,2))","v":0},{"$f":"IF(OR(GAS_NUM=1,GAS_NUM=2,GAS_NUM=3),1,(IF(GAS_NUM=0,0,2)))","v":0},{"$f":"WATERHEAT_NUM","v":0},{"$f":"VLOOKUP(A3,A5:F40,5)","v":"No Electric Selection, No Gas Selection, No Water Heating Selection"},{"$f":"VLOOKUP(A3,A5:F40,6)","v":0}]
["Combined","Electric Utility","Gas Utility","Water Heating","Combined","Incentive"]
["000","No Electric Selection","No Gas Selection","No Water Heating Selection",{"$f":"B5&\", \"&C5&\", \"&D5","v":"No Electric Selection, No Gas Selection, No Water Heating Selection"}]
["001","No Electric Selection","No Gas Selection","Electric Water Heating",{"$f":"B6&\", \"&C6&\", \"&D6","v":"No Electric Selection, No Gas Selection, Electric Water Heating"}]
["002","No Electric Selection","No Gas Selection","Gas Water Heating","No Electric Selection, No Gas Selection, Gas Water Heating"]
["003","No Electric Selection","No Gas Selection","Other Water Heating","No Electric Selection, No Gas Selection, Other Water Heating","Does Not Qualify - Site's water heating fuel is not electric or gas"]
["010","No Electric Selection","Qualifying Gas","No Water Heating Selection","No Electric Selection, Qualifying Gas, No Water Heating Selection"]
["011","No Electric Selection","Qualifying Gas","Electric Water Heating","No Electric Selection, Qualifying Gas, Electric Water Heating"]
["012","No Electric Selection","Qualifying Gas","Gas Water Heating","No Electric Selection, Qualifying Gas, Gas Water Heating"]
["013","No Electric Selection","Qualifying Gas","Other Water Heating","No Electric Selection, Qualifying Gas, Other Water Heating","Does Not Qualify - Site's water heating fuel is not electric or gas"]
["020","No Electric Selection","Other Gas","No Water Heating Selection","No Electric Selection, Other Gas, No Water Heating Selection"]
["021","No Electric Selection","Other Gas","Electric Water Heating","No Electric Selection, Other Gas, Electric Water Heating"]
["022","No Electric Selection","Other Gas","Gas Water Heating","No Electric Selection, Other Gas, Gas Water Heating","Does Not Qualify - Site's water heating fuel is not provided by a participating utility"]
["023","No Electric Selection","Other Gas","Other Water Heating","No Electric Selection, Other Gas, Other Water Heating","Does Not Qualify - Site's water heating fuel is not electric or gas"]
["100","Qualifying Electric","No Gas Selection","No Water Heating Selection","Qualifying Electric, No Gas Selection, No Water Heating Selection"]
["101","Qualifying Electric","No Gas Selection","Electric Water Heating","Qualifying Electric, No Gas Selection, Electric Water Heating",3]
["102","Qualifying Electric","No Gas Selection","Gas Water Heating","Qualifying Electric, No Gas Selection, Gas Water Heating"]
["103","Qualifying Electric","No Gas Selection","Other Water Heating","Qualifying Electric, No Gas Selection, Other Water Heating","Does Not Qualify - Site's water heating fuel is not electric or gas"]
["110","Qualifying Electric","Qualifying Gas","No Water Heating Selection","Qualifying Electric, Qualifying Gas, No Water Heating Selection"]
["111","Qualifying Electric","Qualifying Gas","Electric Water Heating","Qualifying Electric, Qualifying Gas, Electric Water Heating",3]
["112","Qualifying Electric","Qualifying Gas","Gas Water Heating","Qualifying Electric, Qualifying Gas, Gas Water Heating",3]
["113","Qualifying Electric","Qualifying Gas","Other Water Heating","Qualifying Electric, Qualifying Gas, Other Water Heating","Does Not Qualify - Site's water heating fuel is not electric or gas"]
["120","Qualifying Electric","Other Gas","No Water Heating Selection","Qualifying Electric, Other Gas, No Water Heating Selection"]
["121","Qualifying Electric","Other Gas","Electric Water Heating","Qualifying Electric, Other Gas, Electric Water Heating",3]
["122","Qualifying Electric","Other Gas","Gas Water Heating","Qualifying Electric, Other Gas, Gas Water Heating","Does Not Qualify - Site's water heating fuel is not provided by a participating utility"]
["123","Qualifying Electric","Other Gas","Other Water Heating","Qualifying Electric, Other Gas, Other Water Heating","Does Not Qualify - Site's water heating fuel is not electric or gas"]
["200","Other Electric","No Gas Selection","No Water Heating Selection",{"$f":"B29&\", \"&C29&\", \"&D29","v":"Other Electric, No Gas Selection, No Water Heating Selection"}]
["201","Other Electric","No Gas Selection","Electric Water Heating","Other Electric, No Gas Selection, Electric Water Heating","Does Not Qualify - Site's water heating fuel is not provided by a participating utility"]
["202","Other Electric","No Gas Selection","Gas Water Heating","Other Electric, No Gas Selection, Gas Water Heating"]
["203","Other Electric","No Gas Selection","Other Water Heating","Other Electric, No Gas Selection, Other Water Heating","Does Not Qualify - Site's water heating fuel is not electric or gas"]
["210","Other Electric","Qualifying Gas","No Water Heating Selection","Other Electric, Qualifying Gas, No Water Heating Selection"]
["211","Other Electric","Qualifying Gas","Electric Water Heating","Other Electric, Qualifying Gas, Electric Water Heating","Does Not Qualify - Site's water heating fuel is not provided by a participating utility"]
["212","Other Electric","Qualifying Gas","Gas Water Heating","Other Electric, Qualifying Gas, Gas Water Heating",3]
["213","Other Electric","Qualifying Gas","Other Water Heating","Other Electric, Qualifying Gas, Other Water Heating","Does Not Qualify - Site's water heating fuel is not electric or gas"]
["220","Other Electric","Other Gas","No Water Heating Selection","Other Electric, Other Gas, No Water Heating Selection","Does Not Qualify - Site's utility providers are not participating utilities"]
["221","Other Electric","Other Gas","Electric Water Heating","Other Electric, Other Gas, Electric Water Heating","Does Not Qualify - Site's utility providers are not participating utilities"]
["222","Other Electric","Other Gas","Gas Water Heating","Other Electric, Other Gas, Gas Water Heating","Does Not Qualify - Site's utility providers are not participating utilities"]
["223","Other Electric","Other Gas","Other Water Heating","Other Electric, Other Gas, Other Water Heating","Does Not Qualify - Site's utility providers are not participating utilities"]

{"sheet":"Kitchen Aerator Lookup","index":15,"n_rows":40,"n_cols":6,"rows_kept":40,"cut":false,"hidden":true,"merged":[[0,0,0,5]]}
["Kitchen Faucet Aerator"]
["Combined","Electric Utility","Gas Utility","Water Heating","Combined","Incentive"]
[{"$f":"CONCATENATE(B3,C3,D3)","v":"000"},{"$f":"IF(OR(ELE_NUM=1,ELE_NUM=2),1,IF(ELE_NUM=0,0,2))","v":0},{"$f":"IF(OR(GAS_NUM=1,GAS_NUM=2,GAS_NUM=3),1,(IF(GAS_NUM=0,0,2)))","v":0},{"$f":"WATERHEAT_NUM","v":0},{"$f":"VLOOKUP(A3,A5:F40,5)","v":"No Electric Selection, No Gas Selection, No Water Heating Selection"},{"$f":"VLOOKUP(A3,A5:F40,6)","v":0}]
["Combined","Electric Utility","Gas Utility","Water Heating","Combined","Incentive"]
["000","No Electric Selection","No Gas Selection","No Water Heating Selection",{"$f":"B5&\", \"&C5&\", \"&D5","v":"No Electric Selection, No Gas Selection, No Water Heating Selection"}]
["001","No Electric Selection","No Gas Selection","Electric Water Heating",{"$f":"B6&\", \"&C6&\", \"&D6","v":"No Electric Selection, No Gas Selection, Electric Water Heating"}]
["002","No Electric Selection","No Gas Selection","Gas Water Heating","No Electric Selection, No Gas Selection, Gas Water Heating"]
["003","No Electric Selection","No Gas Selection","Other Water Heating","No Electric Selection, No Gas Selection, Other Water Heating","Does Not Qualify - Site's water heating fuel is not electric or gas"]
["010","No Electric Selection","Qualifying Gas","No Water Heating Selection","No Electric Selection, Qualifying Gas, No Water Heating Selection"]
["011","No Electric Selection","Qualifying Gas","Electric Water Heating","No Electric Selection, Qualifying Gas, Electric Water Heating"]
["012","No Electric Selection","Qualifying Gas","Gas Water Heating","No Electric Selection, Qualifying Gas, Gas Water Heating"]
["013","No Electric Selection","Qualifying Gas","Other Water Heating","No Electric Selection, Qualifying Gas, Other Water Heating","Does Not Qualify - Site's water heating fuel is not electric or gas"]
["020","No Electric Selection","Other Gas","No Water Heating Selection","No Electric Selection, Other Gas, No Water Heating Selection"]
["021","No Electric Selection","Other Gas","Electric Water Heating","No Electric Selection, Other Gas, Electric Water Heating"]
["022","No Electric Selection","Other Gas","Gas Water Heating","No Electric Selection, Other Gas, Gas Water Heating","Does Not Qualify - Site's water heating fuel is not provided by a participating utility"]
["023","No Electric Selection","Other Gas","Other Water Heating","No Electric Selection, Other Gas, Other Water Heating","Does Not Qualify - Site's water heating fuel is not electric or gas"]
["100","Qualifying Electric","No Gas Selection","No Water Heating Selection","Qualifying Electric, No Gas Selection, No Water Heating Selection"]
["101","Qualifying Electric","No Gas Selection","Electric Water Heating","Qualifying Electric, No Gas Selection, Electric Water Heating",5]
["102","Qualifying Electric","No Gas Selection","Gas Water Heating","Qualifying Electric, No Gas Selection, Gas Water Heating"]
["103","Qualifying Electric","No Gas Selection","Other Water Heating","Qualifying Electric, No Gas Selection, Other Water Heating","Does Not Qualify - Site's water heating fuel is not electric or gas"]
["110","Qualifying Electric","Qualifying Gas","No Water Heating Selection","Qualifying Electric, Qualifying Gas, No Water Heating Selection"]
["111","Qualifying Electric","Qualifying Gas","Electric Water Heating","Qualifying Electric, Qualifying Gas, Electric Water Heating",5]
["112","Qualifying Electric","Qualifying Gas","Gas Water Heating","Qualifying Electric, Qualifying Gas, Gas Water Heating",5]
["113","Qualifying Electric","Qualifying Gas","Other Water Heating","Qualifying Electric, Qualifying Gas, Other Water Heating",5]
["120","Qualifying Electric","Other Gas","No Water Heating Selection","Qualifying Electric, Other Gas, No Water Heating Selection"]
["121","Qualifying Electric","Other Gas","Electric Water Heating","Qualifying Electric, Other Gas, Electric Water Heating",5]
["122","Qualifying Electric","Other Gas","Gas Water Heating","Qualifying Electric, Other Gas, Gas Water Heating","Does Not Qualify - Site's water heating fuel is not provided by a participating utility"]
["123","Qualifying Electric","Other Gas","Other Water Heating","Qualifying Electric, Other Gas, Other Water Heating","Does Not Qualify - Site's water heating fuel is not electric or gas"]
["200","Other Electric","No Gas Selection","No Water Heating Selection",{"$f":"B29&\", \"&C29&\", \"&D29","v":"Other Electric, No Gas Selection, No Water Heating Selection"}]
["201","Other Electric","No Gas Selection","Electric Water Heating","Other Electric, No Gas Selection, Electric Water Heating","Does Not Qualify - Site's water heating fuel is not provided by a participating utility"]
["202","Other Electric","No Gas Selection","Gas Water Heating","Other Electric, No Gas Selection, Gas Water Heating"]
["203","Other Electric","No Gas Selection","Other Water Heating","Other Electric, No Gas Selection, Other Water Heating","Does Not Qualify - Site's water heating fuel is not electric or gas"]
["210","Other Electric","Qualifying Gas","No Water Heating Selection","Other Electric, Qualifying Gas, No Water Heating Selection"]
["211","Other Electric","Qualifying Gas","Electric Water Heating","Other Electric, Qualifying Gas, Electric Water Heating","Does Not Qualify - Site's water heating fuel is not provided by a participating utility"]
["212","Other Electric","Qualifying Gas","Gas Water Heating","Other Electric, Qualifying Gas, Gas Water Heating",5]
["213","Other Electric","Qualifying Gas","Other Water Heating","Other Electric, Qualifying Gas, Other Water Heating","Does Not Qualify - Site's water heating fuel is not electric or gas"]
["220","Other Electric","Other Gas","No Water Heating Selection","Other Electric, Other Gas, No Water Heating Selection","Does Not Qualify - Site's utility providers are not participating utilities"]
["221","Other Electric","Other Gas","Electric Water Heating","Other Electric, Other Gas, Electric Water Heating","Does Not Qualify - Site's utility providers are not participating utilities"]
["222","Other Electric","Other Gas","Gas Water Heating","Other Electric, Other Gas, Gas Water Heating","Does Not Qualify - Site's utility providers are not participating utilities"]
["223","Other Electric","Other Gas","Other Water Heating","Other Electric, Other Gas, Other Water Heating","Does Not Qualify - Site's utility providers are not participating utilities"]

{"sheet":"Laundry Lookup","index":16,"n_rows":40,"n_cols":6,"rows_kept":40,"cut":false,"hidden":true,"merged":[[0,0,0,5]]}
["Commercial Laundry Washer"]
["Combined","Electric Utility","Gas Utility","Water Heating","Combined","Incentive"]
[{"$f":"CONCATENATE(B3,C3,D3)","v":"000"},{"$f":"IF(OR(ELE_NUM=1,ELE_NUM=2),1,IF(ELE_NUM=0,0,2))","v":0},{"$f":"IF(OR(GAS_NUM=1,GAS_NUM=2,GAS_NUM=3),1,(IF(GAS_NUM=0,0,2)))","v":0},{"$f":"WATERHEAT_NUM","v":0},{"$f":"VLOOKUP(A3,A5:F40,5)","v":"No Electric Selection, No Gas Selection, No Water Heating Selection"},{"$f":"VLOOKUP(A3,A5:F40,6)","v":0}]
["Combined","Electric Utility","Gas Utility","Water Heating","Combined","Incentive"]
["000","No Electric Selection","No Gas Selection","No Water Heating Selection",{"$f":"B5&\", \"&C5&\", \"&D5","v":"No Electric Selection, No Gas Selection, No Water Heating Selection"}]
["001","No Electric Selection","No Gas Selection","Electric Water Heating",{"$f":"B6&\", \"&C6&\", \"&D6","v":"No Electric Selection, No Gas Selection, Electric Water Heating"}]
["002","No Electric Selection","No Gas Selection","Gas Water Heating","No Electric Selection, No Gas Selection, Gas Water Heating"]
["003","No Electric Selection","No Gas Selection","Other Water Heating","No Electric Selection, No Gas Selection, Other Water Heating","Does Not Qualify - Site's water heating fuel is not electric or gas"]
["010","No Electric Selection","Qualifying Gas","No Water Heating Selection","No Electric Selection, Qualifying Gas, No Water Heating Selection"]
["011","No Electric Selection","Qualifying Gas","Electric Water Heating","No Electric Selection, Qualifying Gas, Electric Water Heating"]
["012","No Electric Selection","Qualifying Gas","Gas Water Heating","No Electric Selection, Qualifying Gas, Gas Water Heating"]
["013","No Electric Selection","Qualifying Gas","Other Water Heating","No Electric Selection, Qualifying Gas, Other Water Heating","Does Not Qualify - Site's water heating fuel is not electric or gas"]
["020","No Electric Selection","Other Gas","No Water Heating Selection","No Electric Selection, Other Gas, No Water Heating Selection"]
["021","No Electric Selection","Other Gas","Electric Water Heating","No Electric Selection, Other Gas, Electric Water Heating"]
["022","No Electric Selection","Other Gas","Gas Water Heating","No Electric Selection, Other Gas, Gas Water Heating","Does Not Qualify - Site's water heating fuel is not provided by a participating utility"]
["023","No Electric Selection","Other Gas","Other Water Heating","No Electric Selection, Other Gas, Other Water Heating","Does Not Qualify - Site's water heating fuel is not electric or gas"]
["100","Qualifying Electric","No Gas Selection","No Water Heating Selection","Qualifying Electric, No Gas Selection, No Water Heating Selection"]
["101","Qualifying Electric","No Gas Selection","Electric Water Heating","Qualifying Electric, No Gas Selection, Electric Water Heating","$200 each"]
["102","Qualifying Electric","No Gas Selection","Gas Water Heating","Qualifying Electric, No Gas Selection, Gas Water Heating"]
["103","Qualifying Electric","No Gas Selection","Other Water Heating","Qualifying Electric, No Gas Selection, Other Water Heating","Does Not Qualify - Site's water heating fuel is not electric or gas"]
["110","Qualifying Electric","Qualifying Gas","No Water Heating Selection","Qualifying Electric, Qualifying Gas, No Water Heating Selection"]
["111","Qualifying Electric","Qualifying Gas","Electric Water Heating","Qualifying Electric, Qualifying Gas, Electric Water Heating","$200 each"]
["112","Qualifying Electric","Qualifying Gas","Gas Water Heating","Qualifying Electric, Qualifying Gas, Gas Water Heating","$200 each"]
["113","Qualifying Electric","Qualifying Gas","Other Water Heating","Qualifying Electric, Qualifying Gas, Other Water Heating","Does Not Qualify - Site's water heating fuel is not electric or gas"]
["120","Qualifying Electric","Other Gas","No Water Heating Selection","Qualifying Electric, Other Gas, No Water Heating Selection"]
["121","Qualifying Electric","Other Gas","Electric Water Heating","Qualifying Electric, Other Gas, Electric Water Heating","$200 each"]
["122","Qualifying Electric","Other Gas","Gas Water Heating","Qualifying Electric, Other Gas, Gas Water Heating","Does Not Qualify - Site's water heating fuel is not provided by a participating utility"]
["123","Qualifying Electric","Other Gas","Other Water Heating","Qualifying Electric, Other Gas, Other Water Heating","Does Not Qualify - Site's water heating fuel is not electric or gas"]
["200","Other Electric","No Gas Selection","No Water Heating Selection",{"$f":"B29&\", \"&C29&\", \"&D29","v":"Other Electric, No Gas Selection, No Water Heating Selection"}]
["201","Other Electric","No Gas Selection","Electric Water Heating","Other Electric, No Gas Selection, Electric Water Heating","Does Not Qualify - Site's water heating fuel is not provided by a participating utility"]
["202","Other Electric","No Gas Selection","Gas Water Heating","Other Electric, No Gas Selection, Gas Water Heating"]
["203","Other Electric","No Gas Selection","Other Water Heating","Other Electric, No Gas Selection, Other Water Heating","Does Not Qualify - Site's water heating fuel is not electric or gas"]
["210","Other Electric","Qualifying Gas","No Water Heating Selection","Other Electric, Qualifying Gas, No Water Heating Selection"]
["211","Other Electric","Qualifying Gas","Electric Water Heating","Other Electric, Qualifying Gas, Electric Water Heating","Does Not Qualify - Site's water heating fuel is not provided by a participating utility"]
["212","Other Electric","Qualifying Gas","Gas Water Heating","Other Electric, Qualifying Gas, Gas Water Heating","$65 each"]
["213","Other Electric","Qualifying Gas","Other Water Heating","Other Electric, Qualifying Gas, Other Water Heating","Does Not Qualify - Site's water heating fuel is not electric or gas"]
["220","Other Electric","Other Gas","No Water Heating Selection","Other Electric, Other Gas, No Water Heating Selection","Does Not Qualify - Site's utility providers are not participating utilities"]
["221","Other Electric","Other Gas","Electric Water Heating","Other Electric, Other Gas, Electric Water Heating","Does Not Qualify - Site's utility providers are not participating utilities"]
["222","Other Electric","Other Gas","Gas Water Heating","Other Electric, Other Gas, Gas Water Heating","Does Not Qualify - Site's utility providers are not participating utilities"]
["223","Other Electric","Other Gas","Other Water Heating","Other Electric, Other Gas, Other Water Heating","Does Not Qualify - Site's utility providers are not participating utilities"]

{"sheet":"Vent Hood Lookup","index":17,"n_rows":40,"n_cols":6,"rows_kept":40,"cut":false,"hidden":true,"merged":[[0,0,0,5]]}
["Commercial Vent Hood with VFD"]
["Combined","Electric Utility","Gas Utility","Primary Space Heating","Combined","Incentive"]
[{"$f":"CONCATENATE(B3,C3,D3)","v":"000"},{"$f":"IF(OR(ELE_NUM=1,ELE_NUM=2),1,IF(ELE_NUM=0,0,2))","v":0},{"$f":"IF(OR(GAS_NUM=1,GAS_NUM=2,GAS_NUM=3),1,(IF(GAS_NUM=0,0,2)))","v":0},{"$f":"HEAT_NUM","v":0},{"$f":"VLOOKUP(A3,A5:F40,5)","v":"No Electric Selection, No Gas Selection, No Primary Space Heating Selection"},{"$f":"VLOOKUP(A3,A5:F40,6)","v":"Select site's Utility Providers and Primary Space Heating Fuel, on 'Form 120P'"}]
["Combined","Electric Utility","Gas Utility","Primary Space Heating","Combined","Incentive"]
["000","No Electric Selection","No Gas Selection","No Primary Space Heating Selection",{"$f":"B5&\", \"&C5&\", \"&D5","v":"No Electric Selection, No Gas Selection, No Primary Space Heating Selection"},"Select site's Utility Providers and Primary Space Heating Fuel, on 'Form 120P'"]
["001","No Electric Selection","No Gas Selection","Electric Primary Space Heating",{"$f":"B6&\", \"&C6&\", \"&D6","v":"No Electric Selection, No Gas Selection, Electric Primary Space Heating"},"Select site's Electric Utility Provider, on 'Form 120P'"]
["002","No Electric Selection","No Gas Selection","Gas Primary Space Heating","No Electric Selection, No Gas Selection, Gas Primary Space Heating","Select site's Utility Providers, on 'Form 120P'"]
["003","No Electric Selection","No Gas Selection","Other Primary Space Heating","No Electric Selection, No Gas Selection, Other Primary Space Heating","Does Not Qualify - Site's primary space heating fuel is not electric or gas"]
["010","No Electric Selection","Qualifying Gas","No Primary Space Heating Selection","No Electric Selection, Qualifying Gas, No Primary Space Heating Selection","Select site's Electric Utility Provider and Primary Space Heating Fuel, on 'Form 120P'"]
["011","No Electric Selection","Qualifying Gas","Electric Primary Space Heating","No Electric Selection, Qualifying Gas, Electric Primary Space Heating","Select site's Electric Utility Provider, on 'Form 120P'"]
["012","No Electric Selection","Qualifying Gas","Gas Primary Space Heating","No Electric Selection, Qualifying Gas, Gas Primary Space Heating","Select site's Electric Utility provider, on 'Form 120P'"]
["013","No Electric Selection","Qualifying Gas","Other Primary Space Heating","No Electric Selection, Qualifying Gas, Other Primary Space Heating","Does Not Qualify - Site's primary space heating fuel is not electric or gas"]
["020","No Electric Selection","Other Gas","No Primary Space Heating Selection","No Electric Selection, Other Gas, No Primary Space Heating Selection","Select site's Electric Utility Provider and Primary Space Heating Fuel, on 'Form 120P'"]
["021","No Electric Selection","Other Gas","Electric Primary Space Heating","No Electric Selection, Other Gas, Electric Primary Space Heating","Select site's Electric Utility Provider, on 'Form 120P'"]
["022","No Electric Selection","Other Gas","Gas Primary Space Heating","No Electric Selection, Other Gas, Gas Primary Space Heating","Does Not Qualify - Site's primary space heating fuel is not provided by a participating utility"]
["023","No Electric Selection","Other Gas","Other Primary Space Heating","No Electric Selection, Other Gas, Other Primary Space Heating","Does Not Qualify - Site's primary space heating fuel is not electric or gas"]
["100","Qualifying Electric","No Gas Selection","No Primary Space Heating Selection","Qualifying Electric, No Gas Selection, No Primary Space Heating Selection","Select site's Gas Utility Provider and Primary Space Heating Fuel, on 'Form 120P'"]
["101","Qualifying Electric","No Gas Selection","Electric Primary Space Heating","Qualifying Electric, No Gas Selection, Electric Primary Space Heating",750]
["102","Qualifying Electric","No Gas Selection","Gas Primary Space Heating","Qualifying Electric, No Gas Selection, Gas Primary Space Heating","Select site's Gas Utility Provider, on 'Form 120P'"]
["103","Qualifying Electric","No Gas Selection","Other Primary Space Heating","Qualifying Electric, No Gas Selection, Other Primary Space Heating","Does Not Qualify - Site's primary space heating fuel is not electric or gas"]
["110","Qualifying Electric","Qualifying Gas","No Primary Space Heating Selection","Qualifying Electric, Qualifying Gas, No Primary Space Heating Selection","Select site's Primary Space Heating Fuel, on 'Form 120P'"]
["111","Qualifying Electric","Qualifying Gas","Electric Primary Space Heating","Qualifying Electric, Qualifying Gas, Electric Primary Space Heating",750]
["112","Qualifying Electric","Qualifying Gas","Gas Primary Space Heating","Qualifying Electric, Qualifying Gas, Gas Primary Space Heating",750]
["113","Qualifying Electric","Qualifying Gas","Other Primary Space Heating","Qualifying Electric, Qualifying Gas, Other Primary Space Heating","Does Not Qualify - Site's primary space heating fuel is not electric or gas"]
["120","Qualifying Electric","Other Gas","No Primary Space Heating Selection","Qualifying Electric, Other Gas, No Primary Space Heating Selection","Select site's Primary Space Heating Fuel, on 'Form 120P'"]
["121","Qualifying Electric","Other Gas","Electric Primary Space Heating","Qualifying Electric, Other Gas, Electric Primary Space Heating",750]
["122","Qualifying Electric","Other Gas","Gas Primary Space Heating","Qualifying Electric, Other Gas, Gas Primary Space Heating","Does Not Qualify - Site's primary space heating fuel is not provided by a participating utility"]
["123","Qualifying Electric","Other Gas","Other Primary Space Heating","Qualifying Electric, Other Gas, Other Primary Space Heating","Does Not Qualify - Site's primary space heating fuel is not electric or gas"]
["200","Other Electric","No Gas Selection","No Primary Space Heating Selection",{"$f":"B29&\", \"&C29&\", \"&D29","v":"Other Electric, No Gas Selection, No Primary Space Heating Selection"},"Does Not Qualify - Site does not receive electricty from a participating utility"]
["201","Other Electric","No Gas Selection","Electric Primary Space Heating","Other Electric, No Gas Selection, Electric Primary Space Heating","Does Not Qualify - Site does not receive electricty from a participating utility"]
["202","Other Electric","No Gas Selection","Gas Primary Space Heating","Other Electric, No Gas Selection, Gas Primary Space Heating","Does Not Qualify - Site does not receive electricty from a participating utility"]
["203","Other Electric","No Gas Selection","Other Primary Space Heating","Other Electric, No Gas Selection, Other Primary Space Heating","Does Not Qualify - Site does not receive electricty from a participating utility"]
["210","Other Electric","Qualifying Gas","No Primary Space Heating Selection","Other Electric, Qualifying Gas, No Primary Space Heating Selection","Does Not Qualify - Site does not receive electricty from a participating utility"]
["211","Other Electric","Qualifying Gas","Electric Primary Space Heating","Other Electric, Qualifying Gas, Electric Primary Space Heating","Does Not Qualify - Site does not receive electricty from a participating utility"]
["212","Other Electric","Qualifying Gas","Gas Primary Space Heating","Other Electric, Qualifying Gas, Gas Primary Space Heating","Does Not Qualify - Site does not receive electricty from a participating utility"]
["213","Other Electric","Qualifying Gas","Other Primary Space Heating","Other Electric, Qualifying Gas, Other Primary Space Heating","Does Not Qualify - Site does not receive electricty from a participating utility"]
["220","Other Electric","Other Gas","No Primary Space Heating Selection","Other Electric, Other Gas, No Primary Space Heating Selection","Does Not Qualify - Site's utility providers are not participating utilities"]
["221","Other Electric","Other Gas","Electric Primary Space Heating","Other Electric, Other Gas, Electric Primary Space Heating","Does Not Qualify - Site's utility providers are not participating utilities"]
["222","Other Electric","Other Gas","Gas Primary Space Heating","Other Electric, Other Gas, Gas Primary Space Heating","Does Not Qualify - Site's utility providers are not participating utilities"]
["223","Other Electric","Other Gas","Other Primary Space Heating","Other Electric, Other Gas, Other Primary Space Heating","Does Not Qualify - Site's utility providers are not participating utilities"]

{"sheet":"Dish Under Counter Lookup","index":18,"n_rows":76,"n_cols":7,"rows_kept":76,"cut":false,"hidden":true,"merged":[[0,0,0,6]]}
["Dishwasher Under Counter"]
["Combined","Electric Utility","Gas Utility","Water Heating","Temp","Combined","Incentive"]
[{"$f":"CONCATENATE(B3,C3,D3,E3)","v":{"$error":"#NAME?"}},{"$f":"IF(OR(ELE_NUM=1,ELE_NUM=2),1,IF(ELE_NUM=0,0,2))","v":0},{"$f":"IF(OR(GAS_NUM=1,GAS_NUM=2,GAS_NUM=3),1,(IF(GAS_NUM=0,0,2)))","v":0},{"$f":"WATERHEAT_NUM","v":0},{"$f":"TEMPERATURE","v":{"$error":"#NAME?"}},{"$f":"VLOOKUP(A3,A5:G76,6)","v":{"$error":"#NAME?"}},{"$f":"VLOOKUP(A3,A5:G76,7)","v":{"$error":"#NAME?"}}]
["Combined","Electric Utility","Gas Utility","Water Heating","Temp","Combined","Incentive"]
["0001","No Electric Selection","No Gas Selection","No Water Heating Selection","Low Temp",{"$f":"B5&\", \"&C5&\", \"&D5&\", \"&E5","v":"No Electric Selection, No Gas Selection, No Water Heating Selection, Low Temp"}]
["0002","No Electric Selection","No Gas Selection","No Water Heating Selection","High Temp","No Electric Selection, No Gas Selection, No Water Heating Selection, High Temp"]
["0011","No Electric Selection","No Gas Selection","Electric Water Heating","Low Temp","No Electric Selection, No Gas Selection, Electric Water Heating, Low Temp"]
["0012","No Electric Selection","No Gas Selection","Electric Water Heating","High Temp","No Electric Selection, No Gas Selection, Electric Water Heating, High Temp"]
["0021","No Electric Selection","No Gas Selection","Gas Water Heating","Low Temp","No Electric Selection, No Gas Selection, Gas Water Heating, Low Temp"]
["0022","No Electric Selection","No Gas Selection","Gas Water Heating","High Temp","No Electric Selection, No Gas Selection, Gas Water Heating, High Temp","High Temp with gas water heating does not qualify"]
["0031","No Electric Selection","No Gas Selection","Other Water Heating","Low Temp","No Electric Selection, No Gas Selection, Other Water Heating, Low Temp","Does Not Qualify - Site's water heating fuel is not electric or gas"]
["0032","No Electric Selection","No Gas Selection","Other Water Heating","High Temp","No Electric Selection, No Gas Selection, Other Water Heating, High Temp","Does Not Qualify - Site's water heating fuel is not electric or gas"]
["0101","No Electric Selection","Qualifying Gas","No Water Heating Selection","Low Temp","No Electric Selection, Qualifying Gas, No Water Heating Selection, Low Temp"]
["0102","No Electric Selection","Qualifying Gas","No Water Heating Selection","High Temp","No Electric Selection, Qualifying Gas, No Water Heating Selection, High Temp"]
["0111","No Electric Selection","Qualifying Gas","Electric Water Heating","Low Temp","No Electric Selection, Qualifying Gas, Electric Water Heating, Low Temp"]
["0112","No Electric Selection","Qualifying Gas","Electric Water Heating","High Temp","No Electric Selection, Qualifying Gas, Electric Water Heating, High Temp"]
["0121","No Electric Selection","Qualifying Gas","Gas Water Heating","Low Temp","No Electric Selection, Qualifying Gas, Gas Water Heating, Low Temp"]
["0122","No Electric Selection","Qualifying Gas","Gas Water Heating","High Temp","No Electric Selection, Qualifying Gas, Gas Water Heating, High Temp","High Temp with gas water heating does not qualify"]
["0131","No Electric Selection","Qualifying Gas","Other Water Heating","Low Temp","No Electric Selection, Qualifying Gas, Other Water Heating, Low Temp","Does Not Qualify - Site's water heating fuel is not electric or gas"]
["0132","No Electric Selection","Qualifying Gas","Other Water Heating","High Temp","No Electric Selection, Qualifying Gas, Other Water Heating, High Temp","Does Not Qualify - Site's water heating fuel is not electric or gas"]
["0201","No Electric Selection","Other Gas","No Water Heating Selection","Low Temp","No Electric Selection, Other Gas, No Water Heating Selection, Low Temp"]
["0202","No Electric Selection","Other Gas","No Water Heating Selection","High Temp","No Electric Selection, Other Gas, No Water Heating Selection, High Temp"]
["0211","No Electric Selection","Other Gas","Electric Water Heating","Low Temp","No Electric Selection, Other Gas, Electric Water Heating, Low Temp"]
["0212","No Electric Selection","Other Gas","Electric Water Heating","High Temp","No Electric Selection, Other Gas, Electric Water Heating, High Temp"]
["0221","No Electric Selection","Other Gas","Gas Water Heating","Low Temp","No Electric Selection, Other Gas, Gas Water Heating, Low Temp","Does Not Qualify - Site's water heating fuel is not provided by a participating utility"]
["0222","No Electric Selection","Other Gas","Gas Water Heating","High Temp","No Electric Selection, Other Gas, Gas Water Heating, High Temp","High Temp with gas water heating does not qualify"]
["0231","No Electric Selection","Other Gas","Other Water Heating","Low Temp","No Electric Selection, Other Gas, Other Water Heating, Low Temp","Does Not Qualify - Site's water heating fuel is not electric or gas"]
["0232","No Electric Selection","Other Gas","Other Water Heating","High Temp","No Electric Selection, Other Gas, Other Water Heating, High Temp","Does Not Qualify - Site's water heating fuel is not electric or gas"]
["1001","Qualifying Electric","No Gas Selection","No Water Heating Selection","Low Temp","Qualifying Electric, No Gas Selection, No Water Heating Selection, Low Temp"]
["1002","Qualifying Electric","No Gas Selection","No Water Heating Selection","High Temp","Qualifying Electric, No Gas Selection, No Water Heating Selection, High Temp"]
["1011","Qualifying Electric","No Gas Selection","Electric Water Heating","Low Temp","Qualifying Electric, No Gas Selection, Electric Water Heating, Low Temp",195]
["1012","Qualifying Electric","No Gas Selection","Electric Water Heating","High Temp","Qualifying Electric, No Gas Selection, Electric Water Heating, High Temp",600]
["1021","Qualifying Electric","No Gas Selection","Gas Water Heating","Low Temp","Qualifying Electric, No Gas Selection, Gas Water Heating, Low Temp"]
["1022","Qualifying Electric","No Gas Selection","Gas Water Heating","High Temp","Qualifying Electric, No Gas Selection, Gas Water Heating, High Temp","High Temp with gas water heating does not qualify"]
["1031","Qualifying Electric","No Gas Selection","Other Water Heating","Low Temp","Qualifying Electric, No Gas Selection, Other Water Heating, Low Temp","Does Not Qualify - Site's water heating fuel is not electric or gas"]
["1032","Qualifying Electric","No Gas Selection","Other Water Heating","High Temp","Qualifying Electric, No Gas Selection, Other Water Heating, High Temp","Does Not Qualify - Site's water heating fuel is not electric or gas"]
["1101","Qualifying Electric","Qualifying Gas","No Water Heating Selection","Low Temp","Qualifying Electric, Qualifying Gas, No Water Heating Selection, Low Temp"]
["1102","Qualifying Electric","Qualifying Gas","No Water Heating Selection","High Temp","Qualifying Electric, Qualifying Gas, No Water Heating Selection, High Temp"]
["1111","Qualifying Electric","Qualifying Gas","Electric Water Heating","Low Temp","Qualifying Electric, Qualifying Gas, Electric Water Heating, Low Temp",195]
["1112","Qualifying Electric","Qualifying Gas","Electric Water Heating","High Temp","Qualifying Electric, Qualifying Gas, Electric Water Heating, High Temp",600]
["1121","Qualifying Electric","Qualifying Gas","Gas Water Heating","Low Temp","Qualifying Electric, Qualifying Gas, Gas Water Heating, Low Temp",195]
["1122","Qualifying Electric","Qualifying Gas","Gas Water Heating","High Temp","Qualifying Electric, Qualifying Gas, Gas Water Heating, High Temp","High Temp with gas water heating does not qualify"]
["1131","Qualifying Electric","Qualifying Gas","Other Water Heating","Low Temp","Qualifying Electric, Qualifying Gas, Other Water Heating, Low Temp","Does Not Qualify - Site's water heating fuel is not electric or gas"]
["1132","Qualifying Electric","Qualifying Gas","Other Water Heating","High Temp","Qualifying Electric, Qualifying Gas, Other Water Heating, High Temp","Does Not Qualify - Site's water heating fuel is not electric or gas"]
["1201","Qualifying Electric","Other Gas","No Water Heating Selection","Low Temp","Qualifying Electric, Other Gas, No Water Heating Selection, Low Temp"]
["1202","Qualifying Electric","Other Gas","No Water Heating Selection","High Temp","Qualifying Electric, Other Gas, No Water Heating Selection, High Temp"]
["1211","Qualifying Electric","Other Gas","Electric Water Heating","Low Temp","Qualifying Electric, Other Gas, Electric Water Heating, Low Temp",195]
["1212","Qualifying Electric","Other Gas","Electric Water Heating","High Temp","Qualifying Electric, Other Gas, Electric Water Heating, High Temp",600]
["1221","Qualifying Electric","Other Gas","Gas Water Heating","Low Temp","Qualifying Electric, Other Gas, Gas Water Heating, Low Temp","Does Not Qualify - Site's water heating fuel is not provided by a participating utility"]
["1222","Qualifying Electric","Other Gas","Gas Water Heating","High Temp","Qualifying Electric, Other Gas, Gas Water Heating, High Temp","High Temp with gas water heating does not qualify"]
["1231","Qualifying Electric","Other Gas","Other Water Heating","Low Temp","Qualifying Electric, Other Gas, Other Water Heating, Low Temp","Does Not Qualify - Site's water heating fuel is not electric or gas"]
["1232","Qualifying Electric","Other Gas","Other Water Heating","High Temp","Qualifying Electric, Other Gas, Other Water Heating, High Temp","Does Not Qualify - Site's water heating fuel is not electric or gas"]
["2001","Other Electric","No Gas Selection","No Water Heating Selection","Low Temp","Other Electric, No Gas Selection, No Water Heating Selection, Low Temp"]
["2002","Other Electric","No Gas Selection","No Water Heating Selection","High Temp","Other Electric, No Gas Selection, No Water Heating Selection, High Temp"]
["2011","Other Electric","No Gas Selection","Electric Water Heating","Low Temp","Other Electric, No Gas Selection, Electric Water Heating, Low Temp","Does Not Qualify - Site's water heating fuel is not provided by a participating utility"]
["2012","Other Electric","No Gas Selection","Electric Water Heating","High Temp","Other Electric, No Gas Selection, Electric Water Heating, High Temp","Does Not Qualify - Site's water heating fuel is not provided by a participating utility"]
["2021","Other Electric","No Gas Selection","Gas Water Heating","Low Temp","Other Electric, No Gas Selection, Gas Water Heating, Low Temp"]
["2022","Other Electric","No Gas Selection","Gas Water Heating","High Temp","Other Electric, No Gas Selection, Gas Water Heating, High Temp","High Temp with gas water heating does not qualify"]
["2031","Other Electric","No Gas Selection","Other Water Heating","Low Temp","Other Electric, No Gas Selection, Other Water Heating, Low Temp","Does Not Qualify - Site's water heating fuel is not electric or gas"]
["2032","Other Electric","No Gas Selection","Other Water Heating","High Temp","Other Electric, No Gas Selection, Other Water Heating, High Temp","Does Not Qualify - Site's water heating fuel is not electric or gas"]
["2101","Other Electric","Qualifying Gas","No Water Heating Selection","Low Temp","Other Electric, Qualifying Gas, No Water Heating Selection, Low Temp"]
["2102","Other Electric","Qualifying Gas","No Water Heating Selection","High Temp","Other Electric, Qualifying Gas, No Water Heating Selection, High Temp"]
["2111","Other Electric","Qualifying Gas","Electric Water Heating","Low Temp","Other Electric, Qualifying Gas, Electric Water Heating, Low Temp","Does Not Qualify - Site's water heating fuel is not provided by a participating utility"]
["2112","Other Electric","Qualifying Gas","Electric Water Heating","High Temp","Other Electric, Qualifying Gas, Electric Water Heating, High Temp","Does Not Qualify - Site's water heating fuel is not provided by a participating utility"]
["2121","Other Electric","Qualifying Gas","Gas Water Heating","Low Temp","Other Electric, Qualifying Gas, Gas Water Heating, Low Temp",195]
["2122","Other Electric","Qualifying Gas","Gas Water Heating","High Temp","Other Electric, Qualifying Gas, Gas Water Heating, High Temp","High Temp with gas water heating does not qualify"]
["2131","Other Electric","Qualifying Gas","Other Water Heating","Low Temp","Other Electric, Qualifying Gas, Other Water Heating, Low Temp","Does Not Qualify - Site's water heating fuel is not electric or gas"]
["2132","Other Electric","Qualifying Gas","Other Water Heating","High Temp","Other Electric, Qualifying Gas, Other Water Heating, High Temp","Does Not Qualify - Site's water heating fuel is not electric or gas"]
["2201","Other Electric","Other Gas","No Water Heating Selection","Low Temp",{"$f":"B69&\", \"&C69&\", \"&D69&\", \"&E69","v":"Other Electric, Other Gas, No Water Heating Selection, Low Temp"},"Does Not Qualify - Site's utility providers are not participating utilities"]
["2202","Other Electric","Other Gas","No Water Heating Selection","High Temp","Other Electric, Other Gas, No Water Heating Selection, High Temp","Does Not Qualify - Site's utility providers are not participating utilities"]
["2211","Other Electric","Other Gas","Electric Water Heating","Low Temp","Other Electric, Other Gas, Electric Water Heating, Low Temp","Does Not Qualify - Site's utility providers are not participating utilities"]
["2212","Other Electric","Other Gas","Electric Water Heating","High Temp","Other Electric, Other Gas, Electric Water Heating, High Temp","Does Not Qualify - Site's utility providers are not participating utilities"]
["2221","Other Electric","Other Gas","Gas Water Heating","Low Temp","Other Electric, Other Gas, Gas Water Heating, Low Temp","Does Not Qualify - Site's utility providers are not participating utilities"]
["2222","Other Electric","Other Gas","Gas Water Heating","High Temp","Other Electric, Other Gas, Gas Water Heating, High Temp","High Temp with gas water heating does not qualify"]
["2231","Other Electric","Other Gas","Other Water Heating","Low Temp","Other Electric, Other Gas, Other Water Heating, Low Temp","Does Not Qualify - Site's utility providers are not participating utilities"]
["2232","Other Electric","Other Gas","Other Water Heating","High Temp","Other Electric, Other Gas, Other Water Heating, High Temp","Does Not Qualify - Site's utility providers are not participating utilities"]

{"sheet":"Dish Single Upright Lookup","index":19,"n_rows":76,"n_cols":7,"rows_kept":76,"cut":false,"hidden":true,"merged":[[0,0,0,6]]}
["Dishwasher, Single Tank Door/Upright"]
["Combined","Electric Utility","Gas Utility","Water Heating","Temp","Combined","Incentive"]
[{"$f":"CONCATENATE(B3,C3,D3,E3)","v":{"$error":"#NAME?"}},{"$f":"IF(OR(ELE_NUM=1,ELE_NUM=2),1,IF(ELE_NUM=0,0,2))","v":0},{"$f":"IF(OR(GAS_NUM=1,GAS_NUM=2,GAS_NUM=3),1,(IF(GAS_NUM=0,0,2)))","v":0},{"$f":"WATERHEAT_NUM","v":0},{"$f":"TEMPERATURE","v":{"$error":"#NAME?"}},{"$f":"VLOOKUP(A3,A5:G76,6)","v":{"$error":"#NAME?"}},{"$f":"VLOOKUP(A3,A5:G76,7)","v":{"$error":"#NAME?"}}]
["Combined","Electric Utility","Gas Utility","Water Heating","Temp","Combined","Incentive"]
["0001","No Electric Selection","No Gas Selection","No Water Heating Selection","Low Temp",{"$f":"B5&\", \"&C5&\", \"&D5&\", \"&E5","v":"No Electric Selection, No Gas Selection, No Water Heating Selection, Low Temp"}]
["0002","No Electric Selection","No Gas Selection","No Water Heating Selection","High Temp",{"$f":"B6&\", \"&C6&\", \"&D6&\", \"&E6","v":"No Electric Selection, No Gas Selection, No Water Heating Selection, High Temp"}]
["0011","No Electric Selection","No Gas Selection","Electric Water Heating","Low Temp","No Electric Selection, No Gas Selection, Electric Water Heating, Low Temp"]
["0012","No Electric Selection","No Gas Selection","Electric Water Heating","High Temp","No Electric Selection, No Gas Selection, Electric Water Heating, High Temp"]
["0021","No Electric Selection","No Gas Selection","Gas Water Heating","Low Temp","No Electric Selection, No Gas Selection, Gas Water Heating, Low Temp"]
["0022","No Electric Selection","No Gas Selection","Gas Water Heating","High Temp","No Electric Selection, No Gas Selection, Gas Water Heating, High Temp"]
["0031","No Electric Selection","No Gas Selection","Other Water Heating","Low Temp","No Electric Selection, No Gas Selection, Other Water Heating, Low Temp","Does Not Qualify - Site's water heating fuel is not electric or gas"]
["0032","No Electric Selection","No Gas Selection","Other Water Heating","High Temp","No Electric Selection, No Gas Selection, Other Water Heating, High Temp","Does Not Qualify - Site's water heating fuel is not electric or gas"]
["0101","No Electric Selection","Qualifying Gas","No Water Heating Selection","Low Temp","No Electric Selection, Qualifying Gas, No Water Heating Selection, Low Temp"]
["0102","No Electric Selection","Qualifying Gas","No Water Heating Selection","High Temp","No Electric Selection, Qualifying Gas, No Water Heating Selection, High Temp"]
["0111","No Electric Selection","Qualifying Gas","Electric Water Heating","Low Temp","No Electric Selection, Qualifying Gas, Electric Water Heating, Low Temp"]
["0112","No Electric Selection","Qualifying Gas","Electric Water Heating","High Temp","No Electric Selection, Qualifying Gas, Electric Water Heating, High Temp"]
["0121","No Electric Selection","Qualifying Gas","Gas Water Heating","Low Temp","No Electric Selection, Qualifying Gas, Gas Water Heating, Low Temp"]
["0122","No Electric Selection","Qualifying Gas","Gas Water Heating","High Temp","No Electric Selection, Qualifying Gas, Gas Water Heating, High Temp"]
["0131","No Electric Selection","Qualifying Gas","Other Water Heating","Low Temp","No Electric Selection, Qualifying Gas, Other Water Heating, Low Temp","Does Not Qualify - Site's water heating fuel is not electric or gas"]
["0132","No Electric Selection","Qualifying Gas","Other Water Heating","High Temp","No Electric Selection, Qualifying Gas, Other Water Heating, High Temp","Does Not Qualify - Site's water heating fuel is not electric or gas"]
["0201","No Electric Selection","Other Gas","No Water Heating Selection","Low Temp","No Electric Selection, Other Gas, No Water Heating Selection, Low Temp"]
["0202","No Electric Selection","Other Gas","No Water Heating Selection","High Temp","No Electric Selection, Other Gas, No Water Heating Selection, High Temp"]
["0211","No Electric Selection","Other Gas","Electric Water Heating","Low Temp","No Electric Selection, Other Gas, Electric Water Heating, Low Temp"]
["0212","No Electric Selection","Other Gas","Electric Water Heating","High Temp","No Electric Selection, Other Gas, Electric Water Heating, High Temp"]
["0221","No Electric Selection","Other Gas","Gas Water Heating","Low Temp","No Electric Selection, Other Gas, Gas Water Heating, Low Temp","Does Not Qualify - Site's water heating fuel is not provided by a participating utility"]
["0222","No Electric Selection","Other Gas","Gas Water Heating","High Temp","No Electric Selection, Other Gas, Gas Water Heating, High Temp","Does Not Qualify - Site's water heating fuel is not provided by a participating utility"]
["0231","No Electric Selection","Other Gas","Other Water Heating","Low Temp","No Electric Selection, Other Gas, Other Water Heating, Low Temp","Does Not Qualify - Site's water heating fuel is not electric or gas"]
["0232","No Electric Selection","Other Gas","Other Water Heating","High Temp","No Electric Selection, Other Gas, Other Water Heating, High Temp","Does Not Qualify - Site's water heating fuel is not electric or gas"]
["1001","Qualifying Electric","No Gas Selection","No Water Heating Selection","Low Temp","Qualifying Electric, No Gas Selection, No Water Heating Selection, Low Temp"]
["1002","Qualifying Electric","No Gas Selection","No Water Heating Selection","High Temp","Qualifying Electric, No Gas Selection, No Water Heating Selection, High Temp"]
["1011","Qualifying Electric","No Gas Selection","Electric Water Heating","Low Temp","Qualifying Electric, No Gas Selection, Electric Water Heating, Low Temp",550]
["1012","Qualifying Electric","No Gas Selection","Electric Water Heating","High Temp","Qualifying Electric, No Gas Selection, Electric Water Heating, High Temp",825]
["1021","Qualifying Electric","No Gas Selection","Gas Water Heating","Low Temp","Qualifying Electric, No Gas Selection, Gas Water Heating, Low Temp"]
["1022","Qualifying Electric","No Gas Selection","Gas Water Heating","High Temp","Qualifying Electric, No Gas Selection, Gas Water Heating, High Temp"]
["1031","Qualifying Electric","No Gas Selection","Other Water Heating","Low Temp","Qualifying Electric, No Gas Selection, Other Water Heating, Low Temp","Does Not Qualify - Site's water heating fuel is not electric or gas"]
["1032","Qualifying Electric","No Gas Selection","Other Water Heating","High Temp","Qualifying Electric, No Gas Selection, Other Water Heating, High Temp","Does Not Qualify - Site's water heating fuel is not electric or gas"]
["1101","Qualifying Electric","Qualifying Gas","No Water Heating Selection","Low Temp",{"$f":"B37&\", \"&C37&\", \"&D37&\", \"&E37","v":"Qualifying Electric, Qualifying Gas, No Water Heating Selection, Low Temp"}]
["1102","Qualifying Electric","Qualifying Gas","No Water Heating Selection","High Temp","Qualifying Electric, Qualifying Gas, No Water Heating Selection, High Temp"]
["1111","Qualifying Electric","Qualifying Gas","Electric Water Heating","Low Temp","Qualifying Electric, Qualifying Gas, Electric Water Heating, Low Temp",550]
["1112","Qualifying Electric","Qualifying Gas","Electric Water Heating","High Temp","Qualifying Electric, Qualifying Gas, Electric Water Heating, High Temp",825]
["1121","Qualifying Electric","Qualifying Gas","Gas Water Heating","Low Temp","Qualifying Electric, Qualifying Gas, Gas Water Heating, Low Temp",550]
["1122","Qualifying Electric","Qualifying Gas","Gas Water Heating","High Temp","Qualifying Electric, Qualifying Gas, Gas Water Heating, High Temp",825]
["1131","Qualifying Electric","Qualifying Gas","Other Water Heating","Low Temp","Qualifying Electric, Qualifying Gas, Other Water Heating, Low Temp","Does Not Qualify - Site's water heating fuel is not electric or gas"]
["1132","Qualifying Electric","Qualifying Gas","Other Water Heating","High Temp","Qualifying Electric, Qualifying Gas, Other Water Heating, High Temp","Does Not Qualify - Site's water heating fuel is not electric or gas"]
["1201","Qualifying Electric","Other Gas","No Water Heating Selection","Low Temp","Qualifying Electric, Other Gas, No Water Heating Selection, Low Temp"]
["1202","Qualifying Electric","Other Gas","No Water Heating Selection","High Temp","Qualifying Electric, Other Gas, No Water Heating Selection, High Temp"]
["1211","Qualifying Electric","Other Gas","Electric Water Heating","Low Temp","Qualifying Electric, Other Gas, Electric Water Heating, Low Temp",550]
["1212","Qualifying Electric","Other Gas","Electric Water Heating","High Temp","Qualifying Electric, Other Gas, Electric Water Heating, High Temp",825]
["1221","Qualifying Electric","Other Gas","Gas Water Heating","Low Temp","Qualifying Electric, Other Gas, Gas Water Heating, Low Temp","Does Not Qualify - Site's water heating fuel is not provided by a participating utility"]
["1222","Qualifying Electric","Other Gas","Gas Water Heating","High Temp","Qualifying Electric, Other Gas, Gas Water Heating, High Temp","Does Not Qualify - Site's water heating fuel is not provided by a participating utility"]
["1231","Qualifying Electric","Other Gas","Other Water Heating","Low Temp","Qualifying Electric, Other Gas, Other Water Heating, Low Temp","Does Not Qualify - Site's water heating fuel is not electric or gas"]
["1232","Qualifying Electric","Other Gas","Other Water Heating","High Temp","Qualifying Electric, Other Gas, Other Water Heating, High Temp","Does Not Qualify - Site's water heating fuel is not electric or gas"]
["2001","Other Electric","No Gas Selection","No Water Heating Selection","Low Temp","Other Electric, No Gas Selection, No Water Heating Selection, Low Temp"]
["2002","Other Electric","No Gas Selection","No Water Heating Selection","High Temp","Other Electric, No Gas Selection, No Water Heating Selection, High Temp"]
["2011","Other Electric","No Gas Selection","Electric Water Heating","Low Temp","Other Electric, No Gas Selection, Electric Water Heating, Low Temp","Does Not Qualify - Site's water heating fuel is not provided by a participating utility"]
["2012","Other Electric","No Gas Selection","Electric Water Heating","High Temp","Other Electric, No Gas Selection, Electric Water Heating, High Temp","Does Not Qualify - Site's water heating fuel is not provided by a participating utility"]
["2021","Other Electric","No Gas Selection","Gas Water Heating","Low Temp","Other Electric, No Gas Selection, Gas Water Heating, Low Temp"]
["2022","Other Electric","No Gas Selection","Gas Water Heating","High Temp","Other Electric, No Gas Selection, Gas Water Heating, High Temp"]
["2031","Other Electric","No Gas Selection","Other Water Heating","Low Temp","Other Electric, No Gas Selection, Other Water Heating, Low Temp","Does Not Qualify - Site's water heating fuel is not electric or gas"]
["2032","Other Electric","No Gas Selection","Other Water Heating","High Temp","Other Electric, No Gas Selection, Other Water Heating, High Temp","Does Not Qualify - Site's water heating fuel is not electric or gas"]
["2101","Other Electric","Qualifying Gas","No Water Heating Selection","Low Temp","Other Electric, Qualifying Gas, No Water Heating Selection, Low Temp"]
["2102","Other Electric","Qualifying Gas","No Water Heating Selection","High Temp","Other Electric, Qualifying Gas, No Water Heating Selection, High Temp"]
["2111","Other Electric","Qualifying Gas","Electric Water Heating","Low Temp","Other Electric, Qualifying Gas, Electric Water Heating, Low Temp","Does Not Qualify - Site's water heating fuel is not provided by a participating utility"]
["2112","Other Electric","Qualifying Gas","Electric Water Heating","High Temp","Other Electric, Qualifying Gas, Electric Water Heating, High Temp","Does Not Qualify - Site's water heating fuel is not provided by a participating utility"]
["2121","Other Electric","Qualifying Gas","Gas Water Heating","Low Temp","Other Electric, Qualifying Gas, Gas Water Heating, Low Temp",550]
["2122","Other Electric","Qualifying Gas","Gas Water Heating","High Temp","Other Electric, Qualifying Gas, Gas Water Heating, High Temp",825]
["2131","Other Electric","Qualifying Gas","Other Water Heating","Low Temp","Other Electric, Qualifying Gas, Other Water Heating, Low Temp","Does Not Qualify - Site's water heating fuel is not electric or gas"]
["2132","Other Electric","Qualifying Gas","Other Water Heating","High Temp","Other Electric, Qualifying Gas, Other Water Heating, High Temp","Does Not Qualify - Site's water heating fuel is not electric or gas"]
["2201","Other Electric","Other Gas","No Water Heating Selection","Low Temp",{"$f":"B69&\", \"&C69&\", \"&D69&\", \"&E69","v":"Other Electric, Other Gas, No Water Heating Selection, Low Temp"},"Does Not Qualify - Site's utility providers are not participating utilities"]
["2202","Other Electric","Other Gas","No Water Heating Selection","High Temp","Other Electric, Other Gas, No Water Heating Selection, High Temp","Does Not Qualify - Site's utility providers are not participating utilities"]
["2211","Other Electric","Other Gas","Electric Water Heating","Low Temp","Other Electric, Other Gas, Electric Water Heating, Low Temp","Does Not Qualify - Site's utility providers are not participating utilities"]
["2212","Other Electric","Other Gas","Electric Water Heating","High Temp","Other Electric, Other Gas, Electric Water Heating, High Temp","Does Not Qualify - Site's utility providers are not participating utilities"]
["2221","Other Electric","Other Gas","Gas Water Heating","Low Temp","Other Electric, Other Gas, Gas Water Heating, Low Temp","Does Not Qualify - Site's utility providers are not participating utilities"]
["2222","Other Electric","Other Gas","Gas Water Heating","High Temp","Other Electric, Other Gas, Gas Water Heating, High Temp","Does Not Qualify - Site's utility providers are not participating utilities"]
["2231","Other Electric","Other Gas","Other Water Heating","Low Temp","Other Electric, Other Gas, Other Water Heating, Low Temp","Does Not Qualify - Site's utility providers are not participating utilities"]
["2232","Other Electric","Other Gas","Other Water Heating","High Temp","Other Electric, Other Gas, Other Water Heating, High Temp","Does Not Qualify - Site's utility providers are not participating utilities"]

{"sheet":"Dish Single Conveyor Lookup","index":20,"n_rows":76,"n_cols":7,"rows_kept":76,"cut":false,"hidden":true,"merged":[[0,0,0,6]]}
["Dishwasher, Single Tank Conveyor"]
["Combined","Electric Utility","Gas Utility","Water Heating","Temp","Combined","Incentive"]
[{"$f":"CONCATENATE(B3,C3,D3,E3)","v":{"$error":"#NAME?"}},{"$f":"IF(OR(ELE_NUM=1,ELE_NUM=2),1,IF(ELE_NUM=0,0,2))","v":0},{"$f":"IF(OR(GAS_NUM=1,GAS_NUM=2,GAS_NUM=3),1,(IF(GAS_NUM=0,0,2)))","v":0},{"$f":"WATERHEAT_NUM","v":0},{"$f":"TEMPERATURE","v":{"$error":"#NAME?"}},{"$f":"VLOOKUP(A3,A5:G76,6)","v":{"$error":"#NAME?"}},{"$f":"VLOOKUP(A3,A5:G76,7)","v":{"$error":"#NAME?"}}]
["Combined","Electric Utility","Gas Utility","Water Heating","Temp","Combined","Incentive"]
["0001","No Electric Selection","No Gas Selection","No Water Heating Selection","Low Temp",{"$f":"B5&\", \"&C5&\", \"&D5&\", \"&E5","v":"No Electric Selection, No Gas Selection, No Water Heating Selection, Low Temp"}]
["0002","No Electric Selection","No Gas Selection","No Water Heating Selection","High Temp",{"$f":"B6&\", \"&C6&\", \"&D6&\", \"&E6","v":"No Electric Selection, No Gas Selection, No Water Heating Selection, High Temp"}]
["0011","No Electric Selection","No Gas Selection","Electric Water Heating","Low Temp",{"$f":"B7&\", \"&C7&\", \"&D7&\", \"&E7","v":"No Electric Selection, No Gas Selection, Electric Water Heating, Low Temp"}]
["0012","No Electric Selection","No Gas Selection","Electric Water Heating","High Temp","No Electric Selection, No Gas Selection, Electric Water Heating, High Temp"]
["0021","No Electric Selection","No Gas Selection","Gas Water Heating","Low Temp","No Electric Selection, No Gas Selection, Gas Water Heating, Low Temp"]
["0022","No Electric Selection","No Gas Selection","Gas Water Heating","High Temp","No Electric Selection, No Gas Selection, Gas Water Heating, High Temp"]
["0031","No Electric Selection","No Gas Selection","Other Water Heating","Low Temp","No Electric Selection, No Gas Selection, Other Water Heating, Low Temp","Does Not Qualify - Site's water heating fuel is not electric or gas"]
["0032","No Electric Selection","No Gas Selection","Other Water Heating","High Temp","No Electric Selection, No Gas Selection, Other Water Heating, High Temp","Does Not Qualify - Site's water heating fuel is not electric or gas"]
["0101","No Electric Selection","Qualifying Gas","No Water Heating Selection","Low Temp","No Electric Selection, Qualifying Gas, No Water Heating Selection, Low Temp"]
["0102","No Electric Selection","Qualifying Gas","No Water Heating Selection","High Temp","No Electric Selection, Qualifying Gas, No Water Heating Selection, High Temp"]
["0111","No Electric Selection","Qualifying Gas","Electric Water Heating","Low Temp","No Electric Selection, Qualifying Gas, Electric Water Heating, Low Temp"]
["0112","No Electric Selection","Qualifying Gas","Electric Water Heating","High Temp","No Electric Selection, Qualifying Gas, Electric Water Heating, High Temp"]
["0121","No Electric Selection","Qualifying Gas","Gas Water Heating","Low Temp","No Electric Selection, Qualifying Gas, Gas Water Heating, Low Temp"]
["0122","No Electric Selection","Qualifying Gas","Gas Water Heating","High Temp","No Electric Selection, Qualifying Gas, Gas Water Heating, High Temp"]
["0131","No Electric Selection","Qualifying Gas","Other Water Heating","Low Temp","No Electric Selection, Qualifying Gas, Other Water Heating, Low Temp","Does Not Qualify - Site's water heating fuel is not electric or gas"]
["0132","No Electric Selection","Qualifying Gas","Other Water Heating","High Temp","No Electric Selection, Qualifying Gas, Other Water Heating, High Temp","Does Not Qualify - Site's water heating fuel is not electric or gas"]
["0201","No Electric Selection","Other Gas","No Water Heating Selection","Low Temp","No Electric Selection, Other Gas, No Water Heating Selection, Low Temp"]
["0202","No Electric Selection","Other Gas","No Water Heating Selection","High Temp","No Electric Selection, Other Gas, No Water Heating Selection, High Temp"]
["0211","No Electric Selection","Other Gas","Electric Water Heating","Low Temp","No Electric Selection, Other Gas, Electric Water Heating, Low Temp"]
["0212","No Electric Selection","Other Gas","Electric Water Heating","High Temp","No Electric Selection, Other Gas, Electric Water Heating, High Temp"]
["0221","No Electric Selection","Other Gas","Gas Water Heating","Low Temp","No Electric Selection, Other Gas, Gas Water Heating, Low Temp","Does Not Qualify - Site's water heating fuel is not provided by a participating utility"]
["0222","No Electric Selection","Other Gas","Gas Water Heating","High Temp","No Electric Selection, Other Gas, Gas Water Heating, High Temp","Does Not Qualify - Site's water heating fuel is not provided by a participating utility"]
["0231","No Electric Selection","Other Gas","Other Water Heating","Low Temp","No Electric Selection, Other Gas, Other Water Heating, Low Temp","Does Not Qualify - Site's water heating fuel is not electric or gas"]
["0232","No Electric Selection","Other Gas","Other Water Heating","High Temp","No Electric Selection, Other Gas, Other Water Heating, High Temp","Does Not Qualify - Site's water heating fuel is not electric or gas"]
["1001","Qualifying Electric","No Gas Selection","No Water Heating Selection","Low Temp","Qualifying Electric, No Gas Selection, No Water Heating Selection, Low Temp"]
["1002","Qualifying Electric","No Gas Selection","No Water Heating Selection","High Temp","Qualifying Electric, No Gas Selection, No Water Heating Selection, High Temp"]
["1011","Qualifying Electric","No Gas Selection","Electric Water Heating","Low Temp","Qualifying Electric, No Gas Selection, Electric Water Heating, Low Temp",900]
["1012","Qualifying Electric","No Gas Selection","Electric Water Heating","High Temp","Qualifying Electric, No Gas Selection, Electric Water Heating, High Temp",900]
["1021","Qualifying Electric","No Gas Selection","Gas Water Heating","Low Temp","Qualifying Electric, No Gas Selection, Gas Water Heating, Low Temp"]
["1022","Qualifying Electric","No Gas Selection","Gas Water Heating","High Temp","Qualifying Electric, No Gas Selection, Gas Water Heating, High Temp"]
["1031","Qualifying Electric","No Gas Selection","Other Water Heating","Low Temp","Qualifying Electric, No Gas Selection, Other Water Heating, Low Temp","Does Not Qualify - Site's water heating fuel is not electric or gas"]
["1032","Qualifying Electric","No Gas Selection","Other Water Heating","High Temp","Qualifying Electric, No Gas Selection, Other Water Heating, High Temp","Does Not Qualify - Site's water heating fuel is not electric or gas"]
["1101","Qualifying Electric","Qualifying Gas","No Water Heating Selection","Low Temp","Qualifying Electric, Qualifying Gas, No Water Heating Selection, Low Temp"]
["1102","Qualifying Electric","Qualifying Gas","No Water Heating Selection","High Temp","Qualifying Electric, Qualifying Gas, No Water Heating Selection, High Temp"]
["1111","Qualifying Electric","Qualifying Gas","Electric Water Heating","Low Temp","Qualifying Electric, Qualifying Gas, Electric Water Heating, Low Temp",900]
["1112","Qualifying Electric","Qualifying Gas","Electric Water Heating","High Temp","Qualifying Electric, Qualifying Gas, Electric Water Heating, High Temp",900]
["1121","Qualifying Electric","Qualifying Gas","Gas Water Heating","Low Temp","Qualifying Electric, Qualifying Gas, Gas Water Heating, Low Temp",900]
["1122","Qualifying Electric","Qualifying Gas","Gas Water Heating","High Temp","Qualifying Electric, Qualifying Gas, Gas Water Heating, High Temp",900]
["1131","Qualifying Electric","Qualifying Gas","Other Water Heating","Low Temp","Qualifying Electric, Qualifying Gas, Other Water Heating, Low Temp","Does Not Qualify - Site's water heating fuel is not electric or gas"]
["1132","Qualifying Electric","Qualifying Gas","Other Water Heating","High Temp","Qualifying Electric, Qualifying Gas, Other Water Heating, High Temp","Does Not Qualify - Site's water heating fuel is not electric or gas"]
["1201","Qualifying Electric","Other Gas","No Water Heating Selection","Low Temp","Qualifying Electric, Other Gas, No Water Heating Selection, Low Temp"]
["1202","Qualifying Electric","Other Gas","No Water Heating Selection","High Temp","Qualifying Electric, Other Gas, No Water Heating Selection, High Temp"]
["1211","Qualifying Electric","Other Gas","Electric Water Heating","Low Temp","Qualifying Electric, Other Gas, Electric Water Heating, Low Temp",900]
["1212","Qualifying Electric","Other Gas","Electric Water Heating","High Temp","Qualifying Electric, Other Gas, Electric Water Heating, High Temp",900]
["1221","Qualifying Electric","Other Gas","Gas Water Heating","Low Temp","Qualifying Electric, Other Gas, Gas Water Heating, Low Temp","Does Not Qualify - Site's water heating fuel is not provided by a participating utility"]
["1222","Qualifying Electric","Other Gas","Gas Water Heating","High Temp","Qualifying Electric, Other Gas, Gas Water Heating, High Temp","Does Not Qualify - Site's water heating fuel is not provided by a participating utility"]
["1231","Qualifying Electric","Other Gas","Other Water Heating","Low Temp","Qualifying Electric, Other Gas, Other Water Heating, Low Temp","Does Not Qualify - Site's water heating fuel is not electric or gas"]
["1232","Qualifying Electric","Other Gas","Other Water Heating","High Temp","Qualifying Electric, Other Gas, Other Water Heating, High Temp","Does Not Qualify - Site's water heating fuel is not electric or gas"]
["2001","Other Electric","No Gas Selection","No Water Heating Selection","Low Temp","Other Electric, No Gas Selection, No Water Heating Selection, Low Temp"]
["2002","Other Electric","No Gas Selection","No Water Heating Selection","High Temp","Other Electric, No Gas Selection, No Water Heating Selection, High Temp"]
["2011","Other Electric","No Gas Selection","Electric Water Heating","Low Temp","Other Electric, No Gas Selection, Electric Water Heating, Low Temp","Does Not Qualify - Site's water heating fuel is not provided by a participating utility"]
["2012","Other Electric","No Gas Selection","Electric Water Heating","High Temp","Other Electric, No Gas Selection, Electric Water Heating, High Temp","Does Not Qualify - Site's water heating fuel is not provided by a participating utility"]
["2021","Other Electric","No Gas Selection","Gas Water Heating","Low Temp","Other Electric, No Gas Selection, Gas Water Heating, Low Temp"]
["2022","Other Electric","No Gas Selection","Gas Water Heating","High Temp","Other Electric, No Gas Selection, Gas Water Heating, High Temp"]
["2031","Other Electric","No Gas Selection","Other Water Heating","Low Temp","Other Electric, No Gas Selection, Other Water Heating, Low Temp","Does Not Qualify - Site's water heating fuel is not electric or gas"]
["2032","Other Electric","No Gas Selection","Other Water Heating","High Temp","Other Electric, No Gas Selection, Other Water Heating, High Temp","Does Not Qualify - Site's water heating fuel is not electric or gas"]
["2101","Other Electric","Qualifying Gas","No Water Heating Selection","Low Temp","Other Electric, Qualifying Gas, No Water Heating Selection, Low Temp"]
["2102","Other Electric","Qualifying Gas","No Water Heating Selection","High Temp","Other Electric, Qualifying Gas, No Water Heating Selection, High Temp"]
["2111","Other Electric","Qualifying Gas","Electric Water Heating","Low Temp","Other Electric, Qualifying Gas, Electric Water Heating, Low Temp","Does Not Qualify - Site's water heating fuel is not provided by a participating utility"]
["2112","Other Electric","Qualifying Gas","Electric Water Heating","High Temp","Other Electric, Qualifying Gas, Electric Water Heating, High Temp","Does Not Qualify - Site's water heating fuel is not provided by a participating utility"]
["2121","Other Electric","Qualifying Gas","Gas Water Heating","Low Temp","Other Electric, Qualifying Gas, Gas Water Heating, Low Temp",900]
["2122","Other Electric","Qualifying Gas","Gas Water Heating","High Temp","Other Electric, Qualifying Gas, Gas Water Heating, High Temp",900]
["2131","Other Electric","Qualifying Gas","Other Water Heating","Low Temp","Other Electric, Qualifying Gas, Other Water Heating, Low Temp","Does Not Qualify - Site's water heating fuel is not electric or gas"]
["2132","Other Electric","Qualifying Gas","Other Water Heating","High Temp","Other Electric, Qualifying Gas, Other Water Heating, High Temp","Does Not Qualify - Site's water heating fuel is not electric or gas"]
["2201","Other Electric","Other Gas","No Water Heating Selection","Low Temp","Other Electric, Other Gas, No Water Heating Selection, Low Temp","Does Not Qualify - Site's utility providers are not participating utilities"]
["2202","Other Electric","Other Gas","No Water Heating Selection","High Temp","Other Electric, Other Gas, No Water Heating Selection, High Temp","Does Not Qualify - Site's utility providers are not participating utilities"]
["2211","Other Electric","Other Gas","Electric Water Heating","Low Temp",{"$f":"B71&\", \"&C71&\", \"&D71&\", \"&E71","v":"Other Electric, Other Gas, Electric Water Heating, Low Temp"},"Does Not Qualify - Site's utility providers are not participating utilities"]
["2212","Other Electric","Other Gas","Electric Water Heating","High Temp","Other Electric, Other Gas, Electric Water Heating, High Temp","Does Not Qualify - Site's utility providers are not participating utilities"]
["2221","Other Electric","Other Gas","Gas Water Heating","Low Temp","Other Electric, Other Gas, Gas Water Heating, Low Temp","Does Not Qualify - Site's utility providers are not participating utilities"]
["2222","Other Electric","Other Gas","Gas Water Heating","High Temp","Other Electric, Other Gas, Gas Water Heating, High Temp","Does Not Qualify - Site's utility providers are not participating utilities"]
["2231","Other Electric","Other Gas","Other Water Heating","Low Temp","Other Electric, Other Gas, Other Water Heating, Low Temp","Does Not Qualify - Site's utility providers are not participating utilities"]
["2232","Other Electric","Other Gas","Other Water Heating","High Temp","Other Electric, Other Gas, Other Water Heating, High Temp","Does Not Qualify - Site's utility providers are not participating utilities"]

{"sheet":"Dish Multi Conveyor Lookup","index":21,"n_rows":76,"n_cols":7,"rows_kept":76,"cut":false,"hidden":true,"merged":[[0,0,0,6]]}
["Dishwasher, Multi-Tank Conveyor"]
["Combined","Electric Utility","Gas Utility","Water Heating","Temp","Combined","Incentive"]
[{"$f":"CONCATENATE(B3,C3,D3,E3)","v":{"$error":"#NAME?"}},{"$f":"IF(OR(ELE_NUM=1,ELE_NUM=2),1,IF(ELE_NUM=0,0,2))","v":0},{"$f":"IF(OR(GAS_NUM=1,GAS_NUM=2,GAS_NUM=3),1,(IF(GAS_NUM=0,0,2)))","v":0},{"$f":"WATERHEAT_NUM","v":0},{"$f":"TEMPERATURE","v":{"$error":"#NAME?"}},{"$f":"VLOOKUP(A3,A5:G76,6)","v":{"$error":"#NAME?"}},{"$f":"VLOOKUP(A3,A5:G76,7)","v":{"$error":"#NAME?"}}]
["Combined","Electric Utility","Gas Utility","Water Heating","Temp","Combined","Incentive"]
["0001","No Electric Selection","No Gas Selection","No Water Heating Selection","Low Temp",{"$f":"B5&\", \"&C5&\", \"&D5&\", \"&E5","v":"No Electric Selection, No Gas Selection, No Water Heating Selection, Low Temp"}]
["0002","No Electric Selection","No Gas Selection","No Water Heating Selection","High Temp",{"$f":"B6&\", \"&C6&\", \"&D6&\", \"&E6","v":"No Electric Selection, No Gas Selection, No Water Heating Selection, High Temp"}]
["0011","No Electric Selection","No Gas Selection","Electric Water Heating","Low Temp",{"$f":"B7&\", \"&C7&\", \"&D7&\", \"&E7","v":"No Electric Selection, No Gas Selection, Electric Water Heating, Low Temp"}]
["0012","No Electric Selection","No Gas Selection","Electric Water Heating","High Temp","No Electric Selection, No Gas Selection, Electric Water Heating, High Temp"]
["0021","No Electric Selection","No Gas Selection","Gas Water Heating","Low Temp","No Electric Selection, No Gas Selection, Gas Water Heating, Low Temp"]
["0022","No Electric Selection","No Gas Selection","Gas Water Heating","High Temp","No Electric Selection, No Gas Selection, Gas Water Heating, High Temp"]
["0031","No Electric Selection","No Gas Selection","Other Water Heating","Low Temp","No Electric Selection, No Gas Selection, Other Water Heating, Low Temp","Does Not Qualify - Site's water heating fuel is not electric or gas"]
["0032","No Electric Selection","No Gas Selection","Other Water Heating","High Temp","No Electric Selection, No Gas Selection, Other Water Heating, High Temp","Does Not Qualify - Site's water heating fuel is not electric or gas"]
["0101","No Electric Selection","Qualifying Gas","No Water Heating Selection","Low Temp","No Electric Selection, Qualifying Gas, No Water Heating Selection, Low Temp"]
["0102","No Electric Selection","Qualifying Gas","No Water Heating Selection","High Temp","No Electric Selection, Qualifying Gas, No Water Heating Selection, High Temp"]
["0111","No Electric Selection","Qualifying Gas","Electric Water Heating","Low Temp","No Electric Selection, Qualifying Gas, Electric Water Heating, Low Temp"]
["0112","No Electric Selection","Qualifying Gas","Electric Water Heating","High Temp","No Electric Selection, Qualifying Gas, Electric Water Heating, High Temp"]
["0121","No Electric Selection","Qualifying Gas","Gas Water Heating","Low Temp","No Electric Selection, Qualifying Gas, Gas Water Heating, Low Temp"]
["0122","No Electric Selection","Qualifying Gas","Gas Water Heating","High Temp","No Electric Selection, Qualifying Gas, Gas Water Heating, High Temp"]
["0131","No Electric Selection","Qualifying Gas","Other Water Heating","Low Temp","No Electric Selection, Qualifying Gas, Other Water Heating, Low Temp","Does Not Qualify - Site's water heating fuel is not electric or gas"]
["0132","No Electric Selection","Qualifying Gas","Other Water Heating","High Temp","No Electric Selection, Qualifying Gas, Other Water Heating, High Temp","Does Not Qualify - Site's water heating fuel is not electric or gas"]
["0201","No Electric Selection","Other Gas","No Water Heating Selection","Low Temp","No Electric Selection, Other Gas, No Water Heating Selection, Low Temp"]
["0202","No Electric Selection","Other Gas","No Water Heating Selection","High Temp","No Electric Selection, Other Gas, No Water Heating Selection, High Temp"]
["0211","No Electric Selection","Other Gas","Electric Water Heating","Low Temp","No Electric Selection, Other Gas, Electric Water Heating, Low Temp"]
["0212","No Electric Selection","Other Gas","Electric Water Heating","High Temp","No Electric Selection, Other Gas, Electric Water Heating, High Temp"]
["0221","No Electric Selection","Other Gas","Gas Water Heating","Low Temp","No Electric Selection, Other Gas, Gas Water Heating, Low Temp","Does Not Qualify - Site's water heating fuel is not provided by a participating utility"]
["0222","No Electric Selection","Other Gas","Gas Water Heating","High Temp","No Electric Selection, Other Gas, Gas Water Heating, High Temp","Does Not Qualify - Site's water heating fuel is not provided by a participating utility"]
["0231","No Electric Selection","Other Gas","Other Water Heating","Low Temp","No Electric Selection, Other Gas, Other Water Heating, Low Temp","Does Not Qualify - Site's water heating fuel is not electric or gas"]
["0232","No Electric Selection","Other Gas","Other Water Heating","High Temp","No Electric Selection, Other Gas, Other Water Heating, High Temp","Does Not Qualify - Site's water heating fuel is not electric or gas"]
["1001","Qualifying Electric","No Gas Selection","No Water Heating Selection","Low Temp","Qualifying Electric, No Gas Selection, No Water Heating Selection, Low Temp"]
["1002","Qualifying Electric","No Gas Selection","No Water Heating Selection","High Temp","Qualifying Electric, No Gas Selection, No Water Heating Selection, High Temp"]
["1011","Qualifying Electric","No Gas Selection","Electric Water Heating","Low Temp","Qualifying Electric, No Gas Selection, Electric Water Heating, Low Temp",800]
["1012","Qualifying Electric","No Gas Selection","Electric Water Heating","High Temp","Qualifying Electric, No Gas Selection, Electric Water Heating, High Temp",800]
["1021","Qualifying Electric","No Gas Selection","Gas Water Heating","Low Temp","Qualifying Electric, No Gas Selection, Gas Water Heating, Low Temp"]
["1022","Qualifying Electric","No Gas Selection","Gas Water Heating","High Temp","Qualifying Electric, No Gas Selection, Gas Water Heating, High Temp"]
["1031","Qualifying Electric","No Gas Selection","Other Water Heating","Low Temp","Qualifying Electric, No Gas Selection, Other Water Heating, Low Temp","Does Not Qualify - Site's water heating fuel is not electric or gas"]
["1032","Qualifying Electric","No Gas Selection","Other Water Heating","High Temp","Qualifying Electric, No Gas Selection, Other Water Heating, High Temp","Does Not Qualify - Site's water heating fuel is not electric or gas"]
["1101","Qualifying Electric","Qualifying Gas","No Water Heating Selection","Low Temp","Qualifying Electric, Qualifying Gas, No Water Heating Selection, Low Temp"]
["1102","Qualifying Electric","Qualifying Gas","No Water Heating Selection","High Temp","Qualifying Electric, Qualifying Gas, No Water Heating Selection, High Temp"]
["1111","Qualifying Electric","Qualifying Gas","Electric Water Heating","Low Temp","Qualifying Electric, Qualifying Gas, Electric Water Heating, Low Temp",800]
["1112","Qualifying Electric","Qualifying Gas","Electric Water Heating","High Temp","Qualifying Electric, Qualifying Gas, Electric Water Heating, High Temp",800]
["1121","Qualifying Electric","Qualifying Gas","Gas Water Heating","Low Temp","Qualifying Electric, Qualifying Gas, Gas Water Heating, Low Temp",800]
["1122","Qualifying Electric","Qualifying Gas","Gas Water Heating","High Temp","Qualifying Electric, Qualifying Gas, Gas Water Heating, High Temp",800]
["1131","Qualifying Electric","Qualifying Gas","Other Water Heating","Low Temp","Qualifying Electric, Qualifying Gas, Other Water Heating, Low Temp","Does Not Qualify - Site's water heating fuel is not electric or gas"]
["1132","Qualifying Electric","Qualifying Gas","Other Water Heating","High Temp","Qualifying Electric, Qualifying Gas, Other Water Heating, High Temp","Does Not Qualify - Site's water heating fuel is not electric or gas"]
["1201","Qualifying Electric","Other Gas","No Water Heating Selection","Low Temp","Qualifying Electric, Other Gas, No Water Heating Selection, Low Temp"]
["1202","Qualifying Electric","Other Gas","No Water Heating Selection","High Temp","Qualifying Electric, Other Gas, No Water Heating Selection, High Temp"]
["1211","Qualifying Electric","Other Gas","Electric Water Heating","Low Temp","Qualifying Electric, Other Gas, Electric Water Heating, Low Temp",800]
["1212","Qualifying Electric","Other Gas","Electric Water Heating","High Temp","Qualifying Electric, Other Gas, Electric Water Heating, High Temp",800]
["1221","Qualifying Electric","Other Gas","Gas Water Heating","Low Temp","Qualifying Electric, Other Gas, Gas Water Heating, Low Temp","Does Not Qualify - Site's water heating fuel is not provided by a participating utility"]
["1222","Qualifying Electric","Other Gas","Gas Water Heating","High Temp","Qualifying Electric, Other Gas, Gas Water Heating, High Temp","Does Not Qualify - Site's water heating fuel is not provided by a participating utility"]
["1231","Qualifying Electric","Other Gas","Other Water Heating","Low Temp","Qualifying Electric, Other Gas, Other Water Heating, Low Temp","Does Not Qualify - Site's water heating fuel is not electric or gas"]
["1232","Qualifying Electric","Other Gas","Other Water Heating","High Temp","Qualifying Electric, Other Gas, Other Water Heating, High Temp","Does Not Qualify - Site's water heating fuel is not electric or gas"]
["2001","Other Electric","No Gas Selection","No Water Heating Selection","Low Temp","Other Electric, No Gas Selection, No Water Heating Selection, Low Temp"]
["2002","Other Electric","No Gas Selection","No Water Heating Selection","High Temp","Other Electric, No Gas Selection, No Water Heating Selection, High Temp"]
["2011","Other Electric","No Gas Selection","Electric Water Heating","Low Temp","Other Electric, No Gas Selection, Electric Water Heating, Low Temp","Does Not Qualify - Site's water heating fuel is not provided by a participating utility"]
["2012","Other Electric","No Gas Selection","Electric Water Heating","High Temp","Other Electric, No Gas Selection, Electric Water Heating, High Temp","Does Not Qualify - Site's water heating fuel is not provided by a participating utility"]
["2021","Other Electric","No Gas Selection","Gas Water Heating","Low Temp","Other Electric, No Gas Selection, Gas Water Heating, Low Temp"]
["2022","Other Electric","No Gas Selection","Gas Water Heating","High Temp","Other Electric, No Gas Selection, Gas Water Heating, High Temp"]
["2031","Other Electric","No Gas Selection","Other Water Heating","Low Temp","Other Electric, No Gas Selection, Other Water Heating, Low Temp","Does Not Qualify - Site's water heating fuel is not electric or gas"]
["2032","Other Electric","No Gas Selection","Other Water Heating","High Temp","Other Electric, No Gas Selection, Other Water Heating, High Temp","Does Not Qualify - Site's water heating fuel is not electric or gas"]
["2101","Other Electric","Qualifying Gas","No Water Heating Selection","Low Temp","Other Electric, Qualifying Gas, No Water Heating Selection, Low Temp"]
["2102","Other Electric","Qualifying Gas","No Water Heating Selection","High Temp","Other Electric, Qualifying Gas, No Water Heating Selection, High Temp"]
["2111","Other Electric","Qualifying Gas","Electric Water Heating","Low Temp","Other Electric, Qualifying Gas, Electric Water Heating, Low Temp","Does Not Qualify - Site's water heating fuel is not provided by a participating utility"]
["2112","Other Electric","Qualifying Gas","Electric Water Heating","High Temp","Other Electric, Qualifying Gas, Electric Water Heating, High Temp","Does Not Qualify - Site's water heating fuel is not provided by a participating utility"]
["2121","Other Electric","Qualifying Gas","Gas Water Heating","Low Temp","Other Electric, Qualifying Gas, Gas Water Heating, Low Temp",800]
["2122","Other Electric","Qualifying Gas","Gas Water Heating","High Temp","Other Electric, Qualifying Gas, Gas Water Heating, High Temp",800]
["2131","Other Electric","Qualifying Gas","Other Water Heating","Low Temp","Other Electric, Qualifying Gas, Other Water Heating, Low Temp","Does Not Qualify - Site's water heating fuel is not electric or gas"]
["2132","Other Electric","Qualifying Gas","Other Water Heating","High Temp","Other Electric, Qualifying Gas, Other Water Heating, High Temp","Does Not Qualify - Site's water heating fuel is not electric or gas"]
["2201","Other Electric","Other Gas","No Water Heating Selection","Low Temp","Other Electric, Other Gas, No Water Heating Selection, Low Temp","Does Not Qualify - Site's utility providers are not participating utilities"]
["2202","Other Electric","Other Gas","No Water Heating Selection","High Temp","Other Electric, Other Gas, No Water Heating Selection, High Temp","Does Not Qualify - Site's utility providers are not participating utilities"]
["2211","Other Electric","Other Gas","Electric Water Heating","Low Temp",{"$f":"B71&\", \"&C71&\", \"&D71&\", \"&E71","v":"Other Electric, Other Gas, Electric Water Heating, Low Temp"},"Does Not Qualify - Site's utility providers are not participating utilities"]
["2212","Other Electric","Other Gas","Electric Water Heating","High Temp","Other Electric, Other Gas, Electric Water Heating, High Temp","Does Not Qualify - Site's utility providers are not participating utilities"]
["2221","Other Electric","Other Gas","Gas Water Heating","Low Temp","Other Electric, Other Gas, Gas Water Heating, Low Temp","Does Not Qualify - Site's utility providers are not participating utilities"]
["2222","Other Electric","Other Gas","Gas Water Heating","High Temp","Other Electric, Other Gas, Gas Water Heating, High Temp","Does Not Qualify - Site's utility providers are not participating utilities"]
["2231","Other Electric","Other Gas","Other Water Heating","Low Temp","Other Electric, Other Gas, Other Water Heating, Low Temp","Does Not Qualify - Site's utility providers are not participating utilities"]
["2232","Other Electric","Other Gas","Other Water Heating","High Temp","Other Electric, Other Gas, Other Water Heating, High Temp","Does Not Qualify - Site's utility providers are not participating utilities"]

{"sheet":"Dish Pot Pan Lookup","index":22,"n_rows":40,"n_cols":6,"rows_kept":40,"cut":false,"hidden":true,"merged":[[0,0,0,5]]}
["Dishwasher, Pot, Pan and Utensil"]
["Combined","Electric Utility","Gas Utility","Water Heating","Combined","Incentive"]
[{"$f":"CONCATENATE(B3,C3,D3)","v":"000"},{"$f":"IF(OR(ELE_NUM=1,ELE_NUM=2),1,IF(ELE_NUM=0,0,2))","v":0},{"$f":"IF(OR(GAS_NUM=1,GAS_NUM=2,GAS_NUM=3),1,(IF(GAS_NUM=0,0,2)))","v":0},{"$f":"WATERHEAT_NUM","v":0},{"$f":"VLOOKUP(A3,A5:F40,5)","v":"No Electric Selection, No Gas Selection, No Water Heating Selection"},{"$f":"VLOOKUP(A3,A5:F40,6)","v":0}]
["Combined","Electric Utility","Gas Utility","Water Heating","Combined","Incentive"]
["000","No Electric Selection","No Gas Selection","No Water Heating Selection",{"$f":"B5&\", \"&C5&\", \"&D5","v":"No Electric Selection, No Gas Selection, No Water Heating Selection"}]
["001","No Electric Selection","No Gas Selection","Electric Water Heating",{"$f":"B6&\", \"&C6&\", \"&D6","v":"No Electric Selection, No Gas Selection, Electric Water Heating"}]
["002","No Electric Selection","No Gas Selection","Gas Water Heating","No Electric Selection, No Gas Selection, Gas Water Heating"]
["003","No Electric Selection","No Gas Selection","Other Water Heating","No Electric Selection, No Gas Selection, Other Water Heating","Does Not Qualify - Site's water heating fuel is not electric or gas"]
["010","No Electric Selection","Qualifying Gas","No Water Heating Selection","No Electric Selection, Qualifying Gas, No Water Heating Selection"]
["011","No Electric Selection","Qualifying Gas","Electric Water Heating","No Electric Selection, Qualifying Gas, Electric Water Heating"]
["012","No Electric Selection","Qualifying Gas","Gas Water Heating","No Electric Selection, Qualifying Gas, Gas Water Heating"]
["013","No Electric Selection","Qualifying Gas","Other Water Heating","No Electric Selection, Qualifying Gas, Other Water Heating","Does Not Qualify - Site's water heating fuel is not electric or gas"]
["020","No Electric Selection","Other Gas","No Water Heating Selection","No Electric Selection, Other Gas, No Water Heating Selection"]
["021","No Electric Selection","Other Gas","Electric Water Heating","No Electric Selection, Other Gas, Electric Water Heating"]
["022","No Electric Selection","Other Gas","Gas Water Heating","No Electric Selection, Other Gas, Gas Water Heating","Does Not Qualify - Site's water heating fuel is not provided by a participating utility"]
["023","No Electric Selection","Other Gas","Other Water Heating","No Electric Selection, Other Gas, Other Water Heating","Does Not Qualify - Site's water heating fuel is not electric or gas"]
["100","Qualifying Electric","No Gas Selection","No Water Heating Selection","Qualifying Electric, No Gas Selection, No Water Heating Selection"]
["101","Qualifying Electric","No Gas Selection","Electric Water Heating","Qualifying Electric, No Gas Selection, Electric Water Heating",350]
["102","Qualifying Electric","No Gas Selection","Gas Water Heating","Qualifying Electric, No Gas Selection, Gas Water Heating"]
["103","Qualifying Electric","No Gas Selection","Other Water Heating","Qualifying Electric, No Gas Selection, Other Water Heating","Does Not Qualify - Site's water heating fuel is not electric or gas"]
["110","Qualifying Electric","Qualifying Gas","No Water Heating Selection","Qualifying Electric, Qualifying Gas, No Water Heating Selection"]
["111","Qualifying Electric","Qualifying Gas","Electric Water Heating","Qualifying Electric, Qualifying Gas, Electric Water Heating",350]
["112","Qualifying Electric","Qualifying Gas","Gas Water Heating","Qualifying Electric, Qualifying Gas, Gas Water Heating",350]
["113","Qualifying Electric","Qualifying Gas","Other Water Heating","Qualifying Electric, Qualifying Gas, Other Water Heating","Does Not Qualify - Site's water heating fuel is not electric or gas"]
["120","Qualifying Electric","Other Gas","No Water Heating Selection","Qualifying Electric, Other Gas, No Water Heating Selection"]
["121","Qualifying Electric","Other Gas","Electric Water Heating","Qualifying Electric, Other Gas, Electric Water Heating",350]
["122","Qualifying Electric","Other Gas","Gas Water Heating","Qualifying Electric, Other Gas, Gas Water Heating","Does Not Qualify - Site's water heating fuel is not provided by a participating utility"]
["123","Qualifying Electric","Other Gas","Other Water Heating","Qualifying Electric, Other Gas, Other Water Heating","Does Not Qualify - Site's water heating fuel is not electric or gas"]
["200","Other Electric","No Gas Selection","No Water Heating Selection",{"$f":"B29&\", \"&C29&\", \"&D29","v":"Other Electric, No Gas Selection, No Water Heating Selection"}]
["201","Other Electric","No Gas Selection","Electric Water Heating","Other Electric, No Gas Selection, Electric Water Heating","Does Not Qualify - Site's water heating fuel is not provided by a participating utility"]
["202","Other Electric","No Gas Selection","Gas Water Heating","Other Electric, No Gas Selection, Gas Water Heating"]
["203","Other Electric","No Gas Selection","Other Water Heating","Other Electric, No Gas Selection, Other Water Heating","Does Not Qualify - Site's water heating fuel is not electric or gas"]
["210","Other Electric","Qualifying Gas","No Water Heating Selection","Other Electric, Qualifying Gas, No Water Heating Selection"]
["211","Other Electric","Qualifying Gas","Electric Water Heating","Other Electric, Qualifying Gas, Electric Water Heating","Does Not Qualify - Site's water heating fuel is not provided by a participating utility"]
["212","Other Electric","Qualifying Gas","Gas Water Heating","Other Electric, Qualifying Gas, Gas Water Heating",350]
["213","Other Electric","Qualifying Gas","Other Water Heating","Other Electric, Qualifying Gas, Other Water Heating","Does Not Qualify - Site's water heating fuel is not electric or gas"]
["220","Other Electric","Other Gas","No Water Heating Selection","Other Electric, Other Gas, No Water Heating Selection","Does Not Qualify - Site's utility providers are not participating utilities"]
["221","Other Electric","Other Gas","Electric Water Heating","Other Electric, Other Gas, Electric Water Heating","Does Not Qualify - Site's utility providers are not participating utilities"]
["222","Other Electric","Other Gas","Gas Water Heating","Other Electric, Other Gas, Gas Water Heating","Does Not Qualify - Site's utility providers are not participating utilities"]
["223","Other Electric","Other Gas","Other Water Heating","Other Electric, Other Gas, Other Water Heating","Does Not Qualify - Site's utility providers are not participating utilities"]

{"sheet":"Add Doors Lookup","index":23,"n_rows":40,"n_cols":6,"rows_kept":40,"cut":false,"hidden":true,"merged":[[0,0,0,5]]}
["Add Doors to Open Refrigerated Cases"]
["Combined","Electric Utility","Gas Utility","Primary Space Heatinging","Combined","Incentive"]
[{"$f":"CONCATENATE(B3,C3,D3)","v":"000"},{"$f":"IF(OR(ELE_NUM=1,ELE_NUM=2),1,IF(ELE_NUM=0,0,2))","v":0},{"$f":"IF(OR(GAS_NUM=1,GAS_NUM=2,GAS_NUM=3),1,(IF(GAS_NUM=0,0,2)))","v":0},{"$f":"WATERHEAT_NUM","v":0},{"$f":"VLOOKUP(A3,A5:F40,5)","v":"No Electric Selection, No Gas Selection, No Primary Space Heating Selected"},{"$f":"VLOOKUP(A3,A5:F40,6)","v":" "}]
["Combined","Electric Utility","Gas Utility","Primary Space Heatinging","Combined","Incentive"]
["000","No Electric Selection","No Gas Selection","No Primary Space Heating Selected",{"$f":"B5&\", \"&C5&\", \"&D5","v":"No Electric Selection, No Gas Selection, No Primary Space Heating Selected"}," "]
["001","No Electric Selection","No Gas Selection","Electric Primary Space Heating","No Electric Selection, No Gas Selection, Electric Primary Space Heating"," "]
["002","No Electric Selection","No Gas Selection","Gas Primary Space Heating","No Electric Selection, No Gas Selection, Gas Primary Space Heating"," "]
["003","No Electric Selection","No Gas Selection","Other Primary Space Heating","No Electric Selection, No Gas Selection, Other Primary Space Heating","Does Not Qualify - Site's primary space heating fuel is not electric or gas"]
["010","No Electric Selection","Qualifying Gas","No Primary Space Heating Selection","No Electric Selection, Qualifying Gas, No Primary Space Heating Selection"," "]
["011","No Electric Selection","Qualifying Gas","Electric Primary Space Heating","No Electric Selection, Qualifying Gas, Electric Primary Space Heating"," "]
["012","No Electric Selection","Qualifying Gas","Gas Primary Space Heating","No Electric Selection, Qualifying Gas, Gas Primary Space Heating"," "]
["013","No Electric Selection","Qualifying Gas","Other Primary Space Heating","No Electric Selection, Qualifying Gas, Other Primary Space Heating","Does Not Qualify - Site's primary space heating fuel is not electric or gas"]
["020","No Electric Selection","Other Gas","No Primary Space Heating Selection","No Electric Selection, Other Gas, No Primary Space Heating Selection"," "]
["021","No Electric Selection","Other Gas","Electric Primary Space Heating","No Electric Selection, Other Gas, Electric Primary Space Heating"," "]
["022","No Electric Selection","Other Gas","Gas Primary Space Heating","No Electric Selection, Other Gas, Gas Primary Space Heating","Does Not Qualify - Site's primary space heating fuel is not provided by a participating utility"]
["023","No Electric Selection","Other Gas","Other Primary Space Heating","No Electric Selection, Other Gas, Other Primary Space Heating","Does Not Qualify - Site's primary space heating fuel is not electric or gas"]
["100","Qualifying Electric","No Gas Selection","No Primary Space Heating Selection","Qualifying Electric, No Gas Selection, No Primary Space Heating Selection"," "]
["101","Qualifying Electric","No Gas Selection","Electric Primary Space Heating","Qualifying Electric, No Gas Selection, Electric Primary Space Heating",200]
["102","Qualifying Electric","No Gas Selection","Gas Primary Space Heating","Qualifying Electric, No Gas Selection, Gas Primary Space Heating"," "]
["103","Qualifying Electric","No Gas Selection","Other Primary Space Heating","Qualifying Electric, No Gas Selection, Other Primary Space Heating","Does Not Qualify - Site's primary space heating fuel is not electric or gas"]
["110","Qualifying Electric","Qualifying Gas","No Primary Space Heating Selection","Qualifying Electric, Qualifying Gas, No Primary Space Heating Selection"," "]
["111","Qualifying Electric","Qualifying Gas","Electric Primary Space Heating","Qualifying Electric, Qualifying Gas, Electric Primary Space Heating",200]
["112","Qualifying Electric","Qualifying Gas","Gas Primary Space Heating","Qualifying Electric, Qualifying Gas, Gas Primary Space Heating",200]
["113","Qualifying Electric","Qualifying Gas","Other Primary Space Heating","Qualifying Electric, Qualifying Gas, Other Primary Space Heating","Does Not Qualify - Site's primary space heating fuel is not electric or gas"]
["120","Qualifying Electric","Other Gas","No Primary Space Heating Selection","Qualifying Electric, Other Gas, No Primary Space Heating Selection"," "]
["121","Qualifying Electric","Other Gas","Electric Primary Space Heating","Qualifying Electric, Other Gas, Electric Primary Space Heating",200]
["122","Qualifying Electric","Other Gas","Gas Primary Space Heating","Qualifying Electric, Other Gas, Gas Primary Space Heating","Does Not Qualify - Site's primary space heating fuel is not provided by a participating utility"]
["123","Qualifying Electric","Other Gas","Other Primary Space Heating","Qualifying Electric, Other Gas, Other Primary Space Heating","Does Not Qualify - Site's primary space heating fuel is not electric or gas"]
["200","Other Electric","No Gas Selection","No Primary Space Heating Selection","Other Electric, No Gas Selection, No Primary Space Heating Selection"," "]
["201","Other Electric","No Gas Selection","Electric Primary Space Heating","Other Electric, No Gas Selection, Electric Primary Space Heating","Does Not Qualify - Site's primary space heating fuel is not provided by a participating utility"]
["202","Other Electric","No Gas Selection","Gas Primary Space Heating","Other Electric, No Gas Selection, Gas Primary Space Heating"," "]
["203","Other Electric","No Gas Selection","Other Primary Space Heating","Other Electric, No Gas Selection, Other Primary Space Heating","Does Not Qualify - Site's primary space heating fuel is not electric or gas"]
["210","Other Electric","Qualifying Gas","No Primary Space Heating Selection","Other Electric, Qualifying Gas, No Primary Space Heating Selection"," "]
["211","Other Electric","Qualifying Gas","Electric Primary Space Heating","Other Electric, Qualifying Gas, Electric Primary Space Heating","Does Not Qualify - Site's primary space heating fuel is not provided by a participating utility"]
["212","Other Electric","Qualifying Gas","Gas Primary Space Heating","Other Electric, Qualifying Gas, Gas Primary Space Heating",100]
["213","Other Electric","Qualifying Gas","Other Primary Space Heating","Other Electric, Qualifying Gas, Other Primary Space Heating","Does Not Qualify - Site's primary space heating fuel is not electric or gas"]
["220","Other Electric","Other Gas","No Primary Space Heating Selection","Other Electric, Other Gas, No Primary Space Heating Selection","Does Not Qualify - Site's utility providers are not participating utilities"]
["221","Other Electric","Other Gas","Electric Primary Space Heating","Other Electric, Other Gas, Electric Primary Space Heating","Does Not Qualify - Site's utility providers are not participating utilities"]
["222","Other Electric","Other Gas","Gas Primary Space Heating","Other Electric, Other Gas, Gas Primary Space Heating","Does Not Qualify - Site's utility providers are not participating utilities"]
["223","Other Electric","Other Gas","Other Primary Space Heating","Other Electric, Other Gas, Other Primary Space Heating","Does Not Qualify - Site's utility providers are not participating utilities"]

{"sheet":"New Doors Lookup","index":24,"n_rows":112,"n_cols":7,"rows_kept":112,"cut":false,"hidden":true,"merged":[[0,0,0,6]]}
["New Refrigerated Cases with Doors"]
["Combined","Electric Utility","Gas Utility","Primary Space Heatinging","Store Type (Size)","Combined","Incentive"]
[{"$f":"CONCATENATE(B3,C3,D3,E3)","v":{"$error":"#REF!"}},{"$f":"IF(OR(ELE_NUM=1,ELE_NUM=2),1,IF(ELE_NUM=0,0,2))","v":0},{"$f":"IF(OR(GAS_NUM=1,GAS_NUM=2,GAS_NUM=3),1,(IF(GAS_NUM=0,0,2)))","v":0},{"$f":"HEAT_NUM","v":0},{"$f":"'Grocery Equipment'!#REF!","v":{"$error":"#REF!"}},{"$f":"VLOOKUP(A3,A5:G112,6)","v":{"$error":"#REF!"}},{"$f":"VLOOKUP(A3,A5:G112,7)","v":{"$error":"#REF!"}}]
["Combined","Electric Utility","Gas Utility","Primary Space Heatinging","Store Type (Size)","Combined","Incentive"]
["0001","No Electric Selection","No Gas Selection","No Primary Space Heating Selected","Convenience Stores/Small Grocery (< 14,000 sq ft)",{"$f":"B5&\", \"&C5&\", \"&D5&\", \"&E5","v":"No Electric Selection, No Gas Selection, No Primary Space Heating Selected, Convenience Stores/Small Grocery (< 14,000 sq ft)"}]
["0002","No Electric Selection","No Gas Selection","No Primary Space Heating Selected","Medium Grocery (> 14,000 and < 75,000 sq ft)",{"$f":"B6&\", \"&C6&\", \"&D6&\", \"&E6","v":"No Electric Selection, No Gas Selection, No Primary Space Heating Selected, Medium Grocery (> 14,000 and < 75,000 sq ft)"}]
["0003","No Electric Selection","No Gas Selection","No Primary Space Heating Selected","Large Grocery (< 75,000 sq ft)","No Electric Selection, No Gas Selection, No Primary Space Heating Selected, Large Grocery (< 75,000 sq ft)"]
["0011","No Electric Selection","No Gas Selection","Electric Primary Space Heating","Convenience Stores/Small Grocery (< 14,000 sq ft)","No Electric Selection, No Gas Selection, Electric Primary Space Heating, Convenience Stores/Small Grocery (< 14,000 sq ft)"]
["0012","No Electric Selection","No Gas Selection","Electric Primary Space Heating","Medium Grocery (> 14,000 and < 75,000 sq ft)","No Electric Selection, No Gas Selection, Electric Primary Space Heating, Medium Grocery (> 14,000 and < 75,000 sq ft)"]
["0013","No Electric Selection","No Gas Selection","Electric Primary Space Heating","Large Grocery (< 75,000 sq ft)","No Electric Selection, No Gas Selection, Electric Primary Space Heating, Large Grocery (< 75,000 sq ft)"]
["0021","No Electric Selection","No Gas Selection","Gas Primary Space Heating","Convenience Stores/Small Grocery (< 14,000 sq ft)","No Electric Selection, No Gas Selection, Gas Primary Space Heating, Convenience Stores/Small Grocery (< 14,000 sq ft)"]
["0022","No Electric Selection","No Gas Selection","Gas Primary Space Heating","Medium Grocery (> 14,000 and < 75,000 sq ft)","No Electric Selection, No Gas Selection, Gas Primary Space Heating, Medium Grocery (> 14,000 and < 75,000 sq ft)"]
["0023","No Electric Selection","No Gas Selection","Gas Primary Space Heating","Large Grocery (< 75,000 sq ft)","No Electric Selection, No Gas Selection, Gas Primary Space Heating, Large Grocery (< 75,000 sq ft)"]
["0031","No Electric Selection","No Gas Selection","Other Primary Space Heating","Convenience Stores/Small Grocery (< 14,000 sq ft)","No Electric Selection, No Gas Selection, Other Primary Space Heating, Convenience Stores/Small Grocery (< 14,000 sq ft)","Does Not Qualify - Site's primary space heating fuel is not electric or gas"]
["0032","No Electric Selection","No Gas Selection","Other Primary Space Heating","Medium Grocery (> 14,000 and < 75,000 sq ft)","No Electric Selection, No Gas Selection, Other Primary Space Heating, Medium Grocery (> 14,000 and < 75,000 sq ft)","Does Not Qualify - Site's primary space heating fuel is not electric or gas"]
["0033","No Electric Selection","No Gas Selection","Other Primary Space Heating","Large Grocery (< 75,000 sq ft)","No Electric Selection, No Gas Selection, Other Primary Space Heating, Large Grocery (< 75,000 sq ft)","Does Not Qualify - Site's primary space heating fuel is not electric or gas"]
["0101","No Electric Selection","Qualifying Gas","No Primary Space Heating Selection","Convenience Stores/Small Grocery (< 14,000 sq ft)","No Electric Selection, Qualifying Gas, No Primary Space Heating Selection, Convenience Stores/Small Grocery (< 14,000 sq ft)"]
["0102","No Electric Selection","Qualifying Gas","No Primary Space Heating Selection","Medium Grocery (> 14,000 and < 75,000 sq ft)","No Electric Selection, Qualifying Gas, No Primary Space Heating Selection, Medium Grocery (> 14,000 and < 75,000 sq ft)"]
["0103","No Electric Selection","Qualifying Gas","No Primary Space Heating Selection","Large Grocery (< 75,000 sq ft)","No Electric Selection, Qualifying Gas, No Primary Space Heating Selection, Large Grocery (< 75,000 sq ft)"]
["0111","No Electric Selection","Qualifying Gas","Electric Primary Space Heating","Convenience Stores/Small Grocery (< 14,000 sq ft)","No Electric Selection, Qualifying Gas, Electric Primary Space Heating, Convenience Stores/Small Grocery (< 14,000 sq ft)"]
["0112","No Electric Selection","Qualifying Gas","Electric Primary Space Heating","Medium Grocery (> 14,000 and < 75,000 sq ft)","No Electric Selection, Qualifying Gas, Electric Primary Space Heating, Medium Grocery (> 14,000 and < 75,000 sq ft)"]
["0113","No Electric Selection","Qualifying Gas","Electric Primary Space Heating","Large Grocery (< 75,000 sq ft)","No Electric Selection, Qualifying Gas, Electric Primary Space Heating, Large Grocery (< 75,000 sq ft)"]
["0121","No Electric Selection","Qualifying Gas","Gas Primary Space Heating","Convenience Stores/Small Grocery (< 14,000 sq ft)","No Electric Selection, Qualifying Gas, Gas Primary Space Heating, Convenience Stores/Small Grocery (< 14,000 sq ft)"]
["0122","No Electric Selection","Qualifying Gas","Gas Primary Space Heating","Medium Grocery (> 14,000 and < 75,000 sq ft)","No Electric Selection, Qualifying Gas, Gas Primary Space Heating, Medium Grocery (> 14,000 and < 75,000 sq ft)"]
["0123","No Electric Selection","Qualifying Gas","Gas Primary Space Heating","Large Grocery (< 75,000 sq ft)","No Electric Selection, Qualifying Gas, Gas Primary Space Heating, Large Grocery (< 75,000 sq ft)"]
["0131","No Electric Selection","Qualifying Gas","Other Primary Space Heating","Convenience Stores/Small Grocery (< 14,000 sq ft)","No Electric Selection, Qualifying Gas, Other Primary Space Heating, Convenience Stores/Small Grocery (< 14,000 sq ft)","Does Not Qualify - Site's primary space heating fuel is not electric or gas"]
["0132","No Electric Selection","Qualifying Gas","Other Primary Space Heating","Medium Grocery (> 14,000 and < 75,000 sq ft)","No Electric Selection, Qualifying Gas, Other Primary Space Heating, Medium Grocery (> 14,000 and < 75,000 sq ft)","Does Not Qualify - Site's primary space heating fuel is not electric or gas"]
["0133","No Electric Selection","Qualifying Gas","Other Primary Space Heating","Large Grocery (< 75,000 sq ft)","No Electric Selection, Qualifying Gas, Other Primary Space Heating, Large Grocery (< 75,000 sq ft)","Does Not Qualify - Site's primary space heating fuel is not electric or gas"]
["0201","No Electric Selection","Other Gas","No Primary Space Heating Selection","Convenience Stores/Small Grocery (< 14,000 sq ft)","No Electric Selection, Other Gas, No Primary Space Heating Selection, Convenience Stores/Small Grocery (< 14,000 sq ft)"]
["0202","No Electric Selection","Other Gas","No Primary Space Heating Selection","Medium Grocery (> 14,000 and < 75,000 sq ft)","No Electric Selection, Other Gas, No Primary Space Heating Selection, Medium Grocery (> 14,000 and < 75,000 sq ft)"]
["0203","No Electric Selection","Other Gas","No Primary Space Heating Selection","Large Grocery (< 75,000 sq ft)","No Electric Selection, Other Gas, No Primary Space Heating Selection, Large Grocery (< 75,000 sq ft)"]
["0211","No Electric Selection","Other Gas","Electric Primary Space Heating","Convenience Stores/Small Grocery (< 14,000 sq ft)","No Electric Selection, Other Gas, Electric Primary Space Heating, Convenience Stores/Small Grocery (< 14,000 sq ft)"]
["0212","No Electric Selection","Other Gas","Electric Primary Space Heating","Medium Grocery (> 14,000 and < 75,000 sq ft)","No Electric Selection, Other Gas, Electric Primary Space Heating, Medium Grocery (> 14,000 and < 75,000 sq ft)"]
["0213","No Electric Selection","Other Gas","Electric Primary Space Heating","Large Grocery (< 75,000 sq ft)","No Electric Selection, Other Gas, Electric Primary Space Heating, Large Grocery (< 75,000 sq ft)"]
["0221","No Electric Selection","Other Gas","Gas Primary Space Heating","Convenience Stores/Small Grocery (< 14,000 sq ft)","No Electric Selection, Other Gas, Gas Primary Space Heating, Convenience Stores/Small Grocery (< 14,000 sq ft)","Does Not Qualify - Site's primary space heating fuel is not provided by a participating utility"]
["0222","No Electric Selection","Other Gas","Gas Primary Space Heating","Medium Grocery (> 14,000 and < 75,000 sq ft)","No Electric Selection, Other Gas, Gas Primary Space Heating, Medium Grocery (> 14,000 and < 75,000 sq ft)","Does Not Qualify - Site's primary space heating fuel is not provided by a participating utility"]
["0223","No Electric Selection","Other Gas","Gas Primary Space Heating","Large Grocery (< 75,000 sq ft)","No Electric Selection, Other Gas, Gas Primary Space Heating, Large Grocery (< 75,000 sq ft)","Does Not Qualify - Site's primary space heating fuel is not provided by a participating utility"]
["0231","No Electric Selection","Other Gas","Other Primary Space Heating","Convenience Stores/Small Grocery (< 14,000 sq ft)","No Electric Selection, Other Gas, Other Primary Space Heating, Convenience Stores/Small Grocery (< 14,000 sq ft)","Does Not Qualify - Site's primary space heating fuel is not electric or gas"]
["0232","No Electric Selection","Other Gas","Other Primary Space Heating","Medium Grocery (> 14,000 and < 75,000 sq ft)","No Electric Selection, Other Gas, Other Primary Space Heating, Medium Grocery (> 14,000 and < 75,000 sq ft)","Does Not Qualify - Site's primary space heating fuel is not electric or gas"]
["0233","No Electric Selection","Other Gas","Other Primary Space Heating","Large Grocery (< 75,000 sq ft)","No Electric Selection, Other Gas, Other Primary Space Heating, Large Grocery (< 75,000 sq ft)","Does Not Qualify - Site's primary space heating fuel is not electric or gas"]
["1001","Qualifying Electric","No Gas Selection","No Primary Space Heating Selection","Convenience Stores/Small Grocery (< 14,000 sq ft)","Qualifying Electric, No Gas Selection, No Primary Space Heating Selection, Convenience Stores/Small Grocery (< 14,000 sq ft)"]
["1002","Qualifying Electric","No Gas Selection","No Primary Space Heating Selection","Medium Grocery (> 14,000 and < 75,000 sq ft)","Qualifying Electric, No Gas Selection, No Primary Space Heating Selection, Medium Grocery (> 14,000 and < 75,000 sq ft)"]
["1003","Qualifying Electric","No Gas Selection","No Primary Space Heating Selection","Large Grocery (< 75,000 sq ft)","Qualifying Electric, No Gas Selection, No Primary Space Heating Selection, Large Grocery (< 75,000 sq ft)"]
["1011","Qualifying Electric","No Gas Selection","Electric Primary Space Heating","Convenience Stores/Small Grocery (< 14,000 sq ft)","Qualifying Electric, No Gas Selection, Electric Primary Space Heating, Convenience Stores/Small Grocery (< 14,000 sq ft)","$70 per linear ft of door"]
["1012","Qualifying Electric","No Gas Selection","Electric Primary Space Heating","Medium Grocery (> 14,000 and < 75,000 sq ft)","Qualifying Electric, No Gas Selection, Electric Primary Space Heating, Medium Grocery (> 14,000 and < 75,000 sq ft)","$70 per linear ft of door"]
["1013","Qualifying Electric","No Gas Selection","Electric Primary Space Heating","Large Grocery (< 75,000 sq ft)","Qualifying Electric, No Gas Selection, Electric Primary Space Heating, Large Grocery (< 75,000 sq ft)","$70 per linear ft of door"]
["1021","Qualifying Electric","No Gas Selection","Gas Primary Space Heating","Convenience Stores/Small Grocery (< 14,000 sq ft)","Qualifying Electric, No Gas Selection, Gas Primary Space Heating, Convenience Stores/Small Grocery (< 14,000 sq ft)"]
["1022","Qualifying Electric","No Gas Selection","Gas Primary Space Heating","Medium Grocery (> 14,000 and < 75,000 sq ft)","Qualifying Electric, No Gas Selection, Gas Primary Space Heating, Medium Grocery (> 14,000 and < 75,000 sq ft)"]
["1023","Qualifying Electric","No Gas Selection","Gas Primary Space Heating","Large Grocery (< 75,000 sq ft)","Qualifying Electric, No Gas Selection, Gas Primary Space Heating, Large Grocery (< 75,000 sq ft)"]
["1031","Qualifying Electric","No Gas Selection","Other Primary Space Heating","Convenience Stores/Small Grocery (< 14,000 sq ft)","Qualifying Electric, No Gas Selection, Other Primary Space Heating, Convenience Stores/Small Grocery (< 14,000 sq ft)","Does Not Qualify - Site's primary space heating fuel is not electric or gas"]
["1032","Qualifying Electric","No Gas Selection","Other Primary Space Heating","Medium Grocery (> 14,000 and < 75,000 sq ft)","Qualifying Electric, No Gas Selection, Other Primary Space Heating, Medium Grocery (> 14,000 and < 75,000 sq ft)","Does Not Qualify - Site's primary space heating fuel is not electric or gas"]
["1033","Qualifying Electric","No Gas Selection","Other Primary Space Heating","Large Grocery (< 75,000 sq ft)","Qualifying Electric, No Gas Selection, Other Primary Space Heating, Large Grocery (< 75,000 sq ft)","Does Not Qualify - Site's primary space heating fuel is not electric or gas"]
["1101","Qualifying Electric","Qualifying Gas","No Primary Space Heating Selection","Convenience Stores/Small Grocery (< 14,000 sq ft)","Qualifying Electric, Qualifying Gas, No Primary Space Heating Selection, Convenience Stores/Small Grocery (< 14,000 sq ft)"]
["1102","Qualifying Electric","Qualifying Gas","No Primary Space Heating Selection","Medium Grocery (> 14,000 and < 75,000 sq ft)","Qualifying Electric, Qualifying Gas, No Primary Space Heating Selection, Medium Grocery (> 14,000 and < 75,000 sq ft)"]
["1103","Qualifying Electric","Qualifying Gas","No Primary Space Heating Selection","Large Grocery (< 75,000 sq ft)","Qualifying Electric, Qualifying Gas, No Primary Space Heating Selection, Large Grocery (< 75,000 sq ft)"]
["1111","Qualifying Electric","Qualifying Gas","Electric Primary Space Heating","Convenience Stores/Small Grocery (< 14,000 sq ft)","Qualifying Electric, Qualifying Gas, Electric Primary Space Heating, Convenience Stores/Small Grocery (< 14,000 sq ft)","$70 per linear ft of door"]
["1112","Qualifying Electric","Qualifying Gas","Electric Primary Space Heating","Medium Grocery (> 14,000 and < 75,000 sq ft)","Qualifying Electric, Qualifying Gas, Electric Primary Space Heating, Medium Grocery (> 14,000 and < 75,000 sq ft)","$70 per linear ft of door"]
["1113","Qualifying Electric","Qualifying Gas","Electric Primary Space Heating","Large Grocery (< 75,000 sq ft)","Qualifying Electric, Qualifying Gas, Electric Primary Space Heating, Large Grocery (< 75,000 sq ft)","$70 per linear ft of door"]
["1121","Qualifying Electric","Qualifying Gas","Gas Primary Space Heating","Convenience Stores/Small Grocery (< 14,000 sq ft)","Qualifying Electric, Qualifying Gas, Gas Primary Space Heating, Convenience Stores/Small Grocery (< 14,000 sq ft)","$70 per linear ft of door"]
["1122","Qualifying Electric","Qualifying Gas","Gas Primary Space Heating","Medium Grocery (> 14,000 and < 75,000 sq ft)","Qualifying Electric, Qualifying Gas, Gas Primary Space Heating, Medium Grocery (> 14,000 and < 75,000 sq ft)","$70 per linear ft of door"]
["1123","Qualifying Electric","Qualifying Gas","Gas Primary Space Heating","Large Grocery (< 75,000 sq ft)","Qualifying Electric, Qualifying Gas, Gas Primary Space Heating, Large Grocery (< 75,000 sq ft)","$70 per linear ft of door"]
["1131","Qualifying Electric","Qualifying Gas","Other Primary Space Heating","Convenience Stores/Small Grocery (< 14,000 sq ft)","Qualifying Electric, Qualifying Gas, Other Primary Space Heating, Convenience Stores/Small Grocery (< 14,000 sq ft)","Does Not Qualify - Site's primary space heating fuel is not electric or gas"]
["1132","Qualifying Electric","Qualifying Gas","Other Primary Space Heating","Medium Grocery (> 14,000 and < 75,000 sq ft)","Qualifying Electric, Qualifying Gas, Other Primary Space Heating, Medium Grocery (> 14,000 and < 75,000 sq ft)","Does Not Qualify - Site's primary space heating fuel is not electric or gas"]
["1133","Qualifying Electric","Qualifying Gas","Other Primary Space Heating","Large Grocery (< 75,000 sq ft)","Qualifying Electric, Qualifying Gas, Other Primary Space Heating, Large Grocery (< 75,000 sq ft)","Does Not Qualify - Site's primary space heating fuel is not electric or gas"]
["1201","Qualifying Electric","Other Gas","No Primary Space Heating Selection","Convenience Stores/Small Grocery (< 14,000 sq ft)","Qualifying Electric, Other Gas, No Primary Space Heating Selection, Convenience Stores/Small Grocery (< 14,000 sq ft)"]
["1202","Qualifying Electric","Other Gas","No Primary Space Heating Selection","Medium Grocery (> 14,000 and < 75,000 sq ft)","Qualifying Electric, Other Gas, No Primary Space Heating Selection, Medium Grocery (> 14,000 and < 75,000 sq ft)"]
["1203","Qualifying Electric","Other Gas","No Primary Space Heating Selection","Large Grocery (< 75,000 sq ft)","Qualifying Electric, Other Gas, No Primary Space Heating Selection, Large Grocery (< 75,000 sq ft)"]
["1211","Qualifying Electric","Other Gas","Electric Primary Space Heating","Convenience Stores/Small Grocery (< 14,000 sq ft)","Qualifying Electric, Other Gas, Electric Primary Space Heating, Convenience Stores/Small Grocery (< 14,000 sq ft)","$70 per linear ft of door"]
["1212","Qualifying Electric","Other Gas","Electric Primary Space Heating","Medium Grocery (> 14,000 and < 75,000 sq ft)","Qualifying Electric, Other Gas, Electric Primary Space Heating, Medium Grocery (> 14,000 and < 75,000 sq ft)","$70 per linear ft of door"]
["1213","Qualifying Electric","Other Gas","Electric Primary Space Heating","Large Grocery (< 75,000 sq ft)",{"$f":"B70&\", \"&C70&\", \"&D70&\", \"&E70","v":"Qualifying Electric, Other Gas, Electric Primary Space Heating, Large Grocery (< 75,000 sq ft)"},"$70 per linear ft of door"]
["1221","Qualifying Electric","Other Gas","Gas Primary Space Heating","Convenience Stores/Small Grocery (< 14,000 sq ft)","Qualifying Electric, Other Gas, Gas Primary Space Heating, Convenience Stores/Small Grocery (< 14,000 sq ft)","Does Not Qualify - Site's primary space heating fuel is not provided by a participating utility"]
["1222","Qualifying Electric","Other Gas","Gas Primary Space Heating","Medium Grocery (> 14,000 and < 75,000 sq ft)","Qualifying Electric, Other Gas, Gas Primary Space Heating, Medium Grocery (> 14,000 and < 75,000 sq ft)","Does Not Qualify - Site's primary space heating fuel is not provided by a participating utility"]
["1223","Qualifying Electric","Other Gas","Gas Primary Space Heating","Large Grocery (< 75,000 sq ft)","Qualifying Electric, Other Gas, Gas Primary Space Heating, Large Grocery (< 75,000 sq ft)","Does Not Qualify - Site's primary space heating fuel is not provided by a participating utility"]
["1231","Qualifying Electric","Other Gas","Other Primary Space Heating","Convenience Stores/Small Grocery (< 14,000 sq ft)","Qualifying Electric, Other Gas, Other Primary Space Heating, Convenience Stores/Small Grocery (< 14,000 sq ft)","Does Not Qualify - Site's primary space heating fuel is not electric or gas"]
["1232","Qualifying Electric","Other Gas","Other Primary Space Heating","Medium Grocery (> 14,000 and < 75,000 sq ft)","Qualifying Electric, Other Gas, Other Primary Space Heating, Medium Grocery (> 14,000 and < 75,000 sq ft)","Does Not Qualify - Site's primary space heating fuel is not electric or gas"]
["1233","Qualifying Electric","Other Gas","Other Primary Space Heating","Large Grocery (< 75,000 sq ft)","Qualifying Electric, Other Gas, Other Primary Space Heating, Large Grocery (< 75,000 sq ft)","Does Not Qualify - Site's primary space heating fuel is not electric or gas"]
["2001","Other Electric","No Gas Selection","No Primary Space Heating Selection","Convenience Stores/Small Grocery (< 14,000 sq ft)","Other Electric, No Gas Selection, No Primary Space Heating Selection, Convenience Stores/Small Grocery (< 14,000 sq ft)"]
["2002","Other Electric","No Gas Selection","No Primary Space Heating Selection","Medium Grocery (> 14,000 and < 75,000 sq ft)","Other Electric, No Gas Selection, No Primary Space Heating Selection, Medium Grocery (> 14,000 and < 75,000 sq ft)"]
["2003","Other Electric","No Gas Selection","No Primary Space Heating Selection","Large Grocery (< 75,000 sq ft)","Other Electric, No Gas Selection, No Primary Space Heating Selection, Large Grocery (< 75,000 sq ft)"]
["2011","Other Electric","No Gas Selection","Electric Primary Space Heating","Convenience Stores/Small Grocery (< 14,000 sq ft)","Other Electric, No Gas Selection, Electric Primary Space Heating, Convenience Stores/Small Grocery (< 14,000 sq ft)","Does Not Qualify - Site's primary space heating fuel is not provided by a participating utility"]
["2012","Other Electric","No Gas Selection","Electric Primary Space Heating","Medium Grocery (> 14,000 and < 75,000 sq ft)","Other Electric, No Gas Selection, Electric Primary Space Heating, Medium Grocery (> 14,000 and < 75,000 sq ft)","Does Not Qualify - Site's primary space heating fuel is not provided by a participating utility"]
["2013","Other Electric","No Gas Selection","Electric Primary Space Heating","Large Grocery (< 75,000 sq ft)","Other Electric, No Gas Selection, Electric Primary Space Heating, Large Grocery (< 75,000 sq ft)","Does Not Qualify - Site's primary space heating fuel is not provided by a participating utility"]
["2021","Other Electric","No Gas Selection","Gas Primary Space Heating","Convenience Stores/Small Grocery (< 14,000 sq ft)","Other Electric, No Gas Selection, Gas Primary Space Heating, Convenience Stores/Small Grocery (< 14,000 sq ft)"]
["2022","Other Electric","No Gas Selection","Gas Primary Space Heating","Medium Grocery (> 14,000 and < 75,000 sq ft)","Other Electric, No Gas Selection, Gas Primary Space Heating, Medium Grocery (> 14,000 and < 75,000 sq ft)"]
["2023","Other Electric","No Gas Selection","Gas Primary Space Heating","Large Grocery (< 75,000 sq ft)","Other Electric, No Gas Selection, Gas Primary Space Heating, Large Grocery (< 75,000 sq ft)"]
["2031","Other Electric","No Gas Selection","Other Primary Space Heating","Convenience Stores/Small Grocery (< 14,000 sq ft)","Other Electric, No Gas Selection, Other Primary Space Heating, Convenience Stores/Small Grocery (< 14,000 sq ft)","Does Not Qualify - Site's primary space heating fuel is not electric or gas"]
["2032","Other Electric","No Gas Selection","Other Primary Space Heating","Medium Grocery (> 14,000 and < 75,000 sq ft)","Other Electric, No Gas Selection, Other Primary Space Heating, Medium Grocery (> 14,000 and < 75,000 sq ft)","Does Not Qualify - Site's primary space heating fuel is not electric or gas"]
["2033","Other Electric","No Gas Selection","Other Primary Space Heating","Large Grocery (< 75,000 sq ft)","Other Electric, No Gas Selection, Other Primary Space Heating, Large Grocery (< 75,000 sq ft)","Does Not Qualify - Site's primary space heating fuel is not electric or gas"]
["2101","Other Electric","Qualifying Gas","No Primary Space Heating Selection","Convenience Stores/Small Grocery (< 14,000 sq ft)","Other Electric, Qualifying Gas, No Primary Space Heating Selection, Convenience Stores/Small Grocery (< 14,000 sq ft)"]
["2102","Other Electric","Qualifying Gas","No Primary Space Heating Selection","Medium Grocery (> 14,000 and < 75,000 sq ft)","Other Electric, Qualifying Gas, No Primary Space Heating Selection, Medium Grocery (> 14,000 and < 75,000 sq ft)"]
["2103","Other Electric","Qualifying Gas","No Primary Space Heating Selection","Large Grocery (< 75,000 sq ft)","Other Electric, Qualifying Gas, No Primary Space Heating Selection, Large Grocery (< 75,000 sq ft)"]
["2111","Other Electric","Qualifying Gas","Electric Primary Space Heating","Convenience Stores/Small Grocery (< 14,000 sq ft)","Other Electric, Qualifying Gas, Electric Primary Space Heating, Convenience Stores/Small Grocery (< 14,000 sq ft)","Does Not Qualify - Site's primary space heating fuel is not provided by a participating utility"]
["2112","Other Electric","Qualifying Gas","Electric Primary Space Heating","Medium Grocery (> 14,000 and < 75,000 sq ft)","Other Electric, Qualifying Gas, Electric Primary Space Heating, Medium Grocery (> 14,000 and < 75,000 sq ft)","Does Not Qualify - Site's primary space heating fuel is not provided by a participating utility"]
["2113","Other Electric","Qualifying Gas","Electric Primary Space Heating","Large Grocery (< 75,000 sq ft)","Other Electric, Qualifying Gas, Electric Primary Space Heating, Large Grocery (< 75,000 sq ft)","Does Not Qualify - Site's primary space heating fuel is not provided by a participating utility"]
["2121","Other Electric","Qualifying Gas","Gas Primary Space Heating","Convenience Stores/Small Grocery (< 14,000 sq ft)","Other Electric, Qualifying Gas, Gas Primary Space Heating, Convenience Stores/Small Grocery (< 14,000 sq ft)","$35 per linear ft of door"]
["2122","Other Electric","Qualifying Gas","Gas Primary Space Heating","Medium Grocery (> 14,000 and < 75,000 sq ft)","Other Electric, Qualifying Gas, Gas Primary Space Heating, Medium Grocery (> 14,000 and < 75,000 sq ft)","$35 per linear ft of door"]
["2123","Other Electric","Qualifying Gas","Gas Primary Space Heating","Large Grocery (< 75,000 sq ft)","Other Electric, Qualifying Gas, Gas Primary Space Heating, Large Grocery (< 75,000 sq ft)","$35 per linear ft of door"]
["2131","Other Electric","Qualifying Gas","Other Primary Space Heating","Convenience Stores/Small Grocery (< 14,000 sq ft)","Other Electric, Qualifying Gas, Other Primary Space Heating, Convenience Stores/Small Grocery (< 14,000 sq ft)","Does Not Qualify - Site's primary space heating fuel is not electric or gas"]
["2132","Other Electric","Qualifying Gas","Other Primary Space Heating","Medium Grocery (> 14,000 and < 75,000 sq ft)","Other Electric, Qualifying Gas, Other Primary Space Heating, Medium Grocery (> 14,000 and < 75,000 sq ft)","Does Not Qualify - Site's primary space heating fuel is not electric or gas"]
["2133","Other Electric","Qualifying Gas","Other Primary Space Heating","Large Grocery (< 75,000 sq ft)","Other Electric, Qualifying Gas, Other Primary Space Heating, Large Grocery (< 75,000 sq ft)","Does Not Qualify - Site's primary space heating fuel is not electric or gas"]
["2201","Other Electric","Other Gas","No Primary Space Heating Selection","Convenience Stores/Small Grocery (< 14,000 sq ft)","Other Electric, Other Gas, No Primary Space Heating Selection, Convenience Stores/Small Grocery (< 14,000 sq ft)","Does Not Qualify - Site's utility providers are not participating utilities"]
["2202","Other Electric","Other Gas","No Primary Space Heating Selection","Medium Grocery (> 14,000 and < 75,000 sq ft)","Other Electric, Other Gas, No Primary Space Heating Selection, Medium Grocery (> 14,000 and < 75,000 sq ft)","Does Not Qualify - Site's utility providers are not participating utilities"]
["2203","Other Electric","Other Gas","No Primary Space Heating Selection","Large Grocery (< 75,000 sq ft)","Other Electric, Other Gas, No Primary Space Heating Selection, Large Grocery (< 75,000 sq ft)","Does Not Qualify - Site's utility providers are not participating utilities"]
["2211","Other Electric","Other Gas","Electric Primary Space Heating","Convenience Stores/Small Grocery (< 14,000 sq ft)","Other Electric, Other Gas, Electric Primary Space Heating, Convenience Stores/Small Grocery (< 14,000 sq ft)","Does Not Qualify - Site's utility providers are not participating utilities"]
["2212","Other Electric","Other Gas","Electric Primary Space Heating","Medium Grocery (> 14,000 and < 75,000 sq ft)","Other Electric, Other Gas, Electric Primary Space Heating, Medium Grocery (> 14,000 and < 75,000 sq ft)","Does Not Qualify - Site's utility providers are not participating utilities"]
["2213","Other Electric","Other Gas","Electric Primary Space Heating","Large Grocery (< 75,000 sq ft)","Other Electric, Other Gas, Electric Primary Space Heating, Large Grocery (< 75,000 sq ft)","Does Not Qualify - Site's utility providers are not participating utilities"]
["2221","Other Electric","Other Gas","Gas Primary Space Heating","Convenience Stores/Small Grocery (< 14,000 sq ft)","Other Electric, Other Gas, Gas Primary Space Heating, Convenience Stores/Small Grocery (< 14,000 sq ft)","Does Not Qualify - Site's utility providers are not participating utilities"]
["2222","Other Electric","Other Gas","Gas Primary Space Heating","Medium Grocery (> 14,000 and < 75,000 sq ft)","Other Electric, Other Gas, Gas Primary Space Heating, Medium Grocery (> 14,000 and < 75,000 sq ft)","Does Not Qualify - Site's utility providers are not participating utilities"]
["2223","Other Electric","Other Gas","Gas Primary Space Heating","Large Grocery (< 75,000 sq ft)","Other Electric, Other Gas, Gas Primary Space Heating, Large Grocery (< 75,000 sq ft)","Does Not Qualify - Site's utility providers are not participating utilities"]
["2231","Other Electric","Other Gas","Other Primary Space Heating","Convenience Stores/Small Grocery (< 14,000 sq ft)","Other Electric, Other Gas, Other Primary Space Heating, Convenience Stores/Small Grocery (< 14,000 sq ft)","Does Not Qualify - Site's utility providers are not participating utilities"]
["2232","Other Electric","Other Gas","Other Primary Space Heating","Medium Grocery (> 14,000 and < 75,000 sq ft)","Other Electric, Other Gas, Other Primary Space Heating, Medium Grocery (> 14,000 and < 75,000 sq ft)","Does Not Qualify - Site's utility providers are not participating utilities"]
["2233","Other Electric","Other Gas","Other Primary Space Heating","Large Grocery (< 75,000 sq ft)","Other Electric, Other Gas, Other Primary Space Heating, Large Grocery (< 75,000 sq ft)","Does Not Qualify - Site's utility providers are not participating utilities"]

{"sheet":"Eligible Spaces","index":25,"n_rows":25,"n_cols":1,"rows_kept":25,"cut":false,"hidden":true,"merged":[]}
["(Select)"]
["Arcade"]
["Art classroom"]
["Bank vaults/safe deposit room"]
["Coin-operated Laundromat"]
["Commercial Laundromat"]
["Computer room (without printing)"]
["Copy/printing room"]
["Grocery Store"]
["Guard Stations"]
["Health club/weight room"]
["Hotel Rooms"]
["Library"]
["Main entry lobby"]
["Medical operating room"]
["Medical procedure room"]
["Office spaces"]
["Other"]
["Patient room"]
["Pet shop (animal areas) "]
["Photo studio"]
["Physical therapy"]
["Recovery and ICU area"]
["Sales floor (except mall common areas)"]
["Wood/metal shop"]